Body Name,Vendor Number,Vendor Name,Cost Centre,Service Label,BV Code,Amount,Period
Slough Borough Council,806901,4way Consulting Ltd,P212,Capital,Capital Charges,514.95,Oct-23
Slough Borough Council,806901,4way Consulting Ltd,P212,Capital,Capital Charges,514.95,Oct-23
Slough Borough Council,1055,A J Chapman,F123,Education & Inclusion,External Receipts,"51,180.50",Oct-23
Slough Borough Council,809078,Aaron Alexander,C322,Community,Supplies and Services,"1,122.00",Oct-23
Slough Borough Council,536,Ability Housing Association,M42E,Adult Social Care Operations,Supplies and Services,"2,829.73",Oct-23
Slough Borough Council,536,Ability Housing Association,M42E,Adult Social Care Operations,Supplies and Services,"2,698.87",Oct-23
Slough Borough Council,536,Ability Housing Association,M42E,Adult Social Care Operations,Supplies and Services,"2,582.49",Oct-23
Slough Borough Council,536,Ability Housing Association,M42E,Adult Social Care Operations,Supplies and Services,"1,305.07",Oct-23
Slough Borough Council,536,Ability Housing Association,M42E,Adult Social Care Operations,Supplies and Services,"1,903.62",Oct-23
Slough Borough Council,536,Ability Housing Association,M42E,Adult Social Care Operations,Supplies and Services,"3,156.32",Oct-23
Slough Borough Council,536,Ability Housing Association,M42E,Adult Social Care Operations,Supplies and Services,"2,925.51",Oct-23
Slough Borough Council,536,Ability Housing Association,M42E,Adult Social Care Operations,Supplies and Services,"3,377.96",Oct-23
Slough Borough Council,536,Ability Housing Association,M42E,Adult Social Care Operations,Supplies and Services,"3,118.18",Oct-23
Slough Borough Council,536,Ability Housing Association,M42E,Adult Social Care Operations,Supplies and Services,"2,768.96",Oct-23
Slough Borough Council,536,Ability Housing Association,M42E,Adult Social Care Operations,Supplies and Services,"1,483.26",Oct-23
Slough Borough Council,536,Ability Housing Association,M42E,Adult Social Care Operations,Supplies and Services,"1,943.78",Oct-23
Slough Borough Council,536,Ability Housing Association,M42E,Adult Social Care Operations,Supplies and Services,"2,500.07",Oct-23
Slough Borough Council,536,Ability Housing Association,M42E,Adult Social Care Operations,Supplies and Services,"2,801.89",Oct-23
Slough Borough Council,536,Ability Housing Association,M42E,Adult Social Care Operations,Supplies and Services,"2,760.68",Oct-23
Slough Borough Council,536,Ability Housing Association,M42E,Adult Social Care Operations,Supplies and Services,"2,595.85",Oct-23
Slough Borough Council,536,Ability Housing Association,M42E,Adult Social Care Operations,Supplies and Services,"2,767.92",Oct-23
Slough Borough Council,536,Ability Housing Association,M42E,Adult Social Care Operations,Supplies and Services,"2,744.25",Oct-23
Slough Borough Council,536,Ability Housing Association,M44E,Adult Social Care Operations,Supplies and Services,"2,361.17",Oct-23
Slough Borough Council,536,Ability Housing Association,M44E,Adult Social Care Operations,Supplies and Services,"1,932.62",Oct-23
Slough Borough Council,536,Ability Housing Association,M44E,Adult Social Care Operations,Supplies and Services,"2,278.76",Oct-23
Slough Borough Council,536,Ability Housing Association,M44E,Adult Social Care Operations,Supplies and Services,"1,862.56",Oct-23
Slough Borough Council,806790,AccessAble,A06C,People Strategy & Commissioning,Supplies and Services,"8,330.00",Oct-23
Slough Borough Council,2898,Achieve Together t/a The Regard Partnership Ltd,M42E,Adult Social Care Operations,Supplies and Services,"5,334.52",Oct-23
Slough Borough Council,2898,Achieve Together t/a The Regard Partnership Ltd,M42E,Adult Social Care Operations,Supplies and Services,"7,013.22",Oct-23
Slough Borough Council,2898,Achieve Together t/a The Regard Partnership Ltd,M42E,Adult Social Care Operations,Supplies and Services,"6,781.47",Oct-23
Slough Borough Council,2898,Achieve Together t/a The Regard Partnership Ltd,M42E,Adult Social Care Operations,Supplies and Services,"5,208.04",Oct-23
Slough Borough Council,2898,Achieve Together t/a The Regard Partnership Ltd,M42E,Adult Social Care Operations,Supplies and Services,"6,559.16",Oct-23
Slough Borough Council,2898,Achieve Together t/a The Regard Partnership Ltd,M44D,Adult Social Care Operations,Supplies and Services,"4,840.87",Oct-23
Slough Borough Council,2898,Achieve Together t/a The Regard Partnership Ltd,M44E,Adult Social Care Operations,Supplies and Services,"5,818.48",Oct-23
Slough Borough Council,1506,Acorns Project Limited,P192,Capital,Capital Charges,800.00,Oct-23
Slough Borough Council,805529,Action First Recrutiment Ltd,A02A,People,Supplies and Services,550.00,Oct-23
Slough Borough Council,805529,Action First Recrutiment Ltd,A02A,People,Supplies and Services,"1,330.00",Oct-23
Slough Borough Council,805529,Action First Recrutiment Ltd,A02A,People,Supplies and Services,825.00,Oct-23
Slough Borough Council,805529,Action First Recrutiment Ltd,A02A,People,Supplies and Services,"1,100.00",Oct-23
Slough Borough Council,805529,Action First Recrutiment Ltd,A02A,People,Supplies and Services,950.00,Oct-23
Slough Borough Council,805529,Action First Recrutiment Ltd,A02A,People,Supplies and Services,"1,375.00",Oct-23
Slough Borough Council,805529,Action First Recrutiment Ltd,A02A,People,Supplies and Services,"1,710.00",Oct-23
Slough Borough Council,807832,Adaptec Mobility Ltd,P006,Capital,Capital Charges,"9,769.75",Oct-23
Slough Borough Council,2135,Adventure Learning Childcare Limited,F909,Children & Families,Supplies and Services,710.49,Oct-23
Slough Borough Council,2135,Adventure Learning Childcare Limited,F909,Children & Families,Supplies and Services,710.49,Oct-23
Slough Borough Council,2135,Adventure Learning Childcare Limited,F909,Children & Families,Supplies and Services,"12,339.77",Oct-23
Slough Borough Council,805178,AFM Transport Limited,D320,Place Operations,Premises,975.63,Oct-23
Slough Borough Council,805178,AFM Transport Limited,P243,Capital,Supplies and Services,"1,738.93",Oct-23
Slough Borough Council,805178,AFM Transport Limited,P212,Capital,Capital Charges,"6,723.60",Oct-23
Slough Borough Council,805178,AFM Transport Limited,P212,Capital,Capital Charges,"2,001.00",Oct-23
Slough Borough Council,805178,AFM Transport Limited,P212,Capital,Capital Charges,"1,264.00",Oct-23
Slough Borough Council,809101,Allder Glass Ltd,M80F,Adult Social Care Operations,Supplies and Services,660.00,Oct-23
Slough Borough Council,2197,Altwood Housing Ltd,H205,Housing (People) Services,Supplies and Services,"1,740.00",Oct-23
Slough Borough Council,2197,Altwood Housing Ltd,H205,Housing (People) Services,Supplies and Services,"1,380.00",Oct-23
Slough Borough Council,2197,Altwood Housing Ltd,H205,Housing (People) Services,Supplies and Services,"1,080.00",Oct-23
Slough Borough Council,2197,Altwood Housing Ltd,H205,Housing (People) Services,Supplies and Services,"1,080.00",Oct-23
Slough Borough Council,2197,Altwood Housing Ltd,H205,Housing (People) Services,Supplies and Services,900.00,Oct-23
Slough Borough Council,2197,Altwood Housing Ltd,H205,Housing (People) Services,Supplies and Services,"1,080.00",Oct-23
Slough Borough Council,807515,Always Growing Together Community Interest Company Limited,F909,Children & Families,Supplies and Services,557.14,Oct-23
Slough Borough Council,807515,Always Growing Together Community Interest Company Limited,F909,Children & Families,Supplies and Services,557.14,Oct-23
Slough Borough Council,807515,Always Growing Together Community Interest Company Limited,F909,Children & Families,Supplies and Services,"9,357.37",Oct-23
Slough Borough Council,808191,Ambrose Adrian Healthcare Ltd,M44E,Adult Social Care Operations,Supplies and Services,"3,800.00",Oct-23
Slough Borough Council,808718,Andel Ltd,B060,Business Services,Premises,"1,186.00",Oct-23
Slough Borough Council,3137,Applegarth Care Home Ltd,M25C,Adult Social Care Operations,Supplies and Services,"3,200.00",Oct-23
Slough Borough Council,3137,Applegarth Care Home Ltd,M25C,Adult Social Care Operations,Supplies and Services,"3,600.00",Oct-23
Slough Borough Council,3137,Applegarth Care Home Ltd,M28C,Adult Social Care Operations,Supplies and Services,"3,400.00",Oct-23
Slough Borough Council,3137,Applegarth Care Home Ltd,M28C,Adult Social Care Operations,Supplies and Services,"3,400.00",Oct-23
Slough Borough Council,3137,Applegarth Care Home Ltd,M28C,Adult Social Care Operations,Supplies and Services,971.44,Oct-23
Slough Borough Council,3137,Applegarth Care Home Ltd,M29C,Adult Social Care Operations,Supplies and Services,728.58,Oct-23
Slough Borough Council,808415,APTUS EA LTD,H205,Housing (People) Services,Supplies and Services,"222,845.00",Oct-23
Slough Borough Council,808415,APTUS EA LTD,H218,Community,Supplies and Services,"9,305.12",Oct-23
Slough Borough Council,3350,Arbour Vale School,E610,Children & Families,Supplies and Services,"458,454.80",Oct-23
Slough Borough Council,2073,Arc Preschool,F909,Children & Families,Supplies and Services,702.45,Oct-23
Slough Borough Council,2073,Arc Preschool,F909,Children & Families,Supplies and Services,702.45,Oct-23
Slough Borough Council,2073,Arc Preschool,F909,Children & Families,Supplies and Services,"7,750.19",Oct-23
Slough Borough Council,809029,ASH TEIKO,F253,Children & Families,Agency Staff,800.00,Oct-23
Slough Borough Council,803552,Askews and Holts Library Services Ltd,C104,Community,Supplies and Services,"1,489.02",Oct-23
Slough Borough Council,3666,Assisted Living South West,M26E,Adult Social Care Operations,Supplies and Services,"6,778.96",Oct-23
Slough Borough Council,804324,Astoria Healthcare,M27F,Adult Social Care Operations,Supplies and Services,"4,417.50",Oct-23
Slough Borough Council,570,Atkins Limited,P212,Capital,Capital Charges,"2,500.00",Oct-23
Slough Borough Council,570,Atkins Limited,P243,Capital,Capital Charges,"1,368.00",Oct-23
Slough Borough Council,570,Atkins Limited,P243,Capital,Capital Charges,684.00,Oct-23
Slough Borough Council,1286,Barnardos,F462,Children & Families,Supplies and Services,"13,736.00",Oct-23
Slough Borough Council,1286,Barnardos,F462,Children & Families,Supplies and Services,"16,233.00",Oct-23
Slough Borough Council,3370,Baylis Court School,E610,Children & Families,Supplies and Services,"4,791.67",Oct-23
Slough Borough Council,3370,Baylis Court School,B297,Finance & Commercial,Government Grants,"3,450.00",Oct-23
Slough Borough Council,1681,BCQ Solutions Ltd,B246,Business Services,Supplies and Services,"6,698.00",Oct-23
Slough Borough Council,1681,BCQ Solutions Ltd,B246,Business Services,Supplies and Services,"3,552.00",Oct-23
Slough Borough Council,1681,BCQ Solutions Ltd,B246,Business Services,Supplies and Services,"18,223.00",Oct-23
Slough Borough Council,1681,BCQ Solutions Ltd,B246,Business Services,Supplies and Services,"5,232.00",Oct-23
Slough Borough Council,3208,Be Happy Pre School,F909,Children & Families,Supplies and Services,"1,860.95",Oct-23
Slough Borough Council,3208,Be Happy Pre School,F909,Children & Families,Supplies and Services,690.21,Oct-23
Slough Borough Council,3208,Be Happy Pre School,F909,Children & Families,Supplies and Services,"16,074.49",Oct-23
Slough Borough Council,3208,Be Happy Pre School,F909,Children & Families,Supplies and Services,"7,754.53",Oct-23
Slough Borough Council,3208,Be Happy Pre School,F909,Children & Families,Supplies and Services,"1,860.95",Oct-23
Slough Borough Council,3208,Be Happy Pre School,F909,Children & Families,Supplies and Services,690.21,Oct-23
Slough Borough Council,609,Beechwood Secondary School,F868,Children & Families,Supplies and Services,"76,791.93",Oct-23
Slough Borough Council,609,Beechwood Secondary School,E610,Children & Families,Supplies and Services,"4,458.33",Oct-23
Slough Borough Council,804588,BEN Motor & Allied Trades Bev.Fnd,M15D,Adult Social Care Operations,Supplies and Services,"6,400.00",Oct-23
Slough Borough Council,804588,BEN Motor & Allied Trades Bev.Fnd,M27C,Adult Social Care Operations,Supplies and Services,"5,600.00",Oct-23
Slough Borough Council,804588,BEN Motor & Allied Trades Bev.Fnd,M27C,Adult Social Care Operations,Supplies and Services,"5,000.00",Oct-23
Slough Borough Council,612,Berkshire Healthcare Nhs Foundation Trust,A07M,People Adults,Agency Staff,"7,964.51",Oct-23
Slough Borough Council,612,Berkshire Healthcare Nhs Foundation Trust,A07M,People Adults,Supplies and Services,710.65,Oct-23
Slough Borough Council,612,Berkshire Healthcare Nhs Foundation Trust,A07M,People Adults,Supplies and Services,705.00,Oct-23
Slough Borough Council,808148,BEST CHOICE CARE LTD,A07R,Adult Social Care Operations,Supplies and Services,980.00,Oct-23
Slough Borough Council,808148,BEST CHOICE CARE LTD,A07R,Adult Social Care Operations,Supplies and Services,"2,205.28",Oct-23
Slough Borough Council,808148,BEST CHOICE CARE LTD,A07R,Adult Social Care Operations,Supplies and Services,735.00,Oct-23
Slough Borough Council,808148,BEST CHOICE CARE LTD,M41D,Adult Social Care Operations,Supplies and Services,595.00,Oct-23
Slough Borough Council,808148,BEST CHOICE CARE LTD,M44C,Adult Social Care Operations,Supplies and Services,"1,470.28",Oct-23
Slough Borough Council,808148,BEST CHOICE CARE LTD,M44C,Adult Social Care Operations,Supplies and Services,980.00,Oct-23
Slough Borough Council,808148,BEST CHOICE CARE LTD,M44C,Adult Social Care Operations,Supplies and Services,647.62,Oct-23
Slough Borough Council,808148,BEST CHOICE CARE LTD,M44C,Adult Social Care Operations,Supplies and Services,"2,327.78",Oct-23
Slough Borough Council,808148,BEST CHOICE CARE LTD,M44C,Adult Social Care Operations,Supplies and Services,612.64,Oct-23
Slough Borough Council,808148,BEST CHOICE CARE LTD,M44C,Adult Social Care Operations,Supplies and Services,"1,715.28",Oct-23
Slough Borough Council,808148,BEST CHOICE CARE LTD,M44C,Adult Social Care Operations,Supplies and Services,542.64,Oct-23
Slough Borough Council,808148,BEST CHOICE CARE LTD,M44C,Adult Social Care Operations,Supplies and Services,980.00,Oct-23
Slough Borough Council,808148,BEST CHOICE CARE LTD,M44C,Adult Social Care Operations,Supplies and Services,857.64,Oct-23
Slough Borough Council,808148,BEST CHOICE CARE LTD,M44C,Adult Social Care Operations,Supplies and Services,612.64,Oct-23
Slough Borough Council,808148,BEST CHOICE CARE LTD,M44C,Adult Social Care Operations,Supplies and Services,857.64,Oct-23
Slough Borough Council,808148,BEST CHOICE CARE LTD,M44C,Adult Social Care Operations,Supplies and Services,"1,102.64",Oct-23
Slough Borough Council,808148,BEST CHOICE CARE LTD,M44C,Adult Social Care Operations,Supplies and Services,704.44,Oct-23
Slough Borough Council,808148,BEST CHOICE CARE LTD,M44C,Adult Social Care Operations,Supplies and Services,857.64,Oct-23
Slough Borough Council,808148,BEST CHOICE CARE LTD,M44C,Adult Social Care Operations,Supplies and Services,"1,680.22",Oct-23
Slough Borough Council,808148,BEST CHOICE CARE LTD,M44C,Adult Social Care Operations,Supplies and Services,507.64,Oct-23
Slough Borough Council,808148,BEST CHOICE CARE LTD,M44C,Adult Social Care Operations,Supplies and Services,813.75,Oct-23
Slough Borough Council,808148,BEST CHOICE CARE LTD,M44C,Adult Social Care Operations,Supplies and Services,848.89,Oct-23
Slough Borough Council,808148,BEST CHOICE CARE LTD,M44C,Adult Social Care Operations,Supplies and Services,"1,212.07",Oct-23
Slough Borough Council,808148,BEST CHOICE CARE LTD,M44C,Adult Social Care Operations,Supplies and Services,542.64,Oct-23
Slough Borough Council,808148,BEST CHOICE CARE LTD,M44C,Adult Social Care Operations,Supplies and Services,980.00,Oct-23
Slough Borough Council,808148,BEST CHOICE CARE LTD,M44C,Adult Social Care Operations,Supplies and Services,"1,360.84",Oct-23
Slough Borough Council,808148,BEST CHOICE CARE LTD,M44D,Adult Social Care Operations,Supplies and Services,"1,592.76",Oct-23
Slough Borough Council,808148,BEST CHOICE CARE LTD,M44D,Adult Social Care Operations,Supplies and Services,"1,470.00",Oct-23
Slough Borough Council,808148,BEST CHOICE CARE LTD,M44D,Adult Social Care Operations,Supplies and Services,"2,485.00",Oct-23
Slough Borough Council,808148,BEST CHOICE CARE LTD,M44D,Adult Social Care Operations,Supplies and Services,"2,205.28",Oct-23
Slough Borough Council,808148,BEST CHOICE CARE LTD,M44D,Adult Social Care Operations,Supplies and Services,"1,067.64",Oct-23
Slough Borough Council,808148,BEST CHOICE CARE LTD,M44D,Adult Social Care Operations,Supplies and Services,"2,432.50",Oct-23
Slough Borough Council,808148,BEST CHOICE CARE LTD,M44D,Adult Social Care Operations,Supplies and Services,910.00,Oct-23
Slough Borough Council,808148,BEST CHOICE CARE LTD,M45C,Adult Social Care Operations,Supplies and Services,857.64,Oct-23
Slough Borough Council,808148,BEST CHOICE CARE LTD,M45C,Adult Social Care Operations,Supplies and Services,511.88,Oct-23
Slough Borough Council,808148,BEST CHOICE CARE LTD,M45C,Adult Social Care Operations,Supplies and Services,542.62,Oct-23
Slough Borough Council,808148,BEST CHOICE CARE LTD,M45C,Adult Social Care Operations,Supplies and Services,507.57,Oct-23
Slough Borough Council,808148,BEST CHOICE CARE LTD,M45C,Adult Social Care Operations,Supplies and Services,551.32,Oct-23
Slough Borough Council,808148,BEST CHOICE CARE LTD,M48C,Adult Social Care Operations,Supplies and Services,630.00,Oct-23
Slough Borough Council,808148,BEST CHOICE CARE LTD,M48C,Adult Social Care Operations,Supplies and Services,"2,660.56",Oct-23
Slough Borough Council,806987,Better Life Care Ltd,M44E,Adult Social Care Operations,Supplies and Services,"4,400.00",Oct-23
Slough Borough Council,808755,BHANDAL INVESTMENTS LTD,H205,Housing (People) Services,Supplies and Services,"1,650.00",Oct-23
Slough Borough Council,808755,BHANDAL INVESTMENTS LTD,H205,Housing (People) Services,Supplies and Services,"1,705.00",Oct-23
Slough Borough Council,1224,Big Yellow Self Storage,F253,Children & Families,Premises,644.00,Oct-23
Slough Borough Council,3611,Birch Assist Ltd T/A Bluebird Care (South Bucks & Slough),M44D,Adult Social Care Operations,Supplies and Services,"2,982.00",Oct-23
Slough Borough Council,803828,Blue Willow Day Nursery Ltd,F909,Children & Families,Supplies and Services,"2,002.96",Oct-23
Slough Borough Council,803828,Blue Willow Day Nursery Ltd,F909,Children & Families,Supplies and Services,"23,486.65",Oct-23
Slough Borough Council,803828,Blue Willow Day Nursery Ltd,F909,Children & Families,Supplies and Services,"2,002.96",Oct-23
Slough Borough Council,513,Bracknell Forest Borough Council,A01P,Public Health,Supplies and Services,"12,800.00",Oct-23
Slough Borough Council,805817,Bright World Nurseries,F909,Children & Families,Supplies and Services,"1,562.59",Oct-23
Slough Borough Council,805817,Bright World Nurseries,F909,Children & Families,Supplies and Services,"1,562.59",Oct-23
Slough Borough Council,805817,Bright World Nurseries,F909,Children & Families,Supplies and Services,"9,463.88",Oct-23
Slough Borough Council,3409,British Gas,J015,Place Management,Premises,"2,004.59",Oct-23
Slough Borough Council,617,British Telecommunications,P579,Capital,Capital Charges,"28,717.39",Oct-23
Slough Borough Council,617,British Telecommunications,D122,Place Strategy & Infrastructure,Supplies and Services,"2,128.24",Oct-23
Slough Borough Council,617,British Telecommunications,D122,Place Strategy & Infrastructure,Supplies and Services,"1,366.63",Oct-23
Slough Borough Council,617,British Telecommunications,D122,Place Strategy & Infrastructure,Supplies and Services,"1,999.72",Oct-23
Slough Borough Council,617,British Telecommunications,D122,Place Strategy & Infrastructure,Supplies and Services,"1,365.70",Oct-23
Slough Borough Council,617,British Telecommunications,D122,Place Strategy & Infrastructure,Supplies and Services,"1,497.63",Oct-23
Slough Borough Council,617,British Telecommunications,D122,Place Strategy & Infrastructure,Supplies and Services,"1,302.70",Oct-23
Slough Borough Council,504,Britwell Baptist Pre School,F909,Children & Families,Supplies and Services,"1,107.39",Oct-23
Slough Borough Council,504,Britwell Baptist Pre School,F909,Children & Families,Supplies and Services,"1,107.39",Oct-23
Slough Borough Council,504,Britwell Baptist Pre School,F909,Children & Families,Supplies and Services,"3,392.11",Oct-23
Slough Borough Council,741,Bunnies Pre-School,F909,Children & Families,Supplies and Services,"6,624.22",Oct-23
Slough Borough Council,804448,Bupa Care Homes (ANS) Ltd,M15D,Adult Social Care Operations,Supplies and Services,"5,858.74",Oct-23
Slough Borough Council,804448,Bupa Care Homes (ANS) Ltd,M15D,Adult Social Care Operations,Supplies and Services,"6,428.57",Oct-23
Slough Borough Council,2675,Burnham Lodge Ltd,A02E,Adult Social Care Operations,Supplies and Services,"9,600.00",Oct-23
Slough Borough Council,2675,Burnham Lodge Ltd,A02E,Adult Social Care Operations,Supplies and Services,"1,371.52",Oct-23
Slough Borough Council,2675,Burnham Lodge Ltd,A02E,Adult Social Care Operations,Supplies and Services,"5,142.90",Oct-23
Slough Borough Council,2675,Burnham Lodge Ltd,A02E,Adult Social Care Operations,Supplies and Services,"5,142.90",Oct-23
Slough Borough Council,2675,Burnham Lodge Ltd,A02E,Adult Social Care Operations,Supplies and Services,"2,571.47",Oct-23
Slough Borough Council,2675,Burnham Lodge Ltd,M15D,Adult Social Care Operations,Supplies and Services,"4,971.43",Oct-23
Slough Borough Council,2675,Burnham Lodge Ltd,M18C,Adult Social Care Operations,Supplies and Services,"5,052.16",Oct-23
Slough Borough Council,2675,Burnham Lodge Ltd,M25D,Adult Social Care Operations,Supplies and Services,"5,314.33",Oct-23
Slough Borough Council,2675,Burnham Lodge Ltd,M28C,Adult Social Care Operations,Supplies and Services,"3,428.57",Oct-23
Slough Borough Council,2675,Burnham Lodge Ltd,M28C,Adult Social Care Operations,Supplies and Services,"1,371.47",Oct-23
Slough Borough Council,2675,Burnham Lodge Ltd,M28C,Adult Social Care Operations,Supplies and Services,"2,571.43",Oct-23
Slough Borough Council,2675,Burnham Lodge Ltd,M28C,Adult Social Care Operations,Supplies and Services,857.14,Oct-23
Slough Borough Council,2675,Burnham Lodge Ltd,M28C,Adult Social Care Operations,Supplies and Services,"4,800.00",Oct-23
Slough Borough Council,2675,Burnham Lodge Ltd,M28C,Adult Social Care Operations,Supplies and Services,"5,314.29",Oct-23
Slough Borough Council,2675,Burnham Lodge Ltd,M28C,Adult Social Care Operations,Supplies and Services,"5,314.29",Oct-23
Slough Borough Council,629,C.H.O.I.C.E Limited,M26E,Adult Social Care Operations,Supplies and Services,"11,724.95",Oct-23
Slough Borough Council,629,C.H.O.I.C.E Limited,M26E,Adult Social Care Operations,Supplies and Services,"11,646.00",Oct-23
Slough Borough Council,629,C.H.O.I.C.E Limited,M26E,Adult Social Care Operations,Supplies and Services,"12,128.84",Oct-23
Slough Borough Council,629,C.H.O.I.C.E Limited,M26E,Adult Social Care Operations,Supplies and Services,"9,816.24",Oct-23
Slough Borough Council,629,C.H.O.I.C.E Limited,M26E,Adult Social Care Operations,Supplies and Services,"6,320.95",Oct-23
Slough Borough Council,629,C.H.O.I.C.E Limited,M26E,Adult Social Care Operations,Supplies and Services,"9,262.81",Oct-23
Slough Borough Council,629,C.H.O.I.C.E Limited,M26E,Adult Social Care Operations,Supplies and Services,"11,082.82",Oct-23
Slough Borough Council,629,C.H.O.I.C.E Limited,M26E,Adult Social Care Operations,Supplies and Services,"11,367.02",Oct-23
Slough Borough Council,629,C.H.O.I.C.E Limited,M26E,Adult Social Care Operations,Supplies and Services,"12,918.98",Oct-23
Slough Borough Council,629,C.H.O.I.C.E Limited,M42E,Adult Social Care Operations,Supplies and Services,"6,395.91",Oct-23
Slough Borough Council,629,C.H.O.I.C.E Limited,M42E,Adult Social Care Operations,Supplies and Services,"5,823.51",Oct-23
Slough Borough Council,629,C.H.O.I.C.E Limited,M42E,Adult Social Care Operations,Supplies and Services,"6,266.44",Oct-23
Slough Borough Council,629,C.H.O.I.C.E Limited,M42E,Adult Social Care Operations,Supplies and Services,"1,135.71",Oct-23
Slough Borough Council,629,C.H.O.I.C.E Limited,M44F,Adult Social Care Operations,Supplies and Services,"2,648.53",Oct-23
Slough Borough Council,629,C.H.O.I.C.E Limited,M26E,Adult Social Care Operations,External Receipts,-523.01,Oct-23
Slough Borough Council,629,C.H.O.I.C.E Limited,M26E,Adult Social Care Operations,External Receipts,-515.75,Oct-23
Slough Borough Council,737,Capita Business Services Ltd,H020,Finance & Commercial,Supplies and Services,"4,550.00",Oct-23
Slough Borough Council,737,Capita Business Services Ltd,B012,Finance & Commercial,Government Grants,"1,500.00",Oct-23
Slough Borough Council,808972,Cardea Healthcare,M44E,Adult Social Care Operations,Supplies and Services,668.24,Oct-23
Slough Borough Council,808972,Cardea Healthcare,M44E,Adult Social Care Operations,Supplies and Services,872.58,Oct-23
Slough Borough Council,808972,Cardea Healthcare,M44E,Adult Social Care Operations,Supplies and Services,872.58,Oct-23
Slough Borough Council,805717,Care Management Group Ltd,M26E,Adult Social Care Operations,Supplies and Services,"12,554.19",Oct-23
Slough Borough Council,805621,Care Staff Services,A07R,Adult Social Care Operations,Supplies and Services,"1,098.13",Oct-23
Slough Borough Council,805621,Care Staff Services,A07R,Adult Social Care Operations,Supplies and Services,835.63,Oct-23
Slough Borough Council,805621,Care Staff Services,A07R,Adult Social Care Operations,Supplies and Services,"2,065.00",Oct-23
Slough Borough Council,805621,Care Staff Services,A07R,Adult Social Care Operations,Supplies and Services,660.63,Oct-23
Slough Borough Council,805621,Care Staff Services,A07R,Adult Social Care Operations,Supplies and Services,"2,178.75",Oct-23
Slough Borough Council,805621,Care Staff Services,A07R,Adult Social Care Operations,Supplies and Services,971.25,Oct-23
Slough Borough Council,805621,Care Staff Services,A07R,Adult Social Care Operations,Supplies and Services,"1,828.75",Oct-23
Slough Borough Council,805621,Care Staff Services,A07R,Adult Social Care Operations,Supplies and Services,"1,120.00",Oct-23
Slough Borough Council,805621,Care Staff Services,M44C,Adult Social Care Operations,Supplies and Services,"2,205.00",Oct-23
Slough Borough Council,805621,Care Staff Services,M44C,Adult Social Care Operations,Supplies and Services,"1,715.00",Oct-23
Slough Borough Council,805621,Care Staff Services,M44C,Adult Social Care Operations,Supplies and Services,866.00,Oct-23
Slough Borough Council,805621,Care Staff Services,M44C,Adult Social Care Operations,Supplies and Services,"2,625.00",Oct-23
Slough Borough Council,805621,Care Staff Services,M44C,Adult Social Care Operations,Supplies and Services,"2,450.00",Oct-23
Slough Borough Council,805621,Care Staff Services,M44C,Adult Social Care Operations,Supplies and Services,735.00,Oct-23
Slough Borough Council,805621,Care Staff Services,M44C,Adult Social Care Operations,Supplies and Services,"1,120.00",Oct-23
Slough Borough Council,805621,Care Staff Services,M44C,Adult Social Care Operations,Supplies and Services,962.50,Oct-23
Slough Borough Council,805621,Care Staff Services,M44C,Adult Social Care Operations,Supplies and Services,980.00,Oct-23
Slough Borough Council,805621,Care Staff Services,M44C,Adult Social Care Operations,Supplies and Services,"2,331.00",Oct-23
Slough Borough Council,805621,Care Staff Services,M44C,Adult Social Care Operations,Supplies and Services,"1,102.50",Oct-23
Slough Borough Council,805621,Care Staff Services,M44C,Adult Social Care Operations,Supplies and Services,735.00,Oct-23
Slough Borough Council,805621,Care Staff Services,M44C,Adult Social Care Operations,Supplies and Services,906.50,Oct-23
Slough Borough Council,805621,Care Staff Services,M44C,Adult Social Care Operations,Supplies and Services,857.50,Oct-23
Slough Borough Council,805621,Care Staff Services,M44C,Adult Social Care Operations,Supplies and Services,906.50,Oct-23
Slough Borough Council,805621,Care Staff Services,M44C,Adult Social Care Operations,Supplies and Services,"2,205.00",Oct-23
Slough Borough Council,805621,Care Staff Services,M44C,Adult Social Care Operations,Supplies and Services,"2,590.00",Oct-23
Slough Borough Council,805621,Care Staff Services,M44C,Adult Social Care Operations,Supplies and Services,"1,330.00",Oct-23
Slough Borough Council,805621,Care Staff Services,M44C,Adult Social Care Operations,Supplies and Services,906.50,Oct-23
Slough Borough Council,805621,Care Staff Services,M44C,Adult Social Care Operations,Supplies and Services,980.00,Oct-23
Slough Borough Council,805621,Care Staff Services,M44C,Adult Social Care Operations,Supplies and Services,857.50,Oct-23
Slough Borough Council,805621,Care Staff Services,M44C,Adult Social Care Operations,Supplies and Services,857.50,Oct-23
Slough Borough Council,805621,Care Staff Services,M44C,Adult Social Care Operations,Supplies and Services,656.25,Oct-23
Slough Borough Council,805621,Care Staff Services,M44C,Adult Social Care Operations,Supplies and Services,980.00,Oct-23
Slough Borough Council,805621,Care Staff Services,M44C,Adult Social Care Operations,Supplies and Services,835.63,Oct-23
Slough Borough Council,805621,Care Staff Services,M44C,Adult Social Care Operations,Supplies and Services,"2,205.00",Oct-23
Slough Borough Council,805621,Care Staff Services,M44C,Adult Social Care Operations,Supplies and Services,752.50,Oct-23
Slough Borough Council,805621,Care Staff Services,M44C,Adult Social Care Operations,Supplies and Services,"2,030.00",Oct-23
Slough Borough Council,805621,Care Staff Services,M44C,Adult Social Care Operations,Supplies and Services,"2,205.00",Oct-23
Slough Borough Council,805621,Care Staff Services,M44C,Adult Social Care Operations,Supplies and Services,518.00,Oct-23
Slough Borough Council,805621,Care Staff Services,M44C,Adult Social Care Operations,Supplies and Services,612.50,Oct-23
Slough Borough Council,805621,Care Staff Services,M44C,Adult Social Care Operations,Supplies and Services,"1,225.00",Oct-23
Slough Borough Council,805621,Care Staff Services,M44C,Adult Social Care Operations,Supplies and Services,536.50,Oct-23
Slough Borough Council,805621,Care Staff Services,M44C,Adult Social Care Operations,Supplies and Services,"2,520.00",Oct-23
Slough Borough Council,805621,Care Staff Services,M44C,Adult Social Care Operations,Supplies and Services,735.00,Oct-23
Slough Borough Council,805621,Care Staff Services,M44C,Adult Social Care Operations,Supplies and Services,"1,102.50",Oct-23
Slough Borough Council,805621,Care Staff Services,M44C,Adult Social Care Operations,Supplies and Services,857.50,Oct-23
Slough Borough Council,805621,Care Staff Services,M44C,Adult Social Care Operations,Supplies and Services,"2,205.00",Oct-23
Slough Borough Council,805621,Care Staff Services,M44C,Adult Social Care Operations,Supplies and Services,560.00,Oct-23
Slough Borough Council,805621,Care Staff Services,M44C,Adult Social Care Operations,Supplies and Services,"1,813.00",Oct-23
Slough Borough Council,805621,Care Staff Services,M44C,Adult Social Care Operations,Supplies and Services,777.00,Oct-23
Slough Borough Council,805621,Care Staff Services,M44C,Adult Social Care Operations,Supplies and Services,507.50,Oct-23
Slough Borough Council,805621,Care Staff Services,M44C,Adult Social Care Operations,Supplies and Services,612.50,Oct-23
Slough Borough Council,805621,Care Staff Services,M44C,Adult Social Care Operations,Supplies and Services,"1,813.00",Oct-23
Slough Borough Council,805621,Care Staff Services,M44C,Adult Social Care Operations,Supplies and Services,857.50,Oct-23
Slough Borough Council,805621,Care Staff Services,M44C,Adult Social Care Operations,Supplies and Services,875.00,Oct-23
Slough Borough Council,805621,Care Staff Services,M44D,Adult Social Care Operations,Supplies and Services,612.50,Oct-23
Slough Borough Council,805621,Care Staff Services,M44D,Adult Social Care Operations,Supplies and Services,857.50,Oct-23
Slough Borough Council,805621,Care Staff Services,M44D,Adult Social Care Operations,Supplies and Services,857.50,Oct-23
Slough Borough Council,805621,Care Staff Services,M44D,Adult Social Care Operations,Supplies and Services,"1,225.00",Oct-23
Slough Borough Council,805621,Care Staff Services,M44D,Adult Social Care Operations,Supplies and Services,"1,365.00",Oct-23
Slough Borough Council,805621,Care Staff Services,M44D,Adult Social Care Operations,Supplies and Services,"1,758.75",Oct-23
Slough Borough Council,805621,Care Staff Services,M44D,Adult Social Care Operations,Supplies and Services,518.00,Oct-23
Slough Borough Council,805621,Care Staff Services,M44D,Adult Social Care Operations,Supplies and Services,612.50,Oct-23
Slough Borough Council,805621,Care Staff Services,M44D,Adult Social Care Operations,Supplies and Services,"2,205.00",Oct-23
Slough Borough Council,805621,Care Staff Services,M44D,Adult Social Care Operations,Supplies and Services,"2,065.00",Oct-23
Slough Borough Council,805621,Care Staff Services,M44D,Adult Social Care Operations,Supplies and Services,980.00,Oct-23
Slough Borough Council,805621,Care Staff Services,M44D,Adult Social Care Operations,Supplies and Services,700.00,Oct-23
Slough Borough Council,805621,Care Staff Services,M44D,Adult Social Care Operations,Supplies and Services,"1,610.00",Oct-23
Slough Borough Council,805621,Care Staff Services,M44D,Adult Social Care Operations,Supplies and Services,832.50,Oct-23
Slough Borough Council,805621,Care Staff Services,M44E,Adult Social Care Operations,Supplies and Services,787.50,Oct-23
Slough Borough Council,805621,Care Staff Services,M44E,Adult Social Care Operations,Supplies and Services,787.50,Oct-23
Slough Borough Council,805621,Care Staff Services,M44F,Adult Social Care Operations,Supplies and Services,"1,120.00",Oct-23
Slough Borough Council,805621,Care Staff Services,M44F,Adult Social Care Operations,Supplies and Services,666.00,Oct-23
Slough Borough Council,805621,Care Staff Services,M44F,Adult Social Care Operations,Supplies and Services,"2,590.00",Oct-23
Slough Borough Council,805621,Care Staff Services,M44F,Adult Social Care Operations,Supplies and Services,888.00,Oct-23
Slough Borough Council,805621,Care Staff Services,M44F,Adult Social Care Operations,Supplies and Services,560.00,Oct-23
Slough Borough Council,805621,Care Staff Services,M44F,Adult Social Care Operations,Supplies and Services,"1,382.50",Oct-23
Slough Borough Council,805621,Care Staff Services,M44F,Adult Social Care Operations,Supplies and Services,"1,105.38",Oct-23
Slough Borough Council,805621,Care Staff Services,M44F,Adult Social Care Operations,Supplies and Services,999.00,Oct-23
Slough Borough Council,805621,Care Staff Services,M44F,Adult Social Care Operations,Supplies and Services,740.00,Oct-23
Slough Borough Council,805621,Care Staff Services,M45C,Adult Social Care Operations,Supplies and Services,896.88,Oct-23
Slough Borough Council,805621,Care Staff Services,M45C,Adult Social Care Operations,Supplies and Services,564.38,Oct-23
Slough Borough Council,805621,Care Staff Services,M45C,Adult Social Care Operations,Supplies and Services,"1,155.00",Oct-23
Slough Borough Council,805621,Care Staff Services,M45C,Adult Social Care Operations,Supplies and Services,673.75,Oct-23
Slough Borough Council,805621,Care Staff Services,M45C,Adult Social Care Operations,Supplies and Services,603.75,Oct-23
Slough Borough Council,805621,Care Staff Services,M45C,Adult Social Care Operations,Supplies and Services,"2,205.00",Oct-23
Slough Borough Council,805621,Care Staff Services,M45C,Adult Social Care Operations,Supplies and Services,"1,942.50",Oct-23
Slough Borough Council,805621,Care Staff Services,M45C,Adult Social Care Operations,Supplies and Services,-866.25,Oct-23
Slough Borough Council,805621,Care Staff Services,M45C,Adult Social Care Operations,Supplies and Services,"2,730.00",Oct-23
Slough Borough Council,805621,Care Staff Services,M45C,Adult Social Care Operations,Supplies and Services,888.13,Oct-23
Slough Borough Council,805621,Care Staff Services,M45C,Adult Social Care Operations,Supplies and Services,"1,575.00",Oct-23
Slough Borough Council,805621,Care Staff Services,M45C,Adult Social Care Operations,Supplies and Services,595.00,Oct-23
Slough Borough Council,805621,Care Staff Services,M45C,Adult Social Care Operations,Supplies and Services,962.50,Oct-23
Slough Borough Council,805621,Care Staff Services,M45C,Adult Social Care Operations,Supplies and Services,612.50,Oct-23
Slough Borough Council,805621,Care Staff Services,M45C,Adult Social Care Operations,Supplies and Services,866.25,Oct-23
Slough Borough Council,805621,Care Staff Services,M45C,Adult Social Care Operations,Supplies and Services,538.13,Oct-23
Slough Borough Council,805621,Care Staff Services,M45C,Adult Social Care Operations,Supplies and Services,783.13,Oct-23
Slough Borough Council,805621,Care Staff Services,M45C,Adult Social Care Operations,Supplies and Services,621.25,Oct-23
Slough Borough Council,805621,Care Staff Services,M45C,Adult Social Care Operations,Supplies and Services,708.75,Oct-23
Slough Borough Council,805621,Care Staff Services,M45C,Adult Social Care Operations,Supplies and Services,"2,205.00",Oct-23
Slough Borough Council,805621,Care Staff Services,M48C,Adult Social Care Operations,Supplies and Services,"2,205.00",Oct-23
Slough Borough Council,808149,Care Staff Services Support,M44F,Adult Social Care Operations,Supplies and Services,"2,002.25",Oct-23
Slough Borough Council,808149,Care Staff Services Support,M44F,Adult Social Care Operations,Supplies and Services,"5,414.17",Oct-23
Slough Borough Council,808149,Care Staff Services Support,M44F,Adult Social Care Operations,Supplies and Services,"4,828.83",Oct-23
Slough Borough Council,1162,Care Uk Community Partnership Ltd,A02E,Adult Social Care Operations,Supplies and Services,"48,139.00",Oct-23
Slough Borough Council,1162,Care Uk Community Partnership Ltd,A03E,Adult Social Care Operations,Supplies and Services,"3,842.56",Oct-23
Slough Borough Council,1162,Care Uk Community Partnership Ltd,M15D,Adult Social Care Operations,Supplies and Services,"4,090.52",Oct-23
Slough Borough Council,1162,Care Uk Community Partnership Ltd,M15D,Adult Social Care Operations,Supplies and Services,"4,090.52",Oct-23
Slough Borough Council,1162,Care Uk Community Partnership Ltd,M15D,Adult Social Care Operations,Supplies and Services,"4,090.52",Oct-23
Slough Borough Council,1162,Care Uk Community Partnership Ltd,M15D,Adult Social Care Operations,Supplies and Services,"4,090.52",Oct-23
Slough Borough Council,1162,Care Uk Community Partnership Ltd,M15D,Adult Social Care Operations,Supplies and Services,"4,090.52",Oct-23
Slough Borough Council,1162,Care Uk Community Partnership Ltd,M15D,Adult Social Care Operations,Supplies and Services,"4,218.60",Oct-23
Slough Borough Council,1162,Care Uk Community Partnership Ltd,M15F,Adult Social Care Operations,Supplies and Services,"4,090.52",Oct-23
Slough Borough Council,1162,Care Uk Community Partnership Ltd,M15F,Adult Social Care Operations,Supplies and Services,"4,090.52",Oct-23
Slough Borough Council,1162,Care Uk Community Partnership Ltd,M15F,Adult Social Care Operations,Supplies and Services,"4,090.52",Oct-23
Slough Borough Council,1162,Care Uk Community Partnership Ltd,M17C,Adult Social Care Operations,Supplies and Services,"5,088.40",Oct-23
Slough Borough Council,1162,Care Uk Community Partnership Ltd,M17C,Adult Social Care Operations,Supplies and Services,"3,969.72",Oct-23
Slough Borough Council,1162,Care Uk Community Partnership Ltd,M17C,Adult Social Care Operations,Supplies and Services,"4,090.52",Oct-23
Slough Borough Council,1162,Care Uk Community Partnership Ltd,M17C,Adult Social Care Operations,Supplies and Services,"4,218.60",Oct-23
Slough Borough Council,1162,Care Uk Community Partnership Ltd,M17C,Adult Social Care Operations,Supplies and Services,"4,218.60",Oct-23
Slough Borough Council,1162,Care Uk Community Partnership Ltd,M17C,Adult Social Care Operations,Supplies and Services,"4,218.60",Oct-23
Slough Borough Council,1162,Care Uk Community Partnership Ltd,M18C,Adult Social Care Operations,Supplies and Services,"4,090.52",Oct-23
Slough Borough Council,1162,Care Uk Community Partnership Ltd,M18C,Adult Social Care Operations,Supplies and Services,"4,090.52",Oct-23
Slough Borough Council,1162,Care Uk Community Partnership Ltd,M18C,Adult Social Care Operations,Supplies and Services,"4,090.52",Oct-23
Slough Borough Council,1162,Care Uk Community Partnership Ltd,M18C,Adult Social Care Operations,Supplies and Services,"4,090.52",Oct-23
Slough Borough Council,1162,Care Uk Community Partnership Ltd,M18C,Adult Social Care Operations,Supplies and Services,"4,090.52",Oct-23
Slough Borough Council,1162,Care Uk Community Partnership Ltd,M18C,Adult Social Care Operations,Supplies and Services,"4,218.60",Oct-23
Slough Borough Council,1162,Care Uk Community Partnership Ltd,M18C,Adult Social Care Operations,Supplies and Services,"4,090.52",Oct-23
Slough Borough Council,1162,Care Uk Community Partnership Ltd,M18C,Adult Social Care Operations,Supplies and Services,"4,090.52",Oct-23
Slough Borough Council,1162,Care Uk Community Partnership Ltd,M18C,Adult Social Care Operations,Supplies and Services,"4,090.52",Oct-23
Slough Borough Council,1162,Care Uk Community Partnership Ltd,M18C,Adult Social Care Operations,Supplies and Services,"4,218.60",Oct-23
Slough Borough Council,1162,Care Uk Community Partnership Ltd,M18C,Adult Social Care Operations,Supplies and Services,"4,218.60",Oct-23
Slough Borough Council,1162,Care Uk Community Partnership Ltd,M18C,Adult Social Care Operations,Supplies and Services,"4,090.52",Oct-23
Slough Borough Council,1162,Care Uk Community Partnership Ltd,M18C,Adult Social Care Operations,Supplies and Services,"4,090.52",Oct-23
Slough Borough Council,1162,Care Uk Community Partnership Ltd,M18C,Adult Social Care Operations,Supplies and Services,"4,090.52",Oct-23
Slough Borough Council,1162,Care Uk Community Partnership Ltd,M18C,Adult Social Care Operations,Supplies and Services,"4,218.60",Oct-23
Slough Borough Council,1162,Care Uk Community Partnership Ltd,M18C,Adult Social Care Operations,Supplies and Services,"4,090.52",Oct-23
Slough Borough Council,1162,Care Uk Community Partnership Ltd,M18C,Adult Social Care Operations,Supplies and Services,"4,090.52",Oct-23
Slough Borough Council,1162,Care Uk Community Partnership Ltd,M18C,Adult Social Care Operations,Supplies and Services,"4,090.52",Oct-23
Slough Borough Council,1162,Care Uk Community Partnership Ltd,M18C,Adult Social Care Operations,Supplies and Services,"4,090.52",Oct-23
Slough Borough Council,1162,Care Uk Community Partnership Ltd,M18C,Adult Social Care Operations,Supplies and Services,"3,969.72",Oct-23
Slough Borough Council,1162,Care Uk Community Partnership Ltd,M18C,Adult Social Care Operations,Supplies and Services,"4,218.60",Oct-23
Slough Borough Council,1162,Care Uk Community Partnership Ltd,M18C,Adult Social Care Operations,Supplies and Services,"4,090.52",Oct-23
Slough Borough Council,1162,Care Uk Community Partnership Ltd,M18C,Adult Social Care Operations,Supplies and Services,"4,090.52",Oct-23
Slough Borough Council,1162,Care Uk Community Partnership Ltd,M18C,Adult Social Care Operations,Supplies and Services,"-28,633.64",Oct-23
Slough Borough Council,1162,Care Uk Community Partnership Ltd,M18C,Adult Social Care Operations,Supplies and Services,"4,090.52",Oct-23
Slough Borough Council,1162,Care Uk Community Partnership Ltd,M18C,Adult Social Care Operations,Supplies and Services,"4,218.60",Oct-23
Slough Borough Council,1162,Care Uk Community Partnership Ltd,M18C,Adult Social Care Operations,Supplies and Services,"4,090.52",Oct-23
Slough Borough Council,1162,Care Uk Community Partnership Ltd,M18C,Adult Social Care Operations,Supplies and Services,"4,090.52",Oct-23
Slough Borough Council,1162,Care Uk Community Partnership Ltd,M18C,Adult Social Care Operations,Supplies and Services,"4,090.52",Oct-23
Slough Borough Council,1162,Care Uk Community Partnership Ltd,M18C,Adult Social Care Operations,Supplies and Services,"4,090.52",Oct-23
Slough Borough Council,1162,Care Uk Community Partnership Ltd,M18C,Adult Social Care Operations,Supplies and Services,"4,090.52",Oct-23
Slough Borough Council,1162,Care Uk Community Partnership Ltd,M18C,Adult Social Care Operations,Supplies and Services,"4,218.60",Oct-23
Slough Borough Council,1162,Care Uk Community Partnership Ltd,M18C,Adult Social Care Operations,Supplies and Services,"4,090.52",Oct-23
Slough Borough Council,1162,Care Uk Community Partnership Ltd,M18C,Adult Social Care Operations,Supplies and Services,"4,090.52",Oct-23
Slough Borough Council,1162,Care Uk Community Partnership Ltd,M18C,Adult Social Care Operations,Supplies and Services,"4,090.52",Oct-23
Slough Borough Council,1162,Care Uk Community Partnership Ltd,M25C,Adult Social Care Operations,Supplies and Services,"5,810.29",Oct-23
Slough Borough Council,1162,Care Uk Community Partnership Ltd,M25C,Adult Social Care Operations,Supplies and Services,"5,622.86",Oct-23
Slough Borough Council,1162,Care Uk Community Partnership Ltd,M25C,Adult Social Care Operations,Supplies and Services,"5,810.29",Oct-23
Slough Borough Council,1162,Care Uk Community Partnership Ltd,M25C,Adult Social Care Operations,Supplies and Services,"3,703.00",Oct-23
Slough Borough Council,1162,Care Uk Community Partnership Ltd,M25C,Adult Social Care Operations,Supplies and Services,"24,327.80",Oct-23
Slough Borough Council,1162,Care Uk Community Partnership Ltd,M25C,Adult Social Care Operations,Supplies and Services,"3,703.00",Oct-23
Slough Borough Council,1162,Care Uk Community Partnership Ltd,M25C,Adult Social Care Operations,Supplies and Services,"3,703.00",Oct-23
Slough Borough Council,1162,Care Uk Community Partnership Ltd,M26E,Adult Social Care Operations,Supplies and Services,"4,090.52",Oct-23
Slough Borough Council,1162,Care Uk Community Partnership Ltd,M26E,Adult Social Care Operations,Supplies and Services,"4,090.52",Oct-23
Slough Borough Council,1162,Care Uk Community Partnership Ltd,M27C,Adult Social Care Operations,Supplies and Services,"5,142.86",Oct-23
Slough Borough Council,1162,Care Uk Community Partnership Ltd,M27C,Adult Social Care Operations,Supplies and Services,"5,314.29",Oct-23
Slough Borough Council,1162,Care Uk Community Partnership Ltd,M27C,Adult Social Care Operations,Supplies and Services,"5,314.29",Oct-23
Slough Borough Council,1162,Care Uk Community Partnership Ltd,M27C,Adult Social Care Operations,Supplies and Services,"3,703.00",Oct-23
Slough Borough Council,1162,Care Uk Community Partnership Ltd,M27C,Adult Social Care Operations,Supplies and Services,"3,703.00",Oct-23
Slough Borough Council,1162,Care Uk Community Partnership Ltd,M27C,Adult Social Care Operations,Supplies and Services,"3,380.88",Oct-23
Slough Borough Council,1162,Care Uk Community Partnership Ltd,M27C,Adult Social Care Operations,Supplies and Services,"3,703.00",Oct-23
Slough Borough Council,1162,Care Uk Community Partnership Ltd,M27C,Adult Social Care Operations,Supplies and Services,"3,703.00",Oct-23
Slough Borough Council,1162,Care Uk Community Partnership Ltd,M27C,Adult Social Care Operations,Supplies and Services,"3,380.88",Oct-23
Slough Borough Council,1162,Care Uk Community Partnership Ltd,M27C,Adult Social Care Operations,Supplies and Services,"23,666.16",Oct-23
Slough Borough Council,1162,Care Uk Community Partnership Ltd,M27C,Adult Social Care Operations,Supplies and Services,"3,380.88",Oct-23
Slough Borough Council,1162,Care Uk Community Partnership Ltd,M27C,Adult Social Care Operations,Supplies and Services,"3,380.88",Oct-23
Slough Borough Council,1162,Care Uk Community Partnership Ltd,M27C,Adult Social Care Operations,Supplies and Services,"3,380.88",Oct-23
Slough Borough Council,1162,Care Uk Community Partnership Ltd,M27C,Adult Social Care Operations,Supplies and Services,"3,380.88",Oct-23
Slough Borough Council,1162,Care Uk Community Partnership Ltd,M27C,Adult Social Care Operations,Supplies and Services,"3,703.00",Oct-23
Slough Borough Council,1162,Care Uk Community Partnership Ltd,M27C,Adult Social Care Operations,Supplies and Services,"3,703.00",Oct-23
Slough Borough Council,1162,Care Uk Community Partnership Ltd,M27C,Adult Social Care Operations,Supplies and Services,"3,703.00",Oct-23
Slough Borough Council,1162,Care Uk Community Partnership Ltd,M27C,Adult Social Care Operations,Supplies and Services,"3,703.00",Oct-23
Slough Borough Council,1162,Care Uk Community Partnership Ltd,M27C,Adult Social Care Operations,Supplies and Services,"3,703.00",Oct-23
Slough Borough Council,1162,Care Uk Community Partnership Ltd,M27C,Adult Social Care Operations,Supplies and Services,"3,380.88",Oct-23
Slough Borough Council,1162,Care Uk Community Partnership Ltd,M27F,Adult Social Care Operations,Supplies and Services,"3,380.88",Oct-23
Slough Borough Council,809100,Careful Choices,M44D,Adult Social Care Operations,Supplies and Services,"1,124.00",Oct-23
Slough Borough Council,809100,Careful Choices,M44D,Adult Social Care Operations,Supplies and Services,"1,124.00",Oct-23
Slough Borough Council,809100,Careful Choices,M44D,Adult Social Care Operations,Supplies and Services,"1,124.00",Oct-23
Slough Borough Council,809100,Careful Choices,M44D,Adult Social Care Operations,Supplies and Services,"1,124.00",Oct-23
Slough Borough Council,809100,Careful Choices,M44D,Adult Social Care Operations,Supplies and Services,"1,124.00",Oct-23
Slough Borough Council,809100,Careful Choices,M44D,Adult Social Care Operations,Supplies and Services,"1,124.00",Oct-23
Slough Borough Council,809100,Careful Choices,M44D,Adult Social Care Operations,Supplies and Services,"1,124.00",Oct-23
Slough Borough Council,809100,Careful Choices,M44D,Adult Social Care Operations,Supplies and Services,"1,124.00",Oct-23
Slough Borough Council,809100,Careful Choices,M44D,Adult Social Care Operations,Supplies and Services,"1,124.00",Oct-23
Slough Borough Council,809100,Careful Choices,M44D,Adult Social Care Operations,Supplies and Services,"1,124.00",Oct-23
Slough Borough Council,809100,Careful Choices,M44D,Adult Social Care Operations,Supplies and Services,"1,124.00",Oct-23
Slough Borough Council,809100,Careful Choices,M44D,Adult Social Care Operations,Supplies and Services,"1,124.00",Oct-23
Slough Borough Council,1497,Caroline Bridges DOP Limited,C322,Community,Supplies and Services,"1,438.50",Oct-23
Slough Borough Council,1910,Carousel Buses Ltd,D512,Place Strategy & Infrastructure,Supplies and Services,"7,817.97",Oct-23
Slough Borough Council,1910,Carousel Buses Ltd,D512,Place Strategy & Infrastructure,Supplies and Services,"5,796.40",Oct-23
Slough Borough Council,1910,Carousel Buses Ltd,D512,Place Strategy & Infrastructure,Supplies and Services,"1,613.43",Oct-23
Slough Borough Council,1910,Carousel Buses Ltd,D512,Place Strategy & Infrastructure,Supplies and Services,"7,112.89",Oct-23
Slough Borough Council,1910,Carousel Buses Ltd,D512,Place Strategy & Infrastructure,Supplies and Services,"6,066.19",Oct-23
Slough Borough Council,804413,Castle Water,B060,Business Services,Premises,989.19,Oct-23
Slough Borough Council,804413,Castle Water,B060,Business Services,Premises,-503.58,Oct-23
Slough Borough Council,804413,Castle Water,C019,Place Operations,Premises,663.22,Oct-23
Slough Borough Council,804413,Castle Water,D900,Place Operations,Premises,"1,048.85",Oct-23
Slough Borough Council,804413,Castle Water,H216,Community,Supplies and Services,"5,834.06",Oct-23
Slough Borough Council,418,Castleview School,E620,Children & Families,Supplies and Services,"41,475.76",Oct-23
Slough Borough Council,808307,CDW Limited,B282,Digital and Strategic IT,Supplies and Services,"-18,812.29",Oct-23
Slough Borough Council,808307,CDW Limited,B282,Digital and Strategic IT,Supplies and Services,928.24,Oct-23
Slough Borough Council,808307,CDW Limited,B282,Digital and Strategic IT,Supplies and Services,"18,812.29",Oct-23
Slough Borough Council,808307,CDW Limited,B282,Digital and Strategic IT,Supplies and Services,"18,812.29",Oct-23
Slough Borough Council,3609,Centurion Healthcare Ltd,M26E,Adult Social Care Operations,Supplies and Services,"6,514.38",Oct-23
Slough Borough Council,809124,Chalet Homes Ltd,H205,Housing (People) Services,Supplies and Services,"1,840.00",Oct-23
Slough Borough Council,809124,Chalet Homes Ltd,H205,Housing (People) Services,Supplies and Services,"2,480.00",Oct-23
Slough Borough Council,809124,Chalet Homes Ltd,H205,Housing (People) Services,Supplies and Services,"2,400.00",Oct-23
Slough Borough Council,2892,Chalfont Lodge,M15D,Adult Social Care Operations,Supplies and Services,"5,978.57",Oct-23
Slough Borough Council,2892,Chalfont Lodge,M15F,Adult Social Care Operations,Supplies and Services,"8,857.14",Oct-23
Slough Borough Council,2608,Chandos Lodge Nursing Home,M18C,Adult Social Care Operations,Supplies and Services,"4,400.00",Oct-23
Slough Borough Council,1877,Chelsie Innes,C322,Community,Supplies and Services,"3,535.00",Oct-23
Slough Borough Council,1877,Chelsie Innes,C322,Community,Supplies and Services,"1,750.00",Oct-23
Slough Borough Council,3114,Cherry Trees Day Nursery,F909,Children & Families,Supplies and Services,"4,000.29",Oct-23
Slough Borough Council,3114,Cherry Trees Day Nursery,F909,Children & Families,Supplies and Services,"4,000.29",Oct-23
Slough Borough Council,3114,Cherry Trees Day Nursery,F909,Children & Families,Supplies and Services,"28,981.07",Oct-23
Slough Borough Council,2871,Cherry Trees Residential Care,M27F,Adult Social Care Operations,Supplies and Services,"2,435.71",Oct-23
Slough Borough Council,2871,Cherry Trees Residential Care,M42F,Adult Social Care Operations,Supplies and Services,"1,660.71",Oct-23
Slough Borough Council,2871,Cherry Trees Residential Care,M42F,Adult Social Care Operations,Supplies and Services,"2,491.07",Oct-23
Slough Borough Council,803495,Christchurch Court Ltd,M15D,Adult Social Care Operations,Supplies and Services,"9,214.35",Oct-23
Slough Borough Council,807491,Cippenham School,E620,Children & Families,Supplies and Services,"16,125.00",Oct-23
Slough Borough Council,807491,Cippenham School,B297,Finance & Commercial,Government Grants,"2,003.62",Oct-23
Slough Borough Council,806550,City Homecare Ltd,A07R,Adult Social Care Operations,Supplies and Services,800.63,Oct-23
Slough Borough Council,806550,City Homecare Ltd,A07R,Adult Social Care Operations,Supplies and Services,"2,205.00",Oct-23
Slough Borough Council,806550,City Homecare Ltd,A07R,Adult Social Care Operations,Supplies and Services,805.00,Oct-23
Slough Borough Council,806550,City Homecare Ltd,A07R,Adult Social Care Operations,Supplies and Services,"1,102.50",Oct-23
Slough Borough Council,806550,City Homecare Ltd,A07R,Adult Social Care Operations,Supplies and Services,"1,102.50",Oct-23
Slough Borough Council,806550,City Homecare Ltd,A07R,Adult Social Care Operations,Supplies and Services,"1,102.50",Oct-23
Slough Borough Council,806550,City Homecare Ltd,A07R,Adult Social Care Operations,Supplies and Services,"2,082.50",Oct-23
Slough Borough Council,806550,City Homecare Ltd,M44C,Adult Social Care Operations,Supplies and Services,"1,102.50",Oct-23
Slough Borough Council,806550,City Homecare Ltd,M44C,Adult Social Care Operations,Supplies and Services,660.63,Oct-23
Slough Borough Council,806550,City Homecare Ltd,M44C,Adult Social Care Operations,Supplies and Services,599.38,Oct-23
Slough Borough Council,806550,City Homecare Ltd,M44C,Adult Social Care Operations,Supplies and Services,612.50,Oct-23
Slough Borough Council,806550,City Homecare Ltd,M44C,Adult Social Care Operations,Supplies and Services,"1,330.00",Oct-23
Slough Borough Council,806550,City Homecare Ltd,M44C,Adult Social Care Operations,Supplies and Services,"1,820.00",Oct-23
Slough Borough Council,806550,City Homecare Ltd,M44C,Adult Social Care Operations,Supplies and Services,735.00,Oct-23
Slough Borough Council,806550,City Homecare Ltd,M44C,Adult Social Care Operations,Supplies and Services,892.50,Oct-23
Slough Borough Council,806550,City Homecare Ltd,M44C,Adult Social Care Operations,Supplies and Services,"1,715.00",Oct-23
Slough Borough Council,806550,City Homecare Ltd,M44C,Adult Social Care Operations,Supplies and Services,857.50,Oct-23
Slough Borough Council,806550,City Homecare Ltd,M44C,Adult Social Care Operations,Supplies and Services,"1,102.50",Oct-23
Slough Borough Council,806550,City Homecare Ltd,M44C,Adult Social Care Operations,Supplies and Services,857.50,Oct-23
Slough Borough Council,806550,City Homecare Ltd,M44C,Adult Social Care Operations,Supplies and Services,"1,960.00",Oct-23
Slough Borough Council,806550,City Homecare Ltd,M44C,Adult Social Care Operations,Supplies and Services,612.50,Oct-23
Slough Borough Council,806550,City Homecare Ltd,M44C,Adult Social Care Operations,Supplies and Services,857.50,Oct-23
Slough Borough Council,806550,City Homecare Ltd,M44C,Adult Social Care Operations,Supplies and Services,612.50,Oct-23
Slough Borough Council,806550,City Homecare Ltd,M44C,Adult Social Care Operations,Supplies and Services,"2,450.00",Oct-23
Slough Borough Council,806550,City Homecare Ltd,M44C,Adult Social Care Operations,Supplies and Services,"1,225.00",Oct-23
Slough Borough Council,806550,City Homecare Ltd,M44C,Adult Social Care Operations,Supplies and Services,"1,102.50",Oct-23
Slough Borough Council,806550,City Homecare Ltd,M44C,Adult Social Care Operations,Supplies and Services,"1,225.00",Oct-23
Slough Borough Council,806550,City Homecare Ltd,M44C,Adult Social Care Operations,Supplies and Services,"1,225.00",Oct-23
Slough Borough Council,806550,City Homecare Ltd,M44C,Adult Social Care Operations,Supplies and Services,980.00,Oct-23
Slough Borough Council,806550,City Homecare Ltd,M44C,Adult Social Care Operations,Supplies and Services,525.00,Oct-23
Slough Borough Council,806550,City Homecare Ltd,M44C,Adult Social Care Operations,Supplies and Services,726.25,Oct-23
Slough Borough Council,806550,City Homecare Ltd,M44C,Adult Social Care Operations,Supplies and Services,682.50,Oct-23
Slough Borough Council,806550,City Homecare Ltd,M44C,Adult Social Care Operations,Supplies and Services,826.88,Oct-23
Slough Borough Council,806550,City Homecare Ltd,M44C,Adult Social Care Operations,Supplies and Services,"1,960.00",Oct-23
Slough Borough Council,806550,City Homecare Ltd,M44C,Adult Social Care Operations,Supplies and Services,"1,128.75",Oct-23
Slough Borough Council,806550,City Homecare Ltd,M44D,Adult Social Care Operations,Supplies and Services,"1,960.00",Oct-23
Slough Borough Council,806550,City Homecare Ltd,M44D,Adult Social Care Operations,Supplies and Services,560.00,Oct-23
Slough Borough Council,806550,City Homecare Ltd,M44D,Adult Social Care Operations,Supplies and Services,735.00,Oct-23
Slough Borough Council,806550,City Homecare Ltd,M44D,Adult Social Care Operations,Supplies and Services,980.00,Oct-23
Slough Borough Council,806550,City Homecare Ltd,M44D,Adult Social Care Operations,Supplies and Services,"2,940.00",Oct-23
Slough Borough Council,806550,City Homecare Ltd,M44D,Adult Social Care Operations,Supplies and Services,945.00,Oct-23
Slough Borough Council,806550,City Homecare Ltd,M44D,Adult Social Care Operations,Supplies and Services,980.00,Oct-23
Slough Borough Council,806550,City Homecare Ltd,M44D,Adult Social Care Operations,Supplies and Services,542.50,Oct-23
Slough Borough Council,806550,City Homecare Ltd,M44D,Adult Social Care Operations,Supplies and Services,717.50,Oct-23
Slough Borough Council,806550,City Homecare Ltd,M44E,Adult Social Care Operations,Supplies and Services,630.00,Oct-23
Slough Borough Council,806550,City Homecare Ltd,M44E,Adult Social Care Operations,Supplies and Services,735.00,Oct-23
Slough Borough Council,806550,City Homecare Ltd,M44F,Adult Social Care Operations,Supplies and Services,"1,627.50",Oct-23
Slough Borough Council,806550,City Homecare Ltd,M44F,Adult Social Care Operations,Supplies and Services,840.00,Oct-23
Slough Borough Council,806550,City Homecare Ltd,M44F,Adult Social Care Operations,Supplies and Services,560.00,Oct-23
Slough Borough Council,806550,City Homecare Ltd,M45C,Adult Social Care Operations,Supplies and Services,"1,496.25",Oct-23
Slough Borough Council,806550,City Homecare Ltd,M45C,Adult Social Care Operations,Supplies and Services,"2,275.00",Oct-23
Slough Borough Council,806550,City Homecare Ltd,M45C,Adult Social Care Operations,Supplies and Services,"1,102.50",Oct-23
Slough Borough Council,806550,City Homecare Ltd,M45C,Adult Social Care Operations,Supplies and Services,"2,205.00",Oct-23
Slough Borough Council,806550,City Homecare Ltd,M45C,Adult Social Care Operations,Supplies and Services,568.75,Oct-23
Slough Borough Council,806550,City Homecare Ltd,M45C,Adult Social Care Operations,Supplies and Services,857.50,Oct-23
Slough Borough Council,806550,City Homecare Ltd,M45C,Adult Social Care Operations,Supplies and Services,997.50,Oct-23
Slough Borough Council,806550,City Homecare Ltd,M45C,Adult Social Care Operations,Supplies and Services,796.25,Oct-23
Slough Borough Council,806550,City Homecare Ltd,M45C,Adult Social Care Operations,Supplies and Services,962.50,Oct-23
Slough Borough Council,806550,City Homecare Ltd,M45C,Adult Social Care Operations,Supplies and Services,"2,012.50",Oct-23
Slough Borough Council,806550,City Homecare Ltd,M45C,Adult Social Care Operations,Supplies and Services,818.13,Oct-23
Slough Borough Council,806550,City Homecare Ltd,M48C,Adult Social Care Operations,Supplies and Services,857.50,Oct-23
Slough Borough Council,806550,City Homecare Ltd,M48C,Adult Social Care Operations,Supplies and Services,857.50,Oct-23
Slough Borough Council,806550,City Homecare Ltd,M48C,Adult Social Care Operations,Supplies and Services,603.75,Oct-23
Slough Borough Council,806550,City Homecare Ltd,M48C,Adult Social Care Operations,Supplies and Services,577.50,Oct-23
Slough Borough Council,1151,Claycots Primary School,E200,Children & Families,Supplies and Services,"825,610.94",Oct-23
Slough Borough Council,1747,Cms Training Ltd,B409,Customer,Indirect Employee Expenses,780.00,Oct-23
Slough Borough Council,3685,Coghlan Lodges Limited,M44D,Adult Social Care Operations,Supplies and Services,"2,116.04",Oct-23
Slough Borough Council,3685,Coghlan Lodges Limited,M44F,Adult Social Care Operations,Supplies and Services,"1,870.00",Oct-23
Slough Borough Council,805823,Collaborative Care Solutions,M42E,Adult Social Care Operations,Supplies and Services,"9,211.42",Oct-23
Slough Borough Council,805823,Collaborative Care Solutions,M42F,Adult Social Care Operations,Supplies and Services,"2,971.57",Oct-23
Slough Borough Council,805823,Collaborative Care Solutions,M44D,Adult Social Care Operations,Supplies and Services,"9,211.42",Oct-23
Slough Borough Council,805823,Collaborative Care Solutions,M44F,Adult Social Care Operations,Supplies and Services,"4,982.14",Oct-23
Slough Borough Council,286,Colnbrook C Of E Primary School,E620,Children & Families,Supplies and Services,"17,191.33",Oct-23
Slough Borough Council,2535,Comfort Care Services,M42E,Adult Social Care Operations,Supplies and Services,"1,538.88",Oct-23
Slough Borough Council,2535,Comfort Care Services,M42E,Adult Social Care Operations,Supplies and Services,"5,114.92",Oct-23
Slough Borough Council,2535,Comfort Care Services,M42E,Adult Social Care Operations,Supplies and Services,554.19,Oct-23
Slough Borough Council,2535,Comfort Care Services,M42E,Adult Social Care Operations,Supplies and Services,"2,564.81",Oct-23
Slough Borough Council,2535,Comfort Care Services,M42E,Adult Social Care Operations,Supplies and Services,"1,165.82",Oct-23
Slough Borough Council,2535,Comfort Care Services,M42E,Adult Social Care Operations,Supplies and Services,"2,325.00",Oct-23
Slough Borough Council,2535,Comfort Care Services,M42E,Adult Social Care Operations,Supplies and Services,"2,635.00",Oct-23
Slough Borough Council,2535,Comfort Care Services,M42E,Adult Social Care Operations,Supplies and Services,775.00,Oct-23
Slough Borough Council,2535,Comfort Care Services,M42E,Adult Social Care Operations,Supplies and Services,"1,165.82",Oct-23
Slough Borough Council,2535,Comfort Care Services,M42E,Adult Social Care Operations,Supplies and Services,"1,468.91",Oct-23
Slough Borough Council,2535,Comfort Care Services,M42F,Adult Social Care Operations,Supplies and Services,"3,474.21",Oct-23
Slough Borough Council,2535,Comfort Care Services,M42F,Adult Social Care Operations,Supplies and Services,"2,635.00",Oct-23
Slough Borough Council,2535,Comfort Care Services,M42F,Adult Social Care Operations,Supplies and Services,"3,893.82",Oct-23
Slough Borough Council,2535,Comfort Care Services,M42F,Adult Social Care Operations,Supplies and Services,"1,749.29",Oct-23
Slough Borough Council,2535,Comfort Care Services,M42F,Adult Social Care Operations,Supplies and Services,"1,632.15",Oct-23
Slough Borough Council,2535,Comfort Care Services,M42F,Adult Social Care Operations,Supplies and Services,"1,300.80",Oct-23
Slough Borough Council,2535,Comfort Care Services,M42F,Adult Social Care Operations,Supplies and Services,839.21,Oct-23
Slough Borough Council,2535,Comfort Care Services,M42F,Adult Social Care Operations,Supplies and Services,839.21,Oct-23
Slough Borough Council,2535,Comfort Care Services,M42F,Adult Social Care Operations,Supplies and Services,"1,007.06",Oct-23
Slough Borough Council,2535,Comfort Care Services,M42F,Adult Social Care Operations,Supplies and Services,839.21,Oct-23
Slough Borough Council,2535,Comfort Care Services,M42F,Adult Social Care Operations,Supplies and Services,"2,635.00",Oct-23
Slough Borough Council,2535,Comfort Care Services,M42F,Adult Social Care Operations,Supplies and Services,839.21,Oct-23
Slough Borough Council,2535,Comfort Care Services,M42F,Adult Social Care Operations,Supplies and Services,"2,635.00",Oct-23
Slough Borough Council,2535,Comfort Care Services,M44C,Adult Social Care Operations,Supplies and Services,"3,357.48",Oct-23
Slough Borough Council,2535,Comfort Care Services,M44E,Adult Social Care Operations,Supplies and Services,"2,080.59",Oct-23
Slough Borough Council,2535,Comfort Care Services,M44E,Adult Social Care Operations,Supplies and Services,"4,461.56",Oct-23
Slough Borough Council,2535,Comfort Care Services,M44F,Adult Social Care Operations,Supplies and Services,"2,635.00",Oct-23
Slough Borough Council,2535,Comfort Care Services,M44F,Adult Social Care Operations,Supplies and Services,"1,317.50",Oct-23
Slough Borough Council,2535,Comfort Care Services,M44F,Adult Social Care Operations,Supplies and Services,"2,937.87",Oct-23
Slough Borough Council,2535,Comfort Care Services,M44F,Adult Social Care Operations,Supplies and Services,"1,317.50",Oct-23
Slough Borough Council,2535,Comfort Care Services,M44F,Adult Social Care Operations,Supplies and Services,"3,310.93",Oct-23
Slough Borough Council,2535,Comfort Care Services,M44F,Adult Social Care Operations,Supplies and Services,"1,888.26",Oct-23
Slough Borough Council,2535,Comfort Care Services,M44F,Adult Social Care Operations,Supplies and Services,"2,937.87",Oct-23
Slough Borough Council,2535,Comfort Care Services,M44F,Adult Social Care Operations,Supplies and Services,"1,165.82",Oct-23
Slough Borough Council,2535,Comfort Care Services,M44F,Adult Social Care Operations,Supplies and Services,"3,105.71",Oct-23
Slough Borough Council,2535,Comfort Care Services,M44F,Adult Social Care Operations,Supplies and Services,"3,474.21",Oct-23
Slough Borough Council,2535,Comfort Care Services,M44F,Adult Social Care Operations,Supplies and Services,"2,937.87",Oct-23
Slough Borough Council,2535,Comfort Care Services,M44F,Adult Social Care Operations,Supplies and Services,"2,121.80",Oct-23
Slough Borough Council,2535,Comfort Care Services,M81D,Adult Social Care Operations,Supplies and Services,"2,635.00",Oct-23
Slough Borough Council,804912,CommuniKate Ltd,M22D,Adult Social Care Operations,Supplies and Services,761.75,Oct-23
Slough Borough Council,804912,CommuniKate Ltd,M22D,Adult Social Care Operations,Supplies and Services,761.75,Oct-23
Slough Borough Council,804912,CommuniKate Ltd,M22D,Adult Social Care Operations,Supplies and Services,761.75,Oct-23
Slough Borough Council,804912,CommuniKate Ltd,M22D,Adult Social Care Operations,Supplies and Services,761.75,Oct-23
Slough Borough Council,1772,Computershare Voucher Services,B348,People,Supplies and Services,"1,459.00",Oct-23
Slough Borough Council,1772,Computershare Voucher Services,B348,People,Supplies and Services,"1,958.00",Oct-23
Slough Borough Council,806594,Coram Family and Childcare,M99C,Children & Families,Supplies and Services,"-62,373.00",Oct-23
Slough Borough Council,806594,Coram Family and Childcare,M99C,Children & Families,Supplies and Services,"62,373.00",Oct-23
Slough Borough Council,806594,Coram Family and Childcare,M99C,Children & Families,Supplies and Services,"107,229.13",Oct-23
Slough Borough Council,806683,Cornerstone OnDemand Limited,B409,Customer,Indirect Employee Expenses,"11,700.00",Oct-23
Slough Borough Council,1480,Corona Energy Limited,B668,Business Services,Premises,"10,441.60",Oct-23
Slough Borough Council,1480,Corona Energy Limited,B668,Business Services,Premises,"3,640.18",Oct-23
Slough Borough Council,1480,Corona Energy Limited,J015,Place Management,Premises,"7,760.69",Oct-23
Slough Borough Council,805278,Countrystyle Recycling Ltd,D342,Place Operations,Supplies and Services,"10,977.00",Oct-23
Slough Borough Council,805278,Countrystyle Recycling Ltd,D342,Place Operations,Supplies and Services,"5,540.00",Oct-23
Slough Borough Council,808737,COUNTY PRIVATE CLIENT LIMITED,H205,Housing (People) Services,Supplies and Services,"34,968.00",Oct-23
Slough Borough Council,808737,COUNTY PRIVATE CLIENT LIMITED,H205,Housing (People) Services,Supplies and Services,"1,147.00",Oct-23
Slough Borough Council,3670,Craegmoor Birches Grove Priory,M27F,Adult Social Care Operations,Supplies and Services,"2,122.92",Oct-23
Slough Borough Council,1638,Creative Support Ltd,A02L,Adult Social Care Operations,Supplies and Services,"1,431.90",Oct-23
Slough Borough Council,1638,Creative Support Ltd,A02L,Adult Social Care Operations,Supplies and Services,"1,565.10",Oct-23
Slough Borough Council,1638,Creative Support Ltd,A02L,Adult Social Care Operations,Supplies and Services,"1,165.50",Oct-23
Slough Borough Council,1638,Creative Support Ltd,M42E,Adult Social Care Operations,Supplies and Services,"1,548.45",Oct-23
Slough Borough Council,1638,Creative Support Ltd,M44E,Adult Social Care Operations,Supplies and Services,"1,265.40",Oct-23
Slough Borough Council,1638,Creative Support Ltd,M44E,Adult Social Care Operations,Supplies and Services,607.73,Oct-23
Slough Borough Council,806542,Cripps LLP t/a Cripps Pemberton Greenish,B480,Place Strategy & Infrastructure,Supplies and Services,"1,131.50",Oct-23
Slough Borough Council,806542,Cripps LLP t/a Cripps Pemberton Greenish,B480,Place Strategy & Infrastructure,Supplies and Services,"1,387.00",Oct-23
Slough Borough Council,806983,Critiqom,H020,Finance & Commercial,Supplies and Services,"1,418.07",Oct-23
Slough Borough Council,806983,Critiqom,H020,Finance & Commercial,Supplies and Services,"1,968.08",Oct-23
Slough Borough Council,806983,Critiqom,H020,Finance & Commercial,Supplies and Services,"2,700.73",Oct-23
Slough Borough Council,808853,Crown Hosting Data Centres Limited,B282,Digital and Strategic IT,Supplies and Services,"6,754.95",Oct-23
Slough Borough Council,808775,Danescroft Consultants Ltd,A01D,People Adults,Agency Staff,"4,050.00",Oct-23
Slough Borough Council,808775,Danescroft Consultants Ltd,A01D,People Adults,Agency Staff,"4,050.00",Oct-23
Slough Borough Council,807288,David Allwood,C322,Community,Supplies and Services,"2,056.25",Oct-23
Slough Borough Council,636,David John (Papers) Ltd,K059,Business Services,Supplies and Services,649.00,Oct-23
Slough Borough Council,808657,Davinder Selby,H205,Housing (People) Services,Supplies and Services,"1,800.00",Oct-23
Slough Borough Council,804689,De Lage Landen Leasing Ltd,K059,Business Services,Supplies and Services,"2,085.00",Oct-23
Slough Borough Council,807563,Delib Limited,B409,Customer,Indirect Employee Expenses,"1,200.00",Oct-23
Slough Borough Council,808612,Delta 4 Services Ltd,B377,Finance & Commercial,Supplies and Services,"8,333.33",Oct-23
Slough Borough Council,808612,Delta 4 Services Ltd,B377,Finance & Commercial,Supplies and Services,"6,666.66",Oct-23
Slough Borough Council,806159,Devon Piatt-Panton,C322,Community,Supplies and Services,"2,024.00",Oct-23
Slough Borough Council,928,Devonshires Solicitors,F868,Children & Families,Supplies and Services,"1,428.00",Oct-23
Slough Borough Council,928,Devonshires Solicitors,F868,Children & Families,Supplies and Services,777.00,Oct-23
Slough Borough Council,928,Devonshires Solicitors,F868,Children & Families,Supplies and Services,"1,491.00",Oct-23
Slough Borough Council,928,Devonshires Solicitors,F868,Children & Families,Supplies and Services,735.00,Oct-23
Slough Borough Council,928,Devonshires Solicitors,F868,Children & Families,Supplies and Services,"1,344.00",Oct-23
Slough Borough Council,928,Devonshires Solicitors,F868,Children & Families,Supplies and Services,"1,470.00",Oct-23
Slough Borough Council,3554,Dimensions (Uk) Ltd,M42E,Adult Social Care Operations,Supplies and Services,"8,754.14",Oct-23
Slough Borough Council,3554,Dimensions (Uk) Ltd,M42E,Adult Social Care Operations,Supplies and Services,"8,365.09",Oct-23
Slough Borough Council,3554,Dimensions (Uk) Ltd,M42E,Adult Social Care Operations,Supplies and Services,"8,145.79",Oct-23
Slough Borough Council,3554,Dimensions (Uk) Ltd,M42E,Adult Social Care Operations,Supplies and Services,"6,532.50",Oct-23
Slough Borough Council,3554,Dimensions (Uk) Ltd,M42E,Adult Social Care Operations,Supplies and Services,"6,844.40",Oct-23
Slough Borough Council,3554,Dimensions (Uk) Ltd,M42E,Adult Social Care Operations,Supplies and Services,"8,698.25",Oct-23
Slough Borough Council,3554,Dimensions (Uk) Ltd,M42E,Adult Social Care Operations,Supplies and Services,"8,365.32",Oct-23
Slough Borough Council,3554,Dimensions (Uk) Ltd,M42E,Adult Social Care Operations,Supplies and Services,"7,252.81",Oct-23
Slough Borough Council,3554,Dimensions (Uk) Ltd,M42E,Adult Social Care Operations,Supplies and Services,"6,870.22",Oct-23
Slough Borough Council,3554,Dimensions (Uk) Ltd,M42E,Adult Social Care Operations,Supplies and Services,"6,999.12",Oct-23
Slough Borough Council,805483,Direct Tyre Managenent Ltd,D610,Place Operations,Transport,"6,736.49",Oct-23
Slough Borough Council,805483,Direct Tyre Managenent Ltd,D620,Place Operations,Transport,"1,611.95",Oct-23
Slough Borough Council,805483,Direct Tyre Managenent Ltd,D630,Place Operations,Transport,"1,916.73",Oct-23
Slough Borough Council,803306,Ditton Park Academy,E620,Children & Families,Supplies and Services,"40,375.00",Oct-23
Slough Borough Council,803306,Ditton Park Academy,B297,Finance & Commercial,Government Grants,"3,000.00",Oct-23
Slough Borough Council,1457,Dr Norman Gordon,D320,Place Operations,Premises,"1,578.15",Oct-23
Slough Borough Council,808794,DREAMS HOTEL LTD,H205,Housing (People) Services,Supplies and Services,"32,375.00",Oct-23
Slough Borough Council,808794,DREAMS HOTEL LTD,H205,Housing (People) Services,Supplies and Services,"32,258.33",Oct-23
Slough Borough Council,808794,DREAMS HOTEL LTD,H205,Housing (People) Services,Supplies and Services,"32,375.00",Oct-23
Slough Borough Council,803177,Early Steps Preschool,F909,Children & Families,Supplies and Services,545.88,Oct-23
Slough Borough Council,803177,Early Steps Preschool,F909,Children & Families,Supplies and Services,545.88,Oct-23
Slough Borough Council,803177,Early Steps Preschool,F909,Children & Families,Supplies and Services,"8,081.14",Oct-23
Slough Borough Council,803301,Eden Girls School,E610,Children & Families,Supplies and Services,"6,750.00",Oct-23
Slough Borough Council,1299,Edf Energy,B668,Business Services,Premises,"75,666.09",Oct-23
Slough Borough Council,1299,Edf Energy,B668,Business Services,Premises,"66,001.84",Oct-23
Slough Borough Council,2159,Edge Training And Consultancy Ltd,A01D,People Adults,Indirect Employee Expenses,"1,750.00",Oct-23
Slough Borough Council,808885,Ekom Solutions,H205,Housing (People) Services,Supplies and Services,678.00,Oct-23
Slough Borough Council,808885,Ekom Solutions,H205,Housing (People) Services,Supplies and Services,"6,750.00",Oct-23
Slough Borough Council,808885,Ekom Solutions,H205,Housing (People) Services,Supplies and Services,"10,350.00",Oct-23
Slough Borough Council,807001,Elegant Care Services Ltd,M42E,Adult Social Care Operations,Supplies and Services,"5,987.42",Oct-23
Slough Borough Council,807001,Elegant Care Services Ltd,M42E,Adult Social Care Operations,Supplies and Services,"6,217.71",Oct-23
Slough Borough Council,807001,Elegant Care Services Ltd,M42E,Adult Social Care Operations,Supplies and Services,"10,185.71",Oct-23
Slough Borough Council,807001,Elegant Care Services Ltd,M44C,Adult Social Care Operations,Supplies and Services,"7,023.71",Oct-23
Slough Borough Council,807001,Elegant Care Services Ltd,M44D,Adult Social Care Operations,Supplies and Services,"10,206.08",Oct-23
Slough Borough Council,807001,Elegant Care Services Ltd,M44D,Adult Social Care Operations,Supplies and Services,"2,633.82",Oct-23
Slough Borough Council,807001,Elegant Care Services Ltd,M44D,Adult Social Care Operations,Supplies and Services,"10,206.08",Oct-23
Slough Borough Council,807001,Elegant Care Services Ltd,M44D,Adult Social Care Operations,Supplies and Services,"10,206.08",Oct-23
Slough Borough Council,807001,Elegant Care Services Ltd,M44D,Adult Social Care Operations,Supplies and Services,"9,876.85",Oct-23
Slough Borough Council,806355,Elysium Healthcare,M26E,Adult Social Care Operations,Supplies and Services,"10,688.40",Oct-23
Slough Borough Council,806355,Elysium Healthcare,M26E,Adult Social Care Operations,Supplies and Services,"9,267.60",Oct-23
Slough Borough Council,3752,Endurance Health,A07R,Adult Social Care Operations,Supplies and Services,"1,518.84",Oct-23
Slough Borough Council,3752,Endurance Health,M44C,Adult Social Care Operations,Supplies and Services,657.27,Oct-23
Slough Borough Council,3752,Endurance Health,M44C,Adult Social Care Operations,Supplies and Services,"3,331.33",Oct-23
Slough Borough Council,3752,Endurance Health,M44C,Adult Social Care Operations,Supplies and Services,"1,088.06",Oct-23
Slough Borough Council,3752,Endurance Health,M44C,Adult Social Care Operations,Supplies and Services,"1,072.06",Oct-23
Slough Borough Council,3752,Endurance Health,M44C,Adult Social Care Operations,Supplies and Services,679.66,Oct-23
Slough Borough Council,3752,Endurance Health,M44C,Adult Social Care Operations,Supplies and Services,888.76,Oct-23
Slough Borough Council,3752,Endurance Health,M44C,Adult Social Care Operations,Supplies and Services,925.54,Oct-23
Slough Borough Council,3752,Endurance Health,M44C,Adult Social Care Operations,Supplies and Services,921.69,Oct-23
Slough Borough Council,3752,Endurance Health,M44C,Adult Social Care Operations,Supplies and Services,"1,259.37",Oct-23
Slough Borough Council,3752,Endurance Health,M44C,Adult Social Care Operations,Supplies and Services,"1,991.20",Oct-23
Slough Borough Council,3752,Endurance Health,M44C,Adult Social Care Operations,Supplies and Services,575.71,Oct-23
Slough Borough Council,3752,Endurance Health,M44C,Adult Social Care Operations,Supplies and Services,"1,231.98",Oct-23
Slough Borough Council,3752,Endurance Health,M44C,Adult Social Care Operations,Supplies and Services,"1,419.29",Oct-23
Slough Borough Council,3752,Endurance Health,M44C,Adult Social Care Operations,Supplies and Services,"3,323.34",Oct-23
Slough Borough Council,3752,Endurance Health,M44C,Adult Social Care Operations,Supplies and Services,"1,114.04",Oct-23
Slough Borough Council,3752,Endurance Health,M44C,Adult Social Care Operations,Supplies and Services,"1,244.98",Oct-23
Slough Borough Council,3752,Endurance Health,M44C,Adult Social Care Operations,Supplies and Services,559.72,Oct-23
Slough Borough Council,3752,Endurance Health,M44C,Adult Social Care Operations,Supplies and Services,"1,387.91",Oct-23
Slough Borough Council,3752,Endurance Health,M44C,Adult Social Care Operations,Supplies and Services,643.68,Oct-23
Slough Borough Council,3752,Endurance Health,M44C,Adult Social Care Operations,Supplies and Services,"1,931.63",Oct-23
Slough Borough Council,3752,Endurance Health,M44C,Adult Social Care Operations,Supplies and Services,"2,518.74",Oct-23
Slough Borough Council,3752,Endurance Health,M44C,Adult Social Care Operations,Supplies and Services,"1,873.06",Oct-23
Slough Borough Council,3752,Endurance Health,M44C,Adult Social Care Operations,Supplies and Services,"1,529.12",Oct-23
Slough Borough Council,3752,Endurance Health,M44C,Adult Social Care Operations,Supplies and Services,"1,098.03",Oct-23
Slough Borough Council,3752,Endurance Health,M44C,Adult Social Care Operations,Supplies and Services,"1,944.03",Oct-23
Slough Borough Council,3752,Endurance Health,M44D,Adult Social Care Operations,Supplies and Services,"1,183.61",Oct-23
Slough Borough Council,3752,Endurance Health,M44D,Adult Social Care Operations,Supplies and Services,635.28,Oct-23
Slough Borough Council,3752,Endurance Health,M44D,Adult Social Care Operations,Supplies and Services,756.62,Oct-23
Slough Borough Council,3752,Endurance Health,M44D,Adult Social Care Operations,Supplies and Services,679.66,Oct-23
Slough Borough Council,3752,Endurance Health,M44D,Adult Social Care Operations,Supplies and Services,559.72,Oct-23
Slough Borough Council,3752,Endurance Health,M44D,Adult Social Care Operations,Supplies and Services,"1,229.58",Oct-23
Slough Borough Council,3752,Endurance Health,M44D,Adult Social Care Operations,Supplies and Services,"2,360.42",Oct-23
Slough Borough Council,3752,Endurance Health,M44D,Adult Social Care Operations,Supplies and Services,"1,910.64",Oct-23
Slough Borough Council,3752,Endurance Health,M44D,Adult Social Care Operations,Supplies and Services,866.77,Oct-23
Slough Borough Council,3752,Endurance Health,M44F,Adult Social Care Operations,Supplies and Services,582.91,Oct-23
Slough Borough Council,3752,Endurance Health,M45C,Adult Social Care Operations,Supplies and Services,"2,818.59",Oct-23
Slough Borough Council,3752,Endurance Health,M48C,Adult Social Care Operations,Supplies and Services,956.72,Oct-23
Slough Borough Council,805423,Enriched Care,M44F,Adult Social Care Operations,Supplies and Services,"2,613.30",Oct-23
Slough Borough Council,805423,Enriched Care,M44F,Adult Social Care Operations,Supplies and Services,"2,879.90",Oct-23
Slough Borough Council,805423,Enriched Care,M80F,Adult Social Care Operations,Supplies and Services,"1,758.01",Oct-23
Slough Borough Council,807310,Enterprise Rent-A-Car UK Limited trading as Enterprise Flex-E-Rent,B060,Business Services,Premises,"2,284.64",Oct-23
Slough Borough Council,2677,Eton House Residential Home,M25C,Adult Social Care Operations,Supplies and Services,"3,420.00",Oct-23
Slough Borough Council,2677,Eton House Residential Home,M25C,Adult Social Care Operations,Supplies and Services,"4,928.57",Oct-23
Slough Borough Council,2677,Eton House Residential Home,M25D,Adult Social Care Operations,Supplies and Services,"3,096.43",Oct-23
Slough Borough Council,2677,Eton House Residential Home,M27C,Adult Social Care Operations,Supplies and Services,"4,928.57",Oct-23
Slough Borough Council,2677,Eton House Residential Home,M27C,Adult Social Care Operations,Supplies and Services,"2,571.43",Oct-23
Slough Borough Council,2677,Eton House Residential Home,M27C,Adult Social Care Operations,Supplies and Services,"6,428.57",Oct-23
Slough Borough Council,2677,Eton House Residential Home,M27C,Adult Social Care Operations,Supplies and Services,"3,407.14",Oct-23
Slough Borough Council,2677,Eton House Residential Home,M29C,Adult Social Care Operations,Supplies and Services,"-3,695.71",Oct-23
Slough Borough Council,2677,Eton House Residential Home,M29C,Adult Social Care Operations,Supplies and Services,"-2,558.58",Oct-23
Slough Borough Council,2677,Eton House Residential Home,M29C,Adult Social Care Operations,Supplies and Services,"4,264.29",Oct-23
Slough Borough Council,2677,Eton House Residential Home,M29C,Adult Social Care Operations,Supplies and Services,"4,264.29",Oct-23
Slough Borough Council,2677,Eton House Residential Home,M29C,Adult Social Care Operations,Supplies and Services,"3,695.71",Oct-23
Slough Borough Council,2677,Eton House Residential Home,M29C,Adult Social Care Operations,Supplies and Services,"2,558.57",Oct-23
Slough Borough Council,808745,Eton Lettings Limited,H218,Community,Supplies and Services,"12,165.52",Oct-23
Slough Borough Council,803122,euNetworks Fiber UK Ltd,P579,Capital,Capital Charges,"10,000.00",Oct-23
Slough Borough Council,806501,Excellent Healthcare Services Ltd,A07R,Adult Social Care Operations,Supplies and Services,833.98,Oct-23
Slough Borough Council,806501,Excellent Healthcare Services Ltd,M44C,Adult Social Care Operations,Supplies and Services,"1,009.99",Oct-23
Slough Borough Council,806501,Excellent Healthcare Services Ltd,M44C,Adult Social Care Operations,Supplies and Services,714.84,Oct-23
Slough Borough Council,806501,Excellent Healthcare Services Ltd,M44C,Adult Social Care Operations,Supplies and Services,"1,080.77",Oct-23
Slough Borough Council,806501,Excellent Healthcare Services Ltd,M44C,Adult Social Care Operations,Supplies and Services,833.98,Oct-23
Slough Borough Council,806501,Excellent Healthcare Services Ltd,M44C,Adult Social Care Operations,Supplies and Services,"2,144.52",Oct-23
Slough Borough Council,806501,Excellent Healthcare Services Ltd,M44C,Adult Social Care Operations,Supplies and Services,759.09,Oct-23
Slough Borough Council,806501,Excellent Healthcare Services Ltd,M44C,Adult Social Care Operations,Supplies and Services,"2,280.68",Oct-23
Slough Borough Council,806501,Excellent Healthcare Services Ltd,M44C,Adult Social Care Operations,Supplies and Services,"1,667.96",Oct-23
Slough Borough Council,806501,Excellent Healthcare Services Ltd,M44C,Adult Social Care Operations,Supplies and Services,"2,144.52",Oct-23
Slough Borough Council,806501,Excellent Healthcare Services Ltd,M44C,Adult Social Care Operations,Supplies and Services,"2,144.52",Oct-23
Slough Borough Council,806501,Excellent Healthcare Services Ltd,M44C,Adult Social Care Operations,Supplies and Services,"1,072.26",Oct-23
Slough Borough Council,806501,Excellent Healthcare Services Ltd,M44C,Adult Social Care Operations,Supplies and Services,833.98,Oct-23
Slough Borough Council,806501,Excellent Healthcare Services Ltd,M44D,Adult Social Care Operations,Supplies and Services,"2,144.52",Oct-23
Slough Borough Council,806501,Excellent Healthcare Services Ltd,M44F,Adult Social Care Operations,Supplies and Services,"2,382.80",Oct-23
Slough Borough Council,806501,Excellent Healthcare Services Ltd,M44F,Adult Social Care Operations,Supplies and Services,936.10,Oct-23
Slough Borough Council,806501,Excellent Healthcare Services Ltd,M45C,Adult Social Care Operations,Supplies and Services,897.80,Oct-23
Slough Borough Council,806501,Excellent Healthcare Services Ltd,M45C,Adult Social Care Operations,Supplies and Services,808.45,Oct-23
Slough Borough Council,806501,Excellent Healthcare Services Ltd,M45C,Adult Social Care Operations,Supplies and Services,"1,497.76",Oct-23
Slough Borough Council,806501,Excellent Healthcare Services Ltd,M45C,Adult Social Care Operations,Supplies and Services,595.70,Oct-23
Slough Borough Council,806501,Excellent Healthcare Services Ltd,M48C,Adult Social Care Operations,Supplies and Services,608.47,Oct-23
Slough Borough Council,808736,EXCLUSIVE HOUSING SOLUTION LIMITED,H205,Housing (People) Services,Supplies and Services,"23,067.00",Oct-23
Slough Borough Council,808736,EXCLUSIVE HOUSING SOLUTION LIMITED,H205,Housing (People) Services,Supplies and Services,"29,652.00",Oct-23
Slough Borough Council,805225,Falcon Surfacing Ltd,P243,Capital,Supplies and Services,"1,649.80",Oct-23
Slough Borough Council,805225,Falcon Surfacing Ltd,P243,Capital,Supplies and Services,"3,184.60",Oct-23
Slough Borough Council,805225,Falcon Surfacing Ltd,P243,Capital,Supplies and Services,"1,504.00",Oct-23
Slough Borough Council,805225,Falcon Surfacing Ltd,P243,Capital,Supplies and Services,"85,243.89",Oct-23
Slough Borough Council,805225,Falcon Surfacing Ltd,P243,Capital,Supplies and Services,"114,232.17",Oct-23
Slough Borough Council,805225,Falcon Surfacing Ltd,P243,Capital,Supplies and Services,"3,975.00",Oct-23
Slough Borough Council,641,Falon Nameplates Limited,D320,Place Operations,Supplies and Services,732.80,Oct-23
Slough Borough Council,3187,Federation Of Burial And  Cremation Authorities,D320,Place Operations,Premises,"1,028.00",Oct-23
Slough Borough Council,754,First Steps Day Nursery,F909,Children & Families,Supplies and Services,"12,973.29",Oct-23
Slough Borough Council,2519,Fleet Tutors,F449,Education & Inclusion,Supplies and Services,"2,480.00",Oct-23
Slough Borough Council,2460,Forest Bridge School Ltd,F551,Children & Families,Supplies and Services,"9,150.33",Oct-23
Slough Borough Council,1204,Forget Me Not,M25C,Adult Social Care Operations,Supplies and Services,"3,400.00",Oct-23
Slough Borough Council,1204,Forget Me Not,M25C,Adult Social Care Operations,Supplies and Services,"3,800.00",Oct-23
Slough Borough Council,1204,Forget Me Not,M25C,Adult Social Care Operations,Supplies and Services,"4,800.00",Oct-23
Slough Borough Council,1204,Forget Me Not,M25D,Adult Social Care Operations,Supplies and Services,"3,600.00",Oct-23
Slough Borough Council,1204,Forget Me Not,M27C,Adult Social Care Operations,Supplies and Services,"3,800.00",Oct-23
Slough Borough Council,1204,Forget Me Not,M27C,Adult Social Care Operations,Supplies and Services,"3,199.76",Oct-23
Slough Borough Council,1204,Forget Me Not,M27C,Adult Social Care Operations,Supplies and Services,"4,000.00",Oct-23
Slough Borough Council,1204,Forget Me Not,M27C,Adult Social Care Operations,Supplies and Services,"4,000.00",Oct-23
Slough Borough Council,806249,Formact Ltd,P990,Capital,Capital Charges,"6,285.00",Oct-23
Slough Borough Council,647,Foxborough Primary School,E620,Children & Families,Supplies and Services,"9,972.00",Oct-23
Slough Borough Council,807125,Futures For Shared Lives,M36E,Adult Social Care Operations,Supplies and Services,"3,436.35",Oct-23
Slough Borough Council,1758,Gas Advisory Services Limited,J606,Place Management,Supplies and Services,"3,570.00",Oct-23
Slough Borough Council,1758,Gas Advisory Services Limited,J606,Place Management,Supplies and Services,"1,064.00",Oct-23
Slough Borough Council,1758,Gas Advisory Services Limited,J606,Place Management,Supplies and Services,720.00,Oct-23
Slough Borough Council,809062,GCH (St Katharine's) Limited,M25C,Adult Social Care Operations,Supplies and Services,"4,400.00",Oct-23
Slough Borough Council,808774,GD Security,B060,Business Services,Premises,820.00,Oct-23
Slough Borough Council,1729,Geomatics Limited T/A Land-Surv,P244,Capital,Capital Charges,"6,500.00",Oct-23
Slough Borough Council,806300,Glasscubes Limited,B230,Community,Government Grants,"2,268.00",Oct-23
Slough Borough Council,808739,Global Machinery Solutions Ltd,P178,Capital,Capital Charges,"114,187.00",Oct-23
Slough Borough Council,808739,Global Machinery Solutions Ltd,P178,Capital,Capital Charges,"-27,404.88",Oct-23
Slough Borough Council,2830,GR Response Healthcare Ltd,A07R,Adult Social Care Operations,Supplies and Services,"2,394.00",Oct-23
Slough Borough Council,2830,GR Response Healthcare Ltd,M44C,Adult Social Care Operations,Supplies and Services,779.00,Oct-23
Slough Borough Council,2830,GR Response Healthcare Ltd,M44C,Adult Social Care Operations,Supplies and Services,"2,926.00",Oct-23
Slough Borough Council,2830,GR Response Healthcare Ltd,M44C,Adult Social Care Operations,Supplies and Services,"2,156.50",Oct-23
Slough Borough Council,2830,GR Response Healthcare Ltd,M44C,Adult Social Care Operations,Supplies and Services,"2,000.32",Oct-23
Slough Borough Council,2830,GR Response Healthcare Ltd,M44C,Adult Social Care Operations,Supplies and Services,"2,394.00",Oct-23
Slough Borough Council,2830,GR Response Healthcare Ltd,M44C,Adult Social Care Operations,Supplies and Services,"1,814.50",Oct-23
Slough Borough Council,2830,GR Response Healthcare Ltd,M44C,Adult Social Care Operations,Supplies and Services,"1,500.24",Oct-23
Slough Borough Council,2830,GR Response Healthcare Ltd,M44C,Adult Social Care Operations,Supplies and Services,749.84,Oct-23
Slough Borough Council,2830,GR Response Healthcare Ltd,M44C,Adult Social Care Operations,Supplies and Services,"1,071.46",Oct-23
Slough Borough Council,2830,GR Response Healthcare Ltd,M44C,Adult Social Care Operations,Supplies and Services,"2,250.08",Oct-23
Slough Borough Council,2830,GR Response Healthcare Ltd,M44C,Adult Social Care Operations,Supplies and Services,"2,250.00",Oct-23
Slough Borough Council,2830,GR Response Healthcare Ltd,M44C,Adult Social Care Operations,Supplies and Services,"2,394.00",Oct-23
Slough Borough Council,2830,GR Response Healthcare Ltd,M44D,Adult Social Care Operations,Supplies and Services,"2,432.00",Oct-23
Slough Borough Council,2830,GR Response Healthcare Ltd,M44D,Adult Social Care Operations,Supplies and Services,"1,446.12",Oct-23
Slough Borough Council,2830,GR Response Healthcare Ltd,M44D,Adult Social Care Operations,Supplies and Services,"2,026.86",Oct-23
Slough Borough Council,2830,GR Response Healthcare Ltd,M44D,Adult Social Care Operations,Supplies and Services,"2,250.08",Oct-23
Slough Borough Council,2830,GR Response Healthcare Ltd,M44D,Adult Social Care Operations,Supplies and Services,"1,178.00",Oct-23
Slough Borough Council,2830,GR Response Healthcare Ltd,M44D,Adult Social Care Operations,Supplies and Services,"1,586.50",Oct-23
Slough Borough Council,2830,GR Response Healthcare Ltd,M44D,Adult Social Care Operations,Supplies and Services,931.00,Oct-23
Slough Borough Council,2830,GR Response Healthcare Ltd,M44D,Adult Social Care Operations,Supplies and Services,"2,736.00",Oct-23
Slough Borough Council,2830,GR Response Healthcare Ltd,M44D,Adult Social Care Operations,Supplies and Services,750.12,Oct-23
Slough Borough Council,2830,GR Response Healthcare Ltd,M44E,Adult Social Care Operations,Supplies and Services,532.00,Oct-23
Slough Borough Council,2830,GR Response Healthcare Ltd,A06C,People Strategy & Commissioning,Supplies and Services,"8,400.00",Oct-23
Slough Borough Council,809197,Grays Essex Limited,F123,Education & Inclusion,External Receipts,"13,167.50",Oct-23
Slough Borough Council,804577,Green Monarch ZC2016 c/o Savills(UK) Limited,H205,Housing (People) Services,Supplies and Services,"3,583.33",Oct-23
Slough Borough Council,804577,Green Monarch ZC2016 c/o Savills(UK) Limited,H205,Housing (People) Services,Supplies and Services,"3,583.33",Oct-23
Slough Borough Council,808464,Greenstone Care,M44F,Adult Social Care Operations,Supplies and Services,866.00,Oct-23
Slough Borough Council,808464,Greenstone Care,M44F,Adult Social Care Operations,Supplies and Services,"1,084.00",Oct-23
Slough Borough Council,808464,Greenstone Care,M44F,Adult Social Care Operations,Supplies and Services,"2,600.00",Oct-23
Slough Borough Council,805069,Grove Academy,F253,Children & Families,Premises,"2,000.00",Oct-23
Slough Borough Council,805069,Grove Academy,E610,Children & Families,Supplies and Services,"15,526.47",Oct-23
Slough Borough Council,804447,Grundon Waste Management Limited,D342,Place Operations,Supplies and Services,"472,048.66",Oct-23
Slough Borough Council,804447,Grundon Waste Management Limited,D342,Place Operations,Supplies and Services,"2,130.69",Oct-23
Slough Borough Council,806681,Hako Machines Ltd,D620,Place Operations,Supplies and Services,597.42,Oct-23
Slough Borough Council,806681,Hako Machines Ltd,D620,Place Operations,Supplies and Services,597.42,Oct-23
Slough Borough Council,1610,Handicare Uk,P004,Capital,Supplies and Services,"5,908.00",Oct-23
Slough Borough Council,1610,Handicare Uk,P006,Capital,Capital Charges,"3,284.00",Oct-23
Slough Borough Council,1610,Handicare Uk,P006,Capital,Capital Charges,"6,335.00",Oct-23
Slough Borough Council,1610,Handicare Uk,P006,Capital,Capital Charges,"3,351.00",Oct-23
Slough Borough Council,1610,Handicare Uk,P006,Capital,Capital Charges,"6,560.00",Oct-23
Slough Borough Council,1610,Handicare Uk,P006,Capital,Capital Charges,"3,640.00",Oct-23
Slough Borough Council,1610,Handicare Uk,P006,Capital,Capital Charges,"6,310.00",Oct-23
Slough Borough Council,1610,Handicare Uk,P006,Capital,Capital Charges,"3,800.00",Oct-23
Slough Borough Council,1610,Handicare Uk,P006,Capital,Capital Charges,"3,190.00",Oct-23
Slough Borough Council,1610,Handicare Uk,P006,Capital,Capital Charges,"5,435.00",Oct-23
Slough Borough Council,804986,Havencare Ltd,M26E,Adult Social Care Operations,Supplies and Services,"1,356.27",Oct-23
Slough Borough Council,804986,Havencare Ltd,M26E,Adult Social Care Operations,Supplies and Services,"1,356.27",Oct-23
Slough Borough Council,804986,Havencare Ltd,M26E,Adult Social Care Operations,Supplies and Services,"1,356.27",Oct-23
Slough Borough Council,804986,Havencare Ltd,M26E,Adult Social Care Operations,Supplies and Services,"1,356.27",Oct-23
Slough Borough Council,809014,Havendale Ltd,H205,Housing (People) Services,Supplies and Services,"5,236.00",Oct-23
Slough Borough Council,1381,Haybrook College,E610,Children & Families,Supplies and Services,"112,573.00",Oct-23
Slough Borough Council,3784,Haybrook College Pru,E610,Children & Families,Supplies and Services,"31,968.18",Oct-23
Slough Borough Council,803248,Haybrook College Trust,B297,Finance & Commercial,Government Grants,"1,020.00",Oct-23
Slough Borough Council,808639,Hazel Care Services Ltd,M42E,Adult Social Care Operations,Supplies and Services,"6,768.00",Oct-23
Slough Borough Council,808639,Hazel Care Services Ltd,M42E,Adult Social Care Operations,Supplies and Services,"4,418.40",Oct-23
Slough Borough Council,808639,Hazel Care Services Ltd,M42E,Adult Social Care Operations,Supplies and Services,"2,162.10",Oct-23
Slough Borough Council,808639,Hazel Care Services Ltd,M42E,Adult Social Care Operations,Supplies and Services,"2,516.34",Oct-23
Slough Borough Council,808639,Hazel Care Services Ltd,M44F,Adult Social Care Operations,Supplies and Services,677.16,Oct-23
Slough Borough Council,808639,Hazel Care Services Ltd,M44F,Adult Social Care Operations,Supplies and Services,"3,498.66",Oct-23
Slough Borough Council,808639,Hazel Care Services Ltd,M44F,Adult Social Care Operations,Supplies and Services,"3,385.80",Oct-23
Slough Borough Council,803753,Healthcare Homes,M15D,Adult Social Care Operations,Supplies and Services,"2,938.45",Oct-23
Slough Borough Council,803753,Healthcare Homes,M17C,Adult Social Care Operations,Supplies and Services,"4,871.43",Oct-23
Slough Borough Council,803753,Healthcare Homes,M17C,Adult Social Care Operations,Supplies and Services,"5,314.29",Oct-23
Slough Borough Council,803753,Healthcare Homes,M17C,Adult Social Care Operations,Supplies and Services,"4,428.57",Oct-23
Slough Borough Council,803753,Healthcare Homes,M17C,Adult Social Care Operations,Supplies and Services,"2,629.69",Oct-23
Slough Borough Council,803753,Healthcare Homes,M17C,Adult Social Care Operations,Supplies and Services,"4,871.43",Oct-23
Slough Borough Council,803753,Healthcare Homes,M17C,Adult Social Care Operations,Supplies and Services,"4,871.43",Oct-23
Slough Borough Council,803753,Healthcare Homes,M18C,Adult Social Care Operations,Supplies and Services,"4,871.43",Oct-23
Slough Borough Council,803753,Healthcare Homes,M18C,Adult Social Care Operations,Supplies and Services,"4,871.43",Oct-23
Slough Borough Council,803753,Healthcare Homes,M18C,Adult Social Care Operations,Supplies and Services,"4,871.43",Oct-23
Slough Borough Council,803753,Healthcare Homes,M18C,Adult Social Care Operations,Supplies and Services,"4,871.43",Oct-23
Slough Borough Council,803753,Healthcare Homes,M18C,Adult Social Care Operations,Supplies and Services,"4,871.43",Oct-23
Slough Borough Council,803753,Healthcare Homes,M18C,Adult Social Care Operations,Supplies and Services,"2,571.43",Oct-23
Slough Borough Council,803753,Healthcare Homes,M18C,Adult Social Care Operations,Supplies and Services,"5,314.29",Oct-23
Slough Borough Council,803753,Healthcare Homes,M18C,Adult Social Care Operations,Supplies and Services,"4,628.57",Oct-23
Slough Borough Council,803753,Healthcare Homes,M27C,Adult Social Care Operations,Supplies and Services,"3,224.00",Oct-23
Slough Borough Council,803753,Healthcare Homes,M28C,Adult Social Care Operations,Supplies and Services,"3,600.00",Oct-23
Slough Borough Council,803753,Healthcare Homes,M28C,Adult Social Care Operations,Supplies and Services,"1,371.43",Oct-23
Slough Borough Council,803753,Healthcare Homes,M28C,Adult Social Care Operations,Supplies and Services,"5,314.29",Oct-23
Slough Borough Council,803753,Healthcare Homes,M28C,Adult Social Care Operations,Supplies and Services,"2,571.43",Oct-23
Slough Borough Council,803753,Healthcare Homes,M28C,Adult Social Care Operations,Supplies and Services,"5,142.86",Oct-23
Slough Borough Council,805368,Heathermount School,F462,Children & Families,Supplies and Services,"22,857.03",Oct-23
Slough Borough Council,805368,Heathermount School,F462,Children & Families,Supplies and Services,"22,857.03",Oct-23
Slough Borough Council,805368,Heathermount School,F462,Children & Families,Supplies and Services,"25,715.20",Oct-23
Slough Borough Council,807682,Help and Care,A02C,People Strategy & Commissioning,Supplies and Services,"16,109.74",Oct-23
Slough Borough Council,1686,Herald Chase,B660,Finance & Commercial,Supplies and Services,"1,215.36",Oct-23
Slough Borough Council,1686,Herald Chase,F382,Children & Families,Supplies and Services,"4,595.82",Oct-23
Slough Borough Council,803447,Herewards House Residential Home,M25C,Adult Social Care Operations,Supplies and Services,"3,764.29",Oct-23
Slough Borough Council,803447,Herewards House Residential Home,M25C,Adult Social Care Operations,Supplies and Services,"3,985.71",Oct-23
Slough Borough Council,803447,Herewards House Residential Home,M27C,Adult Social Care Operations,Supplies and Services,"2,878.57",Oct-23
Slough Borough Council,803447,Herewards House Residential Home,M27C,Adult Social Care Operations,Supplies and Services,"3,764.29",Oct-23
Slough Borough Council,803447,Herewards House Residential Home,M27C,Adult Social Care Operations,Supplies and Services,"3,985.71",Oct-23
Slough Borough Council,803447,Herewards House Residential Home,M27C,Adult Social Care Operations,Supplies and Services,"3,764.29",Oct-23
Slough Borough Council,3387,Herschel Grammar School,E610,Children & Families,Supplies and Services,"3,750.00",Oct-23
Slough Borough Council,807998,Heywood's Catering,F253,Children & Families,Supplies and Services,"1,069.43",Oct-23
Slough Borough Council,659,Hilton Cabinet Co Ltd,D320,Place Operations,Supplies and Services,731.26,Oct-23
Slough Borough Council,850,Holy Family Catholic Primary School,E250,Children & Families,Supplies and Services,"192,526.64",Oct-23
Slough Borough Council,808922,HOUSING ACTION MANAGEMENT LTD,H205,Housing (People) Services,Supplies and Services,"1,705.00",Oct-23
Slough Borough Council,808922,HOUSING ACTION MANAGEMENT LTD,H205,Housing (People) Services,Supplies and Services,"1,650.00",Oct-23
Slough Borough Council,808773,Hygiene Systems Ltd,B060,Business Services,Premises,"1,049.90",Oct-23
Slough Borough Council,808773,Hygiene Systems Ltd,B060,Business Services,Premises,"1,464.28",Oct-23
Slough Borough Council,808897,Imperial Breeze Healthcare South East Ltd,M44D,Adult Social Care Operations,Supplies and Services,"2,010.00",Oct-23
Slough Borough Council,808897,Imperial Breeze Healthcare South East Ltd,M44D,Adult Social Care Operations,Supplies and Services,"5,025.00",Oct-23
Slough Borough Council,2917,Imperial Coaches Ltd,F123,Education & Inclusion,External Receipts,"4,700.00",Oct-23
Slough Borough Council,2917,Imperial Coaches Ltd,F123,Education & Inclusion,External Receipts,"5,130.00",Oct-23
Slough Borough Council,807666,Independence Home and Domicilary Care,M44F,Adult Social Care Operations,Supplies and Services,"3,272.10",Oct-23
Slough Borough Council,807666,Independence Home and Domicilary Care,M44F,Adult Social Care Operations,Supplies and Services,"2,845.80",Oct-23
Slough Borough Council,807666,Independence Home and Domicilary Care,M44F,Adult Social Care Operations,Supplies and Services,"3,240.00",Oct-23
Slough Borough Council,807666,Independence Home and Domicilary Care,M44F,Adult Social Care Operations,Supplies and Services,"1,494.75",Oct-23
Slough Borough Council,3570,Independent Supported Living And Disabilities Ltd,M42E,Adult Social Care Operations,Supplies and Services,"3,010.00",Oct-23
Slough Borough Council,3570,Independent Supported Living And Disabilities Ltd,M44E,Adult Social Care Operations,Supplies and Services,"3,570.00",Oct-23
Slough Borough Council,3570,Independent Supported Living And Disabilities Ltd,M44E,Adult Social Care Operations,Supplies and Services,"1,050.00",Oct-23
Slough Borough Council,3570,Independent Supported Living And Disabilities Ltd,M44E,Adult Social Care Operations,Supplies and Services,"4,212.00",Oct-23
Slough Borough Council,3570,Independent Supported Living And Disabilities Ltd,M44E,Adult Social Care Operations,Supplies and Services,"1,440.00",Oct-23
Slough Borough Council,3570,Independent Supported Living And Disabilities Ltd,M44F,Adult Social Care Operations,Supplies and Services,"1,362.06",Oct-23
Slough Borough Council,3570,Independent Supported Living And Disabilities Ltd,M44F,Adult Social Care Operations,Supplies and Services,"2,608.00",Oct-23
Slough Borough Council,803651,Insight Direct (UK) Ltd,B281,Business Services,Supplies and Services,"2,185.40",Oct-23
Slough Borough Council,3172,Intelligent Transport Services,P579,Capital,Supplies and Services,"5,346.90",Oct-23
Slough Borough Council,3172,Intelligent Transport Services,P212,Capital,Capital Charges,616.95,Oct-23
Slough Borough Council,3172,Intelligent Transport Services,P238,Capital,Capital Charges,"2,056.50",Oct-23
Slough Borough Council,3172,Intelligent Transport Services,P244,Capital,Capital Charges,"3,701.70",Oct-23
Slough Borough Council,3172,Intelligent Transport Services,P244,Capital,Capital Charges,"2,262.15",Oct-23
Slough Borough Council,3172,Intelligent Transport Services,P579,Capital,Capital Charges,"4,729.95",Oct-23
Slough Borough Council,3172,Intelligent Transport Services,D501,Place Strategy & Infrastructure,Supplies and Services,"1,750.00",Oct-23
Slough Borough Council,3172,Intelligent Transport Services,D501,Place Strategy & Infrastructure,Supplies and Services,"1,750.00",Oct-23
Slough Borough Council,3172,Intelligent Transport Services,D509,Place Strategy & Infrastructure,Supplies and Services,"6,894.33",Oct-23
Slough Borough Council,3500,Iqra Slough Islamic Primary School,E480,Children & Families,Supplies and Services,"107,988.80",Oct-23
Slough Borough Council,2919,Islamic Shakhsiyah Foundation,F909,Children & Families,Supplies and Services,"12,290.18",Oct-23
Slough Borough Council,806270,J2 RESEARCH LTD,F210,Community,Supplies and Services,"2,505.00",Oct-23
Slough Borough Council,753,Jack In The Box Day Nursery,F909,Children & Families,Supplies and Services,"11,074.73",Oct-23
Slough Borough Council,733,James Elliman  School,E620,Children & Families,Supplies and Services,"21,762.33",Oct-23
Slough Borough Council,805226,JD Surfacing & Civil Engineering Limited,P579,Capital,Capital Charges,"15,300.00",Oct-23
Slough Borough Council,805226,JD Surfacing & Civil Engineering Limited,P579,Capital,Capital Charges,"2,040.00",Oct-23
Slough Borough Council,805226,JD Surfacing & Civil Engineering Limited,P243,Capital,Capital Charges,"5,250.00",Oct-23
Slough Borough Council,805226,JD Surfacing & Civil Engineering Limited,D500,Place Strategy & Infrastructure,Supplies and Services,"4,100.00",Oct-23
Slough Borough Council,807453,John F Hunt Regeneration Ltd,P405,Capital,Capital Charges,"131,369.36",Oct-23
Slough Borough Council,807453,John F Hunt Regeneration Ltd,P405,Capital,Capital Charges,"108,497.60",Oct-23
Slough Borough Council,807453,John F Hunt Regeneration Ltd,P405,Capital,Capital Charges,"107,904.80",Oct-23
Slough Borough Council,2200,Joshua Pilmore,C322,Community,Supplies and Services,"2,065.00",Oct-23
Slough Borough Council,809063,KARELINK LTD,M18C,Adult Social Care Operations,Supplies and Services,"3,000.00",Oct-23
Slough Borough Council,803815,Kathys Childcare,F909,Children & Families,Supplies and Services,952.35,Oct-23
Slough Borough Council,2620,Kcare Nursing Agency Ltd,M44C,Adult Social Care Operations,Supplies and Services,896.70,Oct-23
Slough Borough Council,2620,Kcare Nursing Agency Ltd,M44D,Adult Social Care Operations,Supplies and Services,"1,576.05",Oct-23
Slough Borough Council,2620,Kcare Nursing Agency Ltd,M48C,Adult Social Care Operations,Supplies and Services,"4,000.00",Oct-23
Slough Borough Council,804887,KCare Nursing Agency Ltd Supported House Living,M42F,Adult Social Care Operations,Supplies and Services,"2,926.00",Oct-23
Slough Borough Council,804887,KCare Nursing Agency Ltd Supported House Living,M44F,Adult Social Care Operations,Supplies and Services,"2,493.50",Oct-23
Slough Borough Council,804875,Kennel Lane School,F551,Children & Families,Supplies and Services,"11,665.18",Oct-23
Slough Borough Council,804875,Kennel Lane School,F551,Children & Families,Supplies and Services,"10,569.00",Oct-23
Slough Borough Council,804875,Kennel Lane School,F551,Children & Families,Supplies and Services,"21,710.00",Oct-23
Slough Borough Council,808146,Kents Hill Care Home,M18C,Adult Social Care Operations,Supplies and Services,"3,788.57",Oct-23
Slough Borough Council,808146,Kents Hill Care Home,M18C,Adult Social Care Operations,Supplies and Services,"3,914.86",Oct-23
Slough Borough Council,807742,Khalsa Primary School,E620,Children & Families,Supplies and Services,"15,652.00",Oct-23
Slough Borough Council,803916,Kharis Solutions,M42E,Adult Social Care Operations,Supplies and Services,"6,600.00",Oct-23
Slough Borough Council,803916,Kharis Solutions,M42E,Adult Social Care Operations,Supplies and Services,"3,700.00",Oct-23
Slough Borough Council,803916,Kharis Solutions,M42E,Adult Social Care Operations,Supplies and Services,"4,070.00",Oct-23
Slough Borough Council,808609,Langhams Partnership LTD,H218,Community,Supplies and Services,"11,600.00",Oct-23
Slough Borough Council,664,Langley Grammar School,E610,Children & Families,Supplies and Services,875.00,Oct-23
Slough Borough Council,1699,Langley Hall Primary Academy,E620,Children & Families,Supplies and Services,"4,750.00",Oct-23
Slough Borough Council,3001,Langley Haven Care Homes Ltd,M25C,Adult Social Care Operations,Supplies and Services,"4,898.40",Oct-23
Slough Borough Council,3001,Langley Haven Care Homes Ltd,M25C,Adult Social Care Operations,Supplies and Services,"4,430.12",Oct-23
Slough Borough Council,3001,Langley Haven Care Homes Ltd,M25C,Adult Social Care Operations,Supplies and Services,"4,430.12",Oct-23
Slough Borough Council,3001,Langley Haven Care Homes Ltd,M25D,Adult Social Care Operations,Supplies and Services,"4,430.12",Oct-23
Slough Borough Council,3001,Langley Haven Care Homes Ltd,M25D,Adult Social Care Operations,Supplies and Services,"4,430.12",Oct-23
Slough Borough Council,3001,Langley Haven Care Homes Ltd,M26E,Adult Social Care Operations,Supplies and Services,"4,571.84",Oct-23
Slough Borough Council,3001,Langley Haven Care Homes Ltd,M26E,Adult Social Care Operations,Supplies and Services,"4,571.84",Oct-23
Slough Borough Council,3001,Langley Haven Care Homes Ltd,M27C,Adult Social Care Operations,Supplies and Services,"4,430.12",Oct-23
Slough Borough Council,3001,Langley Haven Care Homes Ltd,M27C,Adult Social Care Operations,Supplies and Services,"4,430.12",Oct-23
Slough Borough Council,3001,Langley Haven Care Homes Ltd,M27C,Adult Social Care Operations,Supplies and Services,"4,430.12",Oct-23
Slough Borough Council,3001,Langley Haven Care Homes Ltd,M27C,Adult Social Care Operations,Supplies and Services,"4,430.12",Oct-23
Slough Borough Council,3001,Langley Haven Care Homes Ltd,M27C,Adult Social Care Operations,Supplies and Services,"4,430.12",Oct-23
Slough Borough Council,3001,Langley Haven Care Homes Ltd,M27F,Adult Social Care Operations,Supplies and Services,"4,898.40",Oct-23
Slough Borough Council,3001,Langley Haven Care Homes Ltd,M27F,Adult Social Care Operations,Supplies and Services,"4,430.12",Oct-23
Slough Borough Council,3001,Langley Haven Care Homes Ltd,M27F,Adult Social Care Operations,Supplies and Services,"4,430.12",Oct-23
Slough Borough Council,3001,Langley Haven Care Homes Ltd,M27F,Adult Social Care Operations,Supplies and Services,"4,430.12",Oct-23
Slough Borough Council,3001,Langley Haven Care Homes Ltd,M27F,Adult Social Care Operations,Supplies and Services,"2,313.13",Oct-23
Slough Borough Council,3001,Langley Haven Care Homes Ltd,M28C,Adult Social Care Operations,Supplies and Services,"3,001.05",Oct-23
Slough Borough Council,3001,Langley Haven Care Homes Ltd,M28C,Adult Social Care Operations,Supplies and Services,"1,550.56",Oct-23
Slough Borough Council,3001,Langley Haven Care Homes Ltd,M29C,Adult Social Care Operations,Supplies and Services,"4,430.12",Oct-23
Slough Borough Council,3001,Langley Haven Care Homes Ltd,M29C,Adult Social Care Operations,Supplies and Services,"-1,286.16",Oct-23
Slough Borough Council,3001,Langley Haven Care Homes Ltd,M29C,Adult Social Care Operations,Supplies and Services,"1,286.16",Oct-23
Slough Borough Council,3001,Langley Haven Care Homes Ltd,M29C,Adult Social Care Operations,Supplies and Services,"-1,285.71",Oct-23
Slough Borough Council,803686,Lascelles Park Nursery,F909,Children & Families,Supplies and Services,"1,903.82",Oct-23
Slough Borough Council,803686,Lascelles Park Nursery,F909,Children & Families,Supplies and Services,"18,949.31",Oct-23
Slough Borough Council,803686,Lascelles Park Nursery,F909,Children & Families,Supplies and Services,"1,903.82",Oct-23
Slough Borough Council,808423,Leo's Circus CIC,F382,Children & Families,Supplies and Services,"11,919.43",Oct-23
Slough Borough Council,808892,Letee Limited,H205,Housing (People) Services,Supplies and Services,"1,900.00",Oct-23
Slough Borough Council,808892,Letee Limited,H205,Housing (People) Services,Supplies and Services,"1,650.00",Oct-23
Slough Borough Council,808892,Letee Limited,H205,Housing (People) Services,Supplies and Services,"6,600.00",Oct-23
Slough Borough Council,808892,Letee Limited,H205,Housing (People) Services,Supplies and Services,"1,650.00",Oct-23
Slough Borough Council,808892,Letee Limited,H205,Housing (People) Services,Supplies and Services,750.00,Oct-23
Slough Borough Council,469,LimeBlue Innovation Limited,H213,Adult Social Care Operations,Supplies and Services,"1,715.00",Oct-23
Slough Borough Council,469,LimeBlue Innovation Limited,H213,Adult Social Care Operations,Supplies and Services,"1,715.00",Oct-23
Slough Borough Council,469,LimeBlue Innovation Limited,H213,Adult Social Care Operations,Supplies and Services,525.00,Oct-23
Slough Borough Council,469,LimeBlue Innovation Limited,H213,Adult Social Care Operations,Supplies and Services,"1,050.00",Oct-23
Slough Borough Council,804692,Little Diamonds Pre School,F909,Children & Families,Supplies and Services,"1,355.40",Oct-23
Slough Borough Council,804692,Little Diamonds Pre School,F909,Children & Families,Supplies and Services,"17,000.00",Oct-23
Slough Borough Council,3791,Littledown Pru,E610,Children & Families,Supplies and Services,"17,100.00",Oct-23
Slough Borough Council,667,Littledown School,E610,Children & Families,Supplies and Services,"101,111.67",Oct-23
Slough Borough Council,1282,Long Close School,F909,Children & Families,Supplies and Services,"6,608.87",Oct-23
Slough Borough Council,2302,Look Ahead Care And Support,M42F,Adult Social Care Operations,Supplies and Services,"22,223.31",Oct-23
Slough Borough Council,2302,Look Ahead Care And Support,M42F,Adult Social Care Operations,Supplies and Services,"1,808.41",Oct-23
Slough Borough Council,2302,Look Ahead Care And Support,M44F,Adult Social Care Operations,Supplies and Services,"1,808.85",Oct-23
Slough Borough Council,2302,Look Ahead Care And Support,M44F,Adult Social Care Operations,Supplies and Services,"1,567.71",Oct-23
Slough Borough Council,2302,Look Ahead Care And Support,M44F,Adult Social Care Operations,Supplies and Services,"1,565.81",Oct-23
Slough Borough Council,2302,Look Ahead Care And Support,M44F,Adult Social Care Operations,Supplies and Services,904.23,Oct-23
Slough Borough Council,2302,Look Ahead Care And Support,M44F,Adult Social Care Operations,Supplies and Services,"1,567.71",Oct-23
Slough Borough Council,2302,Look Ahead Care And Support,M44F,Adult Social Care Operations,Supplies and Services,904.40,Oct-23
Slough Borough Council,2302,Look Ahead Care And Support,M44F,Adult Social Care Operations,Supplies and Services,"1,567.71",Oct-23
Slough Borough Council,2302,Look Ahead Care And Support,M44F,Adult Social Care Operations,Supplies and Services,"1,808.41",Oct-23
Slough Borough Council,2302,Look Ahead Care And Support,M44F,Adult Social Care Operations,Supplies and Services,904.18,Oct-23
Slough Borough Council,2302,Look Ahead Care And Support,M44F,Adult Social Care Operations,Supplies and Services,819.29,Oct-23
Slough Borough Council,2302,Look Ahead Care And Support,M44F,Adult Social Care Operations,Supplies and Services,"1,808.41",Oct-23
Slough Borough Council,2302,Look Ahead Care And Support,H211,People Adults,Supplies and Services,"12,905.19",Oct-23
Slough Borough Council,2302,Look Ahead Care And Support,H211,People Adults,Supplies and Services,816.68,Oct-23
Slough Borough Council,2302,Look Ahead Care And Support,H211,People Adults,Supplies and Services,"1,633.80",Oct-23
Slough Borough Council,2302,Look Ahead Care And Support,H211,People Adults,Supplies and Services,"12,905.19",Oct-23
Slough Borough Council,2302,Look Ahead Care And Support,H211,People Adults,Supplies and Services,816.68,Oct-23
Slough Borough Council,2302,Look Ahead Care And Support,H211,People Adults,Supplies and Services,"1,633.80",Oct-23
Slough Borough Council,2302,Look Ahead Care And Support,H211,People Adults,Supplies and Services,"13,982.80",Oct-23
Slough Borough Council,2302,Look Ahead Care And Support,H211,People Adults,Supplies and Services,816.68,Oct-23
Slough Borough Council,2302,Look Ahead Care And Support,H211,People Adults,Supplies and Services,556.19,Oct-23
Slough Borough Council,808989,Louise Brant,C322,Community,Supplies and Services,525.00,Oct-23
Slough Borough Council,1195,Lynch Hill (Foundation Primary) School,E620,Children & Families,Supplies and Services,"25,901.67",Oct-23
Slough Borough Council,1771,Lynch Hill Academy,E620,Children & Families,Supplies and Services,"13,305.14",Oct-23
Slough Borough Council,3424,M D Homes,M15F,Adult Social Care Operations,Supplies and Services,"5,115.00",Oct-23
Slough Borough Council,807217,Macadamia Support Limited,M42E,Adult Social Care Operations,Supplies and Services,"2,457.35",Oct-23
Slough Borough Council,807217,Macadamia Support Limited,M42E,Adult Social Care Operations,Supplies and Services,839.75,Oct-23
Slough Borough Council,807217,Macadamia Support Limited,M42E,Adult Social Care Operations,Supplies and Services,"6,931.20",Oct-23
Slough Borough Council,807217,Macadamia Support Limited,M42E,Adult Social Care Operations,Supplies and Services,"3,973.20",Oct-23
Slough Borough Council,807217,Macadamia Support Limited,M42E,Adult Social Care Operations,Supplies and Services,"7,977.64",Oct-23
Slough Borough Council,807217,Macadamia Support Limited,M42E,Adult Social Care Operations,Supplies and Services,"7,308.00",Oct-23
Slough Borough Council,807217,Macadamia Support Limited,M42E,Adult Social Care Operations,Supplies and Services,"3,589.12",Oct-23
Slough Borough Council,807217,Macadamia Support Limited,M42E,Adult Social Care Operations,Supplies and Services,"2,519.28",Oct-23
Slough Borough Council,807217,Macadamia Support Limited,M42E,Adult Social Care Operations,Supplies and Services,"10,496.87",Oct-23
Slough Borough Council,807217,Macadamia Support Limited,M42E,Adult Social Care Operations,Supplies and Services,"5,361.79",Oct-23
Slough Borough Council,807217,Macadamia Support Limited,M42E,Adult Social Care Operations,Supplies and Services,"6,438.84",Oct-23
Slough Borough Council,807217,Macadamia Support Limited,M42E,Adult Social Care Operations,Supplies and Services,643.41,Oct-23
Slough Borough Council,807217,Macadamia Support Limited,M42E,Adult Social Care Operations,Supplies and Services,"3,778.88",Oct-23
Slough Borough Council,807217,Macadamia Support Limited,M42E,Adult Social Care Operations,Supplies and Services,"9,237.24",Oct-23
Slough Borough Council,807217,Macadamia Support Limited,M42E,Adult Social Care Operations,Supplies and Services,"1,259.65",Oct-23
Slough Borough Council,807217,Macadamia Support Limited,M42E,Adult Social Care Operations,Supplies and Services,"1,004.25",Oct-23
Slough Borough Council,807217,Macadamia Support Limited,M42E,Adult Social Care Operations,Supplies and Services,"8,368.75",Oct-23
Slough Borough Council,807217,Macadamia Support Limited,M44C,Adult Social Care Operations,Supplies and Services,"3,591.56",Oct-23
Slough Borough Council,807217,Macadamia Support Limited,M44D,Adult Social Care Operations,Supplies and Services,"5,523.00",Oct-23
Slough Borough Council,1874,Maccabee Pets Hotel,H253,Place Regulation,Supplies and Services,"3,600.00",Oct-23
Slough Borough Council,1874,Maccabee Pets Hotel,H253,Place Regulation,Supplies and Services,960.00,Oct-23
Slough Borough Council,1941,Manor Green School,F551,Children & Families,Supplies and Services,"5,000.00",Oct-23
Slough Borough Council,4001,Manpower Direct Uk Limited,P242,Capital,Capital Charges,"2,695.60",Oct-23
Slough Borough Council,529,Marish Primary School,E620,Children & Families,Supplies and Services,"84,069.33",Oct-23
Slough Borough Council,1886,Matrix Scm,B023,Finance & Commercial,Agency Staff,"491,199.92",Oct-23
Slough Borough Council,1886,Matrix Scm,B023,Finance & Commercial,Agency Staff,"459,797.57",Oct-23
Slough Borough Council,1886,Matrix Scm,B023,Finance & Commercial,Agency Staff,"504,442.18",Oct-23
Slough Borough Council,1886,Matrix Scm,B023,Finance & Commercial,Agency Staff,"526,959.90",Oct-23
Slough Borough Council,1886,Matrix Scm,B348,People,Agency Staff,"15,951.00",Oct-23
Slough Borough Council,807684,Maverick Care  Ltd T/A Christies Care Windsor & Maidenhead,A07R,Adult Social Care Operations,Supplies and Services,512.00,Oct-23
Slough Borough Council,807684,Maverick Care  Ltd T/A Christies Care Windsor & Maidenhead,M44C,Adult Social Care Operations,Supplies and Services,930.00,Oct-23
Slough Borough Council,807684,Maverick Care  Ltd T/A Christies Care Windsor & Maidenhead,M44C,Adult Social Care Operations,Supplies and Services,"1,800.00",Oct-23
Slough Borough Council,807684,Maverick Care  Ltd T/A Christies Care Windsor & Maidenhead,M44C,Adult Social Care Operations,Supplies and Services,"1,352.00",Oct-23
Slough Borough Council,807684,Maverick Care  Ltd T/A Christies Care Windsor & Maidenhead,M44C,Adult Social Care Operations,Supplies and Services,"1,190.00",Oct-23
Slough Borough Council,807684,Maverick Care  Ltd T/A Christies Care Windsor & Maidenhead,M44D,Adult Social Care Operations,Supplies and Services,"4,398.00",Oct-23
Slough Borough Council,807684,Maverick Care  Ltd T/A Christies Care Windsor & Maidenhead,M45C,Adult Social Care Operations,Supplies and Services,"1,600.00",Oct-23
Slough Borough Council,807684,Maverick Care  Ltd T/A Christies Care Windsor & Maidenhead,M45C,Adult Social Care Operations,Supplies and Services,545.50,Oct-23
Slough Borough Council,2237,Metts Ltd,M50A,Place Operations,Transport,"1,002.47",Oct-23
Slough Borough Council,2237,Metts Ltd,M50A,Place Operations,Transport,503.83,Oct-23
Slough Borough Council,1496,Mighty Acorns Day Nursery Ltd,F909,Children & Families,Supplies and Services,"2,064.61",Oct-23
Slough Borough Council,1496,Mighty Acorns Day Nursery Ltd,F909,Children & Families,Supplies and Services,"11,535.61",Oct-23
Slough Borough Council,1496,Mighty Acorns Day Nursery Ltd,F909,Children & Families,Supplies and Services,"2,064.61",Oct-23
Slough Borough Council,808716,Mini Todds Ltd,F909,Children & Families,Supplies and Services,"1,045.20",Oct-23
Slough Borough Council,808716,Mini Todds Ltd,F909,Children & Families,Supplies and Services,"4,808.70",Oct-23
Slough Borough Council,808716,Mini Todds Ltd,F909,Children & Families,Supplies and Services,"1,045.20",Oct-23
Slough Borough Council,805121,MMCG (2) Limited,M15D,Adult Social Care Operations,Supplies and Services,"3,580.20",Oct-23
Slough Borough Council,805121,MMCG (2) Limited,M15D,Adult Social Care Operations,Supplies and Services,"3,580.20",Oct-23
Slough Borough Council,805121,MMCG (2) Limited,M15F,Adult Social Care Operations,Supplies and Services,"3,580.20",Oct-23
Slough Borough Council,805121,MMCG (2) Limited,M17C,Adult Social Care Operations,Supplies and Services,"3,580.20",Oct-23
Slough Borough Council,805121,MMCG (2) Limited,M17C,Adult Social Care Operations,Supplies and Services,"3,580.20",Oct-23
Slough Borough Council,805121,MMCG (2) Limited,M18C,Adult Social Care Operations,Supplies and Services,"3,580.20",Oct-23
Slough Borough Council,805121,MMCG (2) Limited,M18C,Adult Social Care Operations,Supplies and Services,"4,415.61",Oct-23
Slough Borough Council,805121,MMCG (2) Limited,M18C,Adult Social Care Operations,Supplies and Services,"3,580.20",Oct-23
Slough Borough Council,805121,MMCG (2) Limited,M18C,Adult Social Care Operations,Supplies and Services,"3,580.20",Oct-23
Slough Borough Council,805121,MMCG (2) Limited,M18C,Adult Social Care Operations,Supplies and Services,"4,415.61",Oct-23
Slough Borough Council,805121,MMCG (2) Limited,M18C,Adult Social Care Operations,Supplies and Services,"4,415.61",Oct-23
Slough Borough Council,805121,MMCG (2) Limited,M25C,Adult Social Care Operations,Supplies and Services,"3,580.20",Oct-23
Slough Borough Council,805121,MMCG (2) Limited,M25C,Adult Social Care Operations,Supplies and Services,"3,580.20",Oct-23
Slough Borough Council,805121,MMCG (2) Limited,M25C,Adult Social Care Operations,Supplies and Services,"3,580.20",Oct-23
Slough Borough Council,805121,MMCG (2) Limited,M25C,Adult Social Care Operations,Supplies and Services,"3,580.20",Oct-23
Slough Borough Council,805121,MMCG (2) Limited,M25C,Adult Social Care Operations,Supplies and Services,"3,580.20",Oct-23
Slough Borough Council,805121,MMCG (2) Limited,M25C,Adult Social Care Operations,Supplies and Services,"3,580.20",Oct-23
Slough Borough Council,805121,MMCG (2) Limited,M25D,Adult Social Care Operations,Supplies and Services,"3,699.54",Oct-23
Slough Borough Council,805121,MMCG (2) Limited,M25D,Adult Social Care Operations,Supplies and Services,"3,580.20",Oct-23
Slough Borough Council,805121,MMCG (2) Limited,M26D,Adult Social Care Operations,Supplies and Services,"1,312.74",Oct-23
Slough Borough Council,805121,MMCG (2) Limited,M26D,Adult Social Care Operations,Supplies and Services,"3,102.84",Oct-23
Slough Borough Council,805121,MMCG (2) Limited,M27C,Adult Social Care Operations,Supplies and Services,"3,580.20",Oct-23
Slough Borough Council,805121,MMCG (2) Limited,M27C,Adult Social Care Operations,Supplies and Services,"3,580.20",Oct-23
Slough Borough Council,805121,MMCG (2) Limited,M27C,Adult Social Care Operations,Supplies and Services,"3,580.20",Oct-23
Slough Borough Council,805121,MMCG (2) Limited,M27C,Adult Social Care Operations,Supplies and Services,"3,580.20",Oct-23
Slough Borough Council,805121,MMCG (2) Limited,M27C,Adult Social Care Operations,Supplies and Services,"3,442.50",Oct-23
Slough Borough Council,805121,MMCG (2) Limited,M28C,Adult Social Care Operations,Supplies and Services,954.72,Oct-23
Slough Borough Council,2115,Montagu Evans Llp,B081,Place Strategy & Infrastructure,Supplies and Services,"4,000.00",Oct-23
Slough Borough Council,2100,Montem Accademy,B297,Finance & Commercial,Government Grants,"3,105.00",Oct-23
Slough Borough Council,3302,Montem Primary School,E620,Children & Families,Supplies and Services,"27,965.33",Oct-23
Slough Borough Council,1632,Monterpoint Technologies,F210,Community,Supplies and Services,"25,500.00",Oct-23
Slough Borough Council,807432,MPD FM Limited,P242,Capital,Capital Charges,"6,531.18",Oct-23
Slough Borough Council,807432,MPD FM Limited,P242,Capital,Capital Charges,"9,009.75",Oct-23
Slough Borough Council,807432,MPD FM Limited,P242,Capital,Capital Charges,"7,826.67",Oct-23
Slough Borough Council,807432,MPD FM Limited,P242,Capital,Capital Charges,"5,993.88",Oct-23
Slough Borough Council,807432,MPD FM Limited,P242,Capital,Capital Charges,"7,050.57",Oct-23
Slough Borough Council,807501,Mrs Parvinder Kaur Bhandal,H205,Housing (People) Services,Supplies and Services,"21,867.00",Oct-23
Slough Borough Council,806858,MUDDY BOOTS DAY NURSERY LTD,F909,Children & Families,Supplies and Services,"10,165.05",Oct-23
Slough Borough Council,808895,MVH Building Solutions,P006,Capital,Capital Charges,"4,913.64",Oct-23
Slough Borough Council,804710,MWUK Ltd trading as Alexandra,A07R,Adult Social Care Operations,Supplies and Services,630.00,Oct-23
Slough Borough Council,805369,NAS Services Limited,M42E,Adult Social Care Operations,Supplies and Services,"8,780.12",Oct-23
Slough Borough Council,1216,Network Rail Infrastructure Ltd,P235,Capital,Capital Charges,"2,542.51",Oct-23
Slough Borough Council,805194,New City Scales Ltd,D630,Place Operations,Supplies and Services,"1,075.00",Oct-23
Slough Borough Council,808540,NHS Frimley ICB,A04C,Adult Social Care Operations,Supplies and Services,"22,659.80",Oct-23
Slough Borough Council,1864,Noahs Ark Environmental Services Ltd,H253,Place Regulation,Supplies and Services,"2,538.16",Oct-23
Slough Borough Council,1864,Noahs Ark Environmental Services Ltd,H253,Place Regulation,Supplies and Services,"2,618.77",Oct-23
Slough Borough Council,1864,Noahs Ark Environmental Services Ltd,H253,Place Regulation,Supplies and Services,"-1,455.71",Oct-23
Slough Borough Council,807891,NORTH TECH,B179,Business Services,Premises,880.00,Oct-23
Slough Borough Council,803238,Oasis Care and Training Agency,A07R,Adult Social Care Operations,Supplies and Services,"2,165.96",Oct-23
Slough Borough Council,803238,Oasis Care and Training Agency,A07R,Adult Social Care Operations,Supplies and Services,"2,388.96",Oct-23
Slough Borough Council,803238,Oasis Care and Training Agency,M41D,Adult Social Care Operations,Supplies and Services,663.60,Oct-23
Slough Borough Council,803238,Oasis Care and Training Agency,M44C,Adult Social Care Operations,Supplies and Services,796.32,Oct-23
Slough Borough Council,803238,Oasis Care and Training Agency,M44C,Adult Social Care Operations,Supplies and Services,"2,256.24",Oct-23
Slough Borough Council,803238,Oasis Care and Training Agency,M44C,Adult Social Care Operations,Supplies and Services,"1,061.76",Oct-23
Slough Borough Council,803238,Oasis Care and Training Agency,M44C,Adult Social Care Operations,Supplies and Services,796.32,Oct-23
Slough Borough Council,803238,Oasis Care and Training Agency,M44C,Adult Social Care Operations,Supplies and Services,929.04,Oct-23
Slough Borough Council,803238,Oasis Care and Training Agency,M44C,Adult Social Care Operations,Supplies and Services,"2,388.96",Oct-23
Slough Borough Council,803238,Oasis Care and Training Agency,M44C,Adult Social Care Operations,Supplies and Services,"1,194.48",Oct-23
Slough Borough Council,803238,Oasis Care and Training Agency,M44C,Adult Social Care Operations,Supplies and Services,"1,327.20",Oct-23
Slough Borough Council,803238,Oasis Care and Training Agency,M44C,Adult Social Care Operations,Supplies and Services,"2,957.76",Oct-23
Slough Borough Council,803238,Oasis Care and Training Agency,M44C,Adult Social Care Operations,Supplies and Services,"2,388.96",Oct-23
Slough Borough Council,803238,Oasis Care and Training Agency,M44C,Adult Social Care Operations,Supplies and Services,"1,478.88",Oct-23
Slough Borough Council,803238,Oasis Care and Training Agency,M44C,Adult Social Care Operations,Supplies and Services,"1,270.32",Oct-23
Slough Borough Council,803238,Oasis Care and Training Agency,M44C,Adult Social Care Operations,Supplies and Services,"2,388.96",Oct-23
Slough Borough Council,803238,Oasis Care and Training Agency,M44C,Adult Social Care Operations,Supplies and Services,929.04,Oct-23
Slough Borough Council,803238,Oasis Care and Training Agency,M44C,Adult Social Care Operations,Supplies and Services,663.60,Oct-23
Slough Borough Council,803238,Oasis Care and Training Agency,M44C,Adult Social Care Operations,Supplies and Services,663.60,Oct-23
Slough Borough Council,803238,Oasis Care and Training Agency,M44D,Adult Social Care Operations,Supplies and Services,936.85,Oct-23
Slough Borough Council,803238,Oasis Care and Training Agency,M44D,Adult Social Care Operations,Supplies and Services,"2,388.96",Oct-23
Slough Borough Council,803238,Oasis Care and Training Agency,M44D,Adult Social Care Operations,Supplies and Services,663.60,Oct-23
Slough Borough Council,803238,Oasis Care and Training Agency,M44D,Adult Social Care Operations,Supplies and Services,"1,080.72",Oct-23
Slough Borough Council,803238,Oasis Care and Training Agency,M44D,Adult Social Care Operations,Supplies and Services,948.00,Oct-23
Slough Borough Council,803238,Oasis Care and Training Agency,M44D,Adult Social Care Operations,Supplies and Services,929.04,Oct-23
Slough Borough Council,803238,Oasis Care and Training Agency,M44D,Adult Social Care Operations,Supplies and Services,"1,478.88",Oct-23
Slough Borough Council,803238,Oasis Care and Training Agency,M44D,Adult Social Care Operations,Supplies and Services,891.12,Oct-23
Slough Borough Council,803238,Oasis Care and Training Agency,M44D,Adult Social Care Operations,Supplies and Services,"1,459.92",Oct-23
Slough Borough Council,803238,Oasis Care and Training Agency,M44F,Adult Social Care Operations,Supplies and Services,"2,388.96",Oct-23
Slough Borough Council,803238,Oasis Care and Training Agency,M44F,Adult Social Care Operations,Supplies and Services,"1,516.80",Oct-23
Slough Borough Council,803238,Oasis Care and Training Agency,M45C,Adult Social Care Operations,Supplies and Services,663.60,Oct-23
Slough Borough Council,803238,Oasis Care and Training Agency,M45C,Adult Social Care Operations,Supplies and Services,981.18,Oct-23
Slough Borough Council,803238,Oasis Care and Training Agency,M48C,Adult Social Care Operations,Supplies and Services,"3,185.28",Oct-23
Slough Borough Council,803238,Oasis Care and Training Agency,M85F,People Adults,Supplies and Services,606.72,Oct-23
Slough Borough Council,1129,Ocean Media Group Ltd,J028,Place Management,Supplies and Services,"2,195.00",Oct-23
Slough Borough Council,1767,Olive Tree Montessori Ltd,F909,Children & Families,Supplies and Services,"2,053.46",Oct-23
Slough Borough Council,1767,Olive Tree Montessori Ltd,F909,Children & Families,Supplies and Services,"23,357.82",Oct-23
Slough Borough Council,1767,Olive Tree Montessori Ltd,F909,Children & Families,Supplies and Services,"2,053.46",Oct-23
Slough Borough Council,3603,Olympia Transport Limited,F123,Education & Inclusion,External Receipts,"27,839.05",Oct-23
Slough Borough Council,804687,Optalis Limited,M42E,Adult Social Care Operations,Supplies and Services,"5,642.13",Oct-23
Slough Borough Council,804687,Optalis Limited,M42E,Adult Social Care Operations,Supplies and Services,"4,807.26",Oct-23
Slough Borough Council,803490,Optimum Specialised Home Limited,M26E,Adult Social Care Operations,Supplies and Services,"8,400.00",Oct-23
Slough Borough Council,803490,Optimum Specialised Home Limited,M26E,Adult Social Care Operations,Supplies and Services,"7,200.00",Oct-23
Slough Borough Council,803490,Optimum Specialised Home Limited,M26E,Adult Social Care Operations,Supplies and Services,"7,180.00",Oct-23
Slough Borough Council,985,Opus Pharmacy Services Ltd,A07R,Adult Social Care Operations,Indirect Employee Expenses,550.00,Oct-23
Slough Borough Council,805011,Osborne Property Services Limited,J607,Place Management,Premises,"231,617.84",Oct-23
Slough Borough Council,805011,Osborne Property Services Limited,J607,Place Management,Premises,"4,860.39",Oct-23
Slough Borough Council,805011,Osborne Property Services Limited,H206,Community,Premises,"2,030.67",Oct-23
Slough Borough Council,805011,Osborne Property Services Limited,J606,Place Management,Supplies and Services,"7,941.24",Oct-23
Slough Borough Council,805011,Osborne Property Services Limited,J606,Place Management,Supplies and Services,"257,119.33",Oct-23
Slough Borough Council,805011,Osborne Property Services Limited,P409,Capital,Capital Charges,"36,339.07",Oct-23
Slough Borough Council,805011,Osborne Property Services Limited,P409,Capital,Capital Charges,"55,794.59",Oct-23
Slough Borough Council,805011,Osborne Property Services Limited,P412,Capital,Capital Charges,"44,179.59",Oct-23
Slough Borough Council,805011,Osborne Property Services Limited,P413,Capital,Capital Charges,"93,619.44",Oct-23
Slough Borough Council,805011,Osborne Property Services Limited,P415,Capital,Capital Charges,"1,428.72",Oct-23
Slough Borough Council,805011,Osborne Property Services Limited,P417,Capital,Capital Charges,"200,535.83",Oct-23
Slough Borough Council,805011,Osborne Property Services Limited,P418,Capital,Capital Charges,"39,269.27",Oct-23
Slough Borough Council,805011,Osborne Property Services Limited,P419,Capital,Capital Charges,"70,104.62",Oct-23
Slough Borough Council,805011,Osborne Property Services Limited,P431,Capital,Capital Charges,"289,842.22",Oct-23
Slough Borough Council,805011,Osborne Property Services Limited,P547,Capital,Capital Charges,"18,740.32",Oct-23
Slough Borough Council,805011,Osborne Property Services Limited,J607,Place Management,Supplies and Services,"120,190.76",Oct-23
Slough Borough Council,3371,Our Lady Of Peace Catholic Primary and Nursery School,E340,Children & Families,Supplies and Services,"42,963.96",Oct-23
Slough Borough Council,680,Oxford House Community Care,A07R,Adult Social Care Operations,Supplies and Services,509.60,Oct-23
Slough Borough Council,680,Oxford House Community Care,A07R,Adult Social Care Operations,Supplies and Services,"1,072.87",Oct-23
Slough Borough Council,680,Oxford House Community Care,M44C,Adult Social Care Operations,Supplies and Services,718.48,Oct-23
Slough Borough Council,680,Oxford House Community Care,M44C,Adult Social Care Operations,Supplies and Services,"3,213.98",Oct-23
Slough Borough Council,680,Oxford House Community Care,M44C,Adult Social Care Operations,Supplies and Services,"1,462.23",Oct-23
Slough Borough Council,680,Oxford House Community Care,M44C,Adult Social Care Operations,Supplies and Services,"1,428.75",Oct-23
Slough Borough Council,680,Oxford House Community Care,M44C,Adult Social Care Operations,Supplies and Services,"3,241.80",Oct-23
Slough Borough Council,680,Oxford House Community Care,M44C,Adult Social Care Operations,Supplies and Services,999.47,Oct-23
Slough Borough Council,680,Oxford House Community Care,M44C,Adult Social Care Operations,Supplies and Services,"1,265.50",Oct-23
Slough Borough Council,680,Oxford House Community Care,M44C,Adult Social Care Operations,Supplies and Services,666.15,Oct-23
Slough Borough Council,680,Oxford House Community Care,M44C,Adult Social Care Operations,Supplies and Services,"1,094.94",Oct-23
Slough Borough Council,680,Oxford House Community Care,M44C,Adult Social Care Operations,Supplies and Services,"2,619.35",Oct-23
Slough Borough Council,680,Oxford House Community Care,M44C,Adult Social Care Operations,Supplies and Services,"3,450.77",Oct-23
Slough Borough Council,680,Oxford House Community Care,M44C,Adult Social Care Operations,Supplies and Services,"1,245.06",Oct-23
Slough Borough Council,680,Oxford House Community Care,M44C,Adult Social Care Operations,Supplies and Services,781.80,Oct-23
Slough Borough Council,680,Oxford House Community Care,M44C,Adult Social Care Operations,Supplies and Services,"2,859.12",Oct-23
Slough Borough Council,680,Oxford House Community Care,M44C,Adult Social Care Operations,Supplies and Services,"1,076.14",Oct-23
Slough Borough Council,680,Oxford House Community Care,M44C,Adult Social Care Operations,Supplies and Services,985.56,Oct-23
Slough Borough Council,680,Oxford House Community Care,M44C,Adult Social Care Operations,Supplies and Services,"1,433.75",Oct-23
Slough Borough Council,680,Oxford House Community Care,M44C,Adult Social Care Operations,Supplies and Services,"1,093.73",Oct-23
Slough Borough Council,680,Oxford House Community Care,M44C,Adult Social Care Operations,Supplies and Services,706.47,Oct-23
Slough Borough Council,680,Oxford House Community Care,M44C,Adult Social Care Operations,Supplies and Services,"1,363.97",Oct-23
Slough Borough Council,680,Oxford House Community Care,M44D,Adult Social Care Operations,Supplies and Services,"2,629.62",Oct-23
Slough Borough Council,680,Oxford House Community Care,M44D,Adult Social Care Operations,Supplies and Services,707.30,Oct-23
Slough Borough Council,680,Oxford House Community Care,M44D,Adult Social Care Operations,Supplies and Services,868.64,Oct-23
Slough Borough Council,680,Oxford House Community Care,M44D,Adult Social Care Operations,Supplies and Services,"2,598.51",Oct-23
Slough Borough Council,680,Oxford House Community Care,M44D,Adult Social Care Operations,Supplies and Services,"1,260.07",Oct-23
Slough Borough Council,680,Oxford House Community Care,M44E,Adult Social Care Operations,Supplies and Services,575.30,Oct-23
Slough Borough Council,680,Oxford House Community Care,M44F,Adult Social Care Operations,Supplies and Services,787.24,Oct-23
Slough Borough Council,680,Oxford House Community Care,M44F,Adult Social Care Operations,Supplies and Services,832.77,Oct-23
Slough Borough Council,680,Oxford House Community Care,M44F,Adult Social Care Operations,Supplies and Services,523.87,Oct-23
Slough Borough Council,680,Oxford House Community Care,M45C,Adult Social Care Operations,Supplies and Services,766.97,Oct-23
Slough Borough Council,680,Oxford House Community Care,M45C,Adult Social Care Operations,Supplies and Services,"1,510.65",Oct-23
Slough Borough Council,680,Oxford House Community Care,M45C,Adult Social Care Operations,Supplies and Services,"1,490.80",Oct-23
Slough Borough Council,680,Oxford House Community Care,M45C,Adult Social Care Operations,Supplies and Services,"1,498.09",Oct-23
Slough Borough Council,680,Oxford House Community Care,M48C,Adult Social Care Operations,Supplies and Services,"1,234.05",Oct-23
Slough Borough Council,680,Oxford House Community Care,M48C,Adult Social Care Operations,Supplies and Services,929.37,Oct-23
Slough Borough Council,518,Oxford House Nursing Home,M15D,Adult Social Care Operations,Supplies and Services,"3,462.28",Oct-23
Slough Borough Council,518,Oxford House Nursing Home,M15D,Adult Social Care Operations,Supplies and Services,"3,462.28",Oct-23
Slough Borough Council,518,Oxford House Nursing Home,M15D,Adult Social Care Operations,Supplies and Services,"4,400.00",Oct-23
Slough Borough Council,518,Oxford House Nursing Home,M18C,Adult Social Care Operations,Supplies and Services,"3,462.28",Oct-23
Slough Borough Council,867,Oxfordshire County Council,A01D,People Adults,Supplies and Services,"5,500.00",Oct-23
Slough Borough Council,807442,Pantheon Care Ltd,M44F,Adult Social Care Operations,Supplies and Services,"1,600.00",Oct-23
Slough Borough Council,808679,PARBHAN LTD,H205,Housing (People) Services,Supplies and Services,"15,650.00",Oct-23
Slough Borough Council,2461,PARK NOW LIMITED,D123,Place Strategy & Infrastructure,Supplies and Services,"7,169.31",Oct-23
Slough Borough Council,2461,PARK NOW LIMITED,D123,Place Strategy & Infrastructure,Supplies and Services,"6,835.24",Oct-23
Slough Borough Council,2509,Parvaaz Project,M44E,Adult Social Care Operations,Supplies and Services,678.60,Oct-23
Slough Borough Council,2509,Parvaaz Project,M44E,Adult Social Care Operations,Supplies and Services,678.60,Oct-23
Slough Borough Council,2509,Parvaaz Project,M44E,Adult Social Care Operations,Supplies and Services,678.60,Oct-23
Slough Borough Council,2509,Parvaaz Project,M44E,Adult Social Care Operations,Supplies and Services,678.60,Oct-23
Slough Borough Council,2509,Parvaaz Project,M44E,Adult Social Care Operations,Supplies and Services,678.60,Oct-23
Slough Borough Council,2509,Parvaaz Project,M50E,Adult Social Care Operations,Supplies and Services,800.40,Oct-23
Slough Borough Council,2509,Parvaaz Project,M50E,Adult Social Care Operations,Supplies and Services,800.40,Oct-23
Slough Borough Council,2509,Parvaaz Project,M50E,Adult Social Care Operations,Supplies and Services,800.40,Oct-23
Slough Borough Council,2509,Parvaaz Project,M50E,Adult Social Care Operations,Supplies and Services,800.40,Oct-23
Slough Borough Council,2509,Parvaaz Project,M50E,Adult Social Care Operations,Supplies and Services,800.40,Oct-23
Slough Borough Council,807405,PayPoint Network Ltd,H055,Finance & Commercial,Supplies and Services,"2,168.70",Oct-23
Slough Borough Council,807405,PayPoint Network Ltd,H055,Finance & Commercial,Supplies and Services,"1,361.50",Oct-23
Slough Borough Council,807405,PayPoint Network Ltd,H055,Finance & Commercial,Supplies and Services,"1,713.30",Oct-23
Slough Borough Council,807405,PayPoint Network Ltd,H055,Finance & Commercial,Supplies and Services,"1,514.65",Oct-23
Slough Borough Council,806879,Pearce Recycling Ltd,D342,Place Operations,Supplies and Services,"1,143.60",Oct-23
Slough Borough Council,824,Penn Wood Primary and Nursery School,E450,Children & Families,Supplies and Services,"368,477.69",Oct-23
Slough Borough Council,808606,Pentwyn House Nursing Home,M18C,Adult Social Care Operations,Supplies and Services,"4,207.01",Oct-23
Slough Borough Council,807611,Peopletoo Ltd,A01D,People Adults,Supplies and Services,"29,275.00",Oct-23
Slough Borough Council,1504,Permanent Futures Limited,F410,Children & Families,Agency Staff,"1,410.00",Oct-23
Slough Borough Council,1504,Permanent Futures Limited,F410,Children & Families,Agency Staff,"1,410.00",Oct-23
Slough Borough Council,1504,Permanent Futures Limited,F410,Children & Families,Agency Staff,"1,410.00",Oct-23
Slough Borough Council,1504,Permanent Futures Limited,F410,Children & Families,Agency Staff,"1,410.00",Oct-23
Slough Borough Council,1504,Permanent Futures Limited,F640,Children & Families,Agency Staff,"2,340.00",Oct-23
Slough Borough Council,803786,Phillipa Holliday,C322,Community,Supplies and Services,"3,920.00",Oct-23
Slough Borough Council,1821,Phoenix Futures,A04C,Adult Social Care Operations,Supplies and Services,"2,040.00",Oct-23
Slough Borough Council,807727,Phoenix Infant Academy c/o Thames Learning Trust,E620,Children & Families,Supplies and Services,"7,676.94",Oct-23
Slough Borough Council,807727,Phoenix Infant Academy c/o Thames Learning Trust,B297,Finance & Commercial,Government Grants,"1,005.00",Oct-23
Slough Borough Council,803498,Phoenix Software,B342,Digital and Strategic IT,Supplies and Services,"1,250.00",Oct-23
Slough Borough Council,805351,Pield Heath House School,F462,Children & Families,Supplies and Services,"50,640.64",Oct-23
Slough Borough Council,3359,Pippins School,E370,Children & Families,Supplies and Services,"30,974.64",Oct-23
Slough Borough Council,904,Pitney Bowes Finance Plc,K077,Business Services,Supplies and Services,"3,118.64",Oct-23
Slough Borough Council,807120,PJ Care Limited,M15D,Adult Social Care Operations,Supplies and Services,"9,831.65",Oct-23
Slough Borough Council,808881,PKB MANAGEMENT LTD,H205,Housing (People) Services,Supplies and Services,"8,618.00",Oct-23
Slough Borough Council,808881,PKB MANAGEMENT LTD,H205,Housing (People) Services,Supplies and Services,"88,787.00",Oct-23
Slough Borough Council,3644,Poppy Cottage,M42E,Adult Social Care Operations,Supplies and Services,"6,528.56",Oct-23
Slough Borough Council,2537,Pre School Stars,F909,Children & Families,Supplies and Services,"1,560.29",Oct-23
Slough Borough Council,2537,Pre School Stars,F909,Children & Families,Supplies and Services,"8,166.02",Oct-23
Slough Borough Council,2537,Pre School Stars,F909,Children & Families,Supplies and Services,"1,560.29",Oct-23
Slough Borough Council,849,Priory Primary School,E380,Children & Families,Supplies and Services,"396,241.96",Oct-23
Slough Borough Council,809187,Proactive Technical Training Limited,B409,Customer,Indirect Employee Expenses,670.00,Oct-23
Slough Borough Council,808921,PROUD INVESTMENTS LTD,H205,Housing (People) Services,Supplies and Services,"2,250.00",Oct-23
Slough Borough Council,3535,Q Bibi,A05L,Adult Social Care Operations,Supplies and Services,"2,560.07",Oct-23
Slough Borough Council,1138,Qed Slough Ltd,F868,Children & Families,Supplies and Services,"643,856.43",Oct-23
Slough Borough Council,1138,Qed Slough Ltd,F868,Children & Families,Supplies and Services,"4,332.48",Oct-23
Slough Borough Council,1138,Qed Slough Ltd,F868,Children & Families,Supplies and Services,"4,332.48",Oct-23
Slough Borough Council,805746,Qfree (Bristol) UK Ltd,P243,Capital,Capital Charges,"1,658.00",Oct-23
Slough Borough Council,808200,Quest Recovery Services Ltd,M44C,Adult Social Care Operations,Supplies and Services,"1,078.56",Oct-23
Slough Borough Council,808200,Quest Recovery Services Ltd,M44C,Adult Social Care Operations,Supplies and Services,"1,198.40",Oct-23
Slough Borough Council,808200,Quest Recovery Services Ltd,M44C,Adult Social Care Operations,Supplies and Services,719.04,Oct-23
Slough Borough Council,808200,Quest Recovery Services Ltd,M44C,Adult Social Care Operations,Supplies and Services,"1,078.56",Oct-23
Slough Borough Council,808200,Quest Recovery Services Ltd,M44C,Adult Social Care Operations,Supplies and Services,"1,112.80",Oct-23
Slough Borough Council,808200,Quest Recovery Services Ltd,M44C,Adult Social Care Operations,Supplies and Services,"1,078.56",Oct-23
Slough Borough Council,808200,Quest Recovery Services Ltd,M44C,Adult Social Care Operations,Supplies and Services,513.60,Oct-23
Slough Borough Council,808200,Quest Recovery Services Ltd,M44C,Adult Social Care Operations,Supplies and Services,616.32,Oct-23
Slough Borough Council,808200,Quest Recovery Services Ltd,M44C,Adult Social Care Operations,Supplies and Services,"1,078.56",Oct-23
Slough Borough Council,808200,Quest Recovery Services Ltd,M44C,Adult Social Care Operations,Supplies and Services,"1,540.80",Oct-23
Slough Borough Council,808200,Quest Recovery Services Ltd,M44E,Adult Social Care Operations,Supplies and Services,"1,917.44",Oct-23
Slough Borough Council,808200,Quest Recovery Services Ltd,M44F,Adult Social Care Operations,Supplies and Services,530.72,Oct-23
Slough Borough Council,808200,Quest Recovery Services Ltd,M45C,Adult Social Care Operations,Supplies and Services,"2,157.12",Oct-23
Slough Borough Council,808200,Quest Recovery Services Ltd,M45C,Adult Social Care Operations,Supplies and Services,599.20,Oct-23
Slough Borough Council,808200,Quest Recovery Services Ltd,M45C,Adult Social Care Operations,Supplies and Services,642.00,Oct-23
Slough Borough Council,808200,Quest Recovery Services Ltd,M48C,Adult Social Care Operations,Supplies and Services,"1,177.00",Oct-23
Slough Borough Council,808200,Quest Recovery Services Ltd,M48C,Adult Social Care Operations,Supplies and Services,"1,078.56",Oct-23
Slough Borough Council,808200,Quest Recovery Services Ltd,M48C,Adult Social Care Operations,Supplies and Services,890.24,Oct-23
Slough Borough Council,808200,Quest Recovery Services Ltd,M48C,Adult Social Care Operations,Supplies and Services,"1,266.88",Oct-23
Slough Borough Council,805551,R Watts and Sons Ltd,D750,Place Operations,Supplies and Services,"1,500.00",Oct-23
Slough Borough Council,805551,R Watts and Sons Ltd,D750,Place Operations,Supplies and Services,"5,600.00",Oct-23
Slough Borough Council,805551,R Watts and Sons Ltd,D750,Place Operations,Supplies and Services,580.00,Oct-23
Slough Borough Council,805551,R Watts and Sons Ltd,D750,Place Operations,Supplies and Services,"1,400.00",Oct-23
Slough Borough Council,805551,R Watts and Sons Ltd,D750,Place Operations,Supplies and Services,"1,600.00",Oct-23
Slough Borough Council,805551,R Watts and Sons Ltd,D750,Place Operations,Supplies and Services,"1,950.00",Oct-23
Slough Borough Council,2685,R.E.A.C.H,M26E,Adult Social Care Operations,Supplies and Services,"7,667.52",Oct-23
Slough Borough Council,2685,R.E.A.C.H,M26E,Adult Social Care Operations,Supplies and Services,"7,132.56",Oct-23
Slough Borough Council,2685,R.E.A.C.H,M26E,Adult Social Care Operations,Supplies and Services,"10,591.40",Oct-23
Slough Borough Council,2685,R.E.A.C.H,M26E,Adult Social Care Operations,Supplies and Services,"5,464.00",Oct-23
Slough Borough Council,2685,R.E.A.C.H,M26E,Adult Social Care Operations,External Receipts,-564.40,Oct-23
Slough Borough Council,2685,R.E.A.C.H,M26E,Adult Social Care Operations,External Receipts,-630.80,Oct-23
Slough Borough Council,805444,Reading Transport Ltd,D512,Place Strategy & Infrastructure,Supplies and Services,"8,671.61",Oct-23
Slough Borough Council,806766,Red Brick Care Ltd,A07R,Adult Social Care Operations,Supplies and Services,"1,300.50",Oct-23
Slough Borough Council,806766,Red Brick Care Ltd,A07R,Adult Social Care Operations,Supplies and Services,811.75,Oct-23
Slough Borough Council,806766,Red Brick Care Ltd,M44C,Adult Social Care Operations,Supplies and Services,"1,785.00",Oct-23
Slough Borough Council,806766,Red Brick Care Ltd,M44C,Adult Social Care Operations,Supplies and Services,"1,428.00",Oct-23
Slough Borough Council,806766,Red Brick Care Ltd,M44C,Adult Social Care Operations,Supplies and Services,"1,275.00",Oct-23
Slough Borough Council,806766,Red Brick Care Ltd,M44C,Adult Social Care Operations,Supplies and Services,595.00,Oct-23
Slough Borough Council,806766,Red Brick Care Ltd,M44C,Adult Social Care Operations,Supplies and Services,"2,142.00",Oct-23
Slough Borough Council,806766,Red Brick Care Ltd,M44C,Adult Social Care Operations,Supplies and Services,"1,173.00",Oct-23
Slough Borough Council,806766,Red Brick Care Ltd,M44C,Adult Social Care Operations,Supplies and Services,"2,618.00",Oct-23
Slough Borough Council,806766,Red Brick Care Ltd,M44C,Adult Social Care Operations,Supplies and Services,"2,142.00",Oct-23
Slough Borough Council,806766,Red Brick Care Ltd,M44C,Adult Social Care Operations,Supplies and Services,510.00,Oct-23
Slough Borough Council,806766,Red Brick Care Ltd,M44D,Adult Social Care Operations,Supplies and Services,595.00,Oct-23
Slough Borough Council,806766,Red Brick Care Ltd,M45C,Adult Social Care Operations,Supplies and Services,"2,856.00",Oct-23
Slough Borough Council,806766,Red Brick Care Ltd,M45C,Adult Social Care Operations,Supplies and Services,"1,989.00",Oct-23
Slough Borough Council,806766,Red Brick Care Ltd,M45C,Adult Social Care Operations,Supplies and Services,841.50,Oct-23
Slough Borough Council,806766,Red Brick Care Ltd,M45C,Adult Social Care Operations,Supplies and Services,"1,530.00",Oct-23
Slough Borough Council,806766,Red Brick Care Ltd,M45C,Adult Social Care Operations,Supplies and Services,"1,674.50",Oct-23
Slough Borough Council,806766,Red Brick Care Ltd,M45C,Adult Social Care Operations,Supplies and Services,569.50,Oct-23
Slough Borough Council,805321,Redacted,F909,Children & Families,Supplies and Services,610.05,Oct-23
Slough Borough Council,805084,Redacted,F909,Children & Families,Supplies and Services,"1,586.13",Oct-23
Slough Borough Council,806541,Redacted,F909,Children & Families,Supplies and Services,"1,499.46",Oct-23
Slough Borough Council,806541,Redacted,F909,Children & Families,Supplies and Services,"1,499.46",Oct-23
Slough Borough Council,806541,Redacted,F909,Children & Families,Supplies and Services,"12,507.88",Oct-23
Slough Borough Council,1928,Redacted,F909,Children & Families,Supplies and Services,610.05,Oct-23
Slough Borough Council,3934,Redacted,F909,Children & Families,Supplies and Services,610.05,Oct-23
Slough Borough Council,806720,Redacted,F909,Children & Families,Supplies and Services,586.32,Oct-23
Slough Borough Council,3209,Redacted,F909,Children & Families,Supplies and Services,915.08,Oct-23
Slough Borough Council,805145,Redacted,F909,Children & Families,Supplies and Services,"1,208.48",Oct-23
Slough Borough Council,804932,Redacted,F909,Children & Families,Supplies and Services,647.32,Oct-23
Slough Borough Council,805779,Redacted,F909,Children & Families,Supplies and Services,728.83,Oct-23
Slough Borough Council,803824,Redacted,F909,Children & Families,Supplies and Services,684.60,Oct-23
Slough Borough Council,807475,Redacted,F909,Children & Families,Supplies and Services,610.05,Oct-23
Slough Borough Council,803853,Redacted,F909,Children & Families,Supplies and Services,647.33,Oct-23
Slough Borough Council,807836,Redacted,F909,Children & Families,Supplies and Services,"1,830.15",Oct-23
Slough Borough Council,807698,Redacted,F909,Children & Families,Supplies and Services,915.08,Oct-23
Slough Borough Council,803874,Redacted,F909,Children & Families,Supplies and Services,511.28,Oct-23
Slough Borough Council,805946,Redacted,F909,Children & Families,Supplies and Services,550.63,Oct-23
Slough Borough Council,805806,Redacted,F909,Children & Families,Supplies and Services,989.63,Oct-23
Slough Borough Council,804359,Redacted,F123,Education & Inclusion,External Receipts,826.02,Oct-23
Slough Borough Council,808302,Reliant Care Limited,M44C,Adult Social Care Operations,Supplies and Services,"3,023.91",Oct-23
Slough Borough Council,809111,Remarkable Children,F449,Education & Inclusion,Supplies and Services,"2,560.00",Oct-23
Slough Borough Council,809111,Remarkable Children,F449,Education & Inclusion,Supplies and Services,880.00,Oct-23
Slough Borough Council,809111,Remarkable Children,F449,Education & Inclusion,Supplies and Services,"3,040.00",Oct-23
Slough Borough Council,807562,Renovo Farnborough Limited,M25D,Adult Social Care Operations,Supplies and Services,"9,106.91",Oct-23
Slough Borough Council,2529,Richmond Fellowship,M27F,Adult Social Care Operations,Supplies and Services,"2,253.39",Oct-23
Slough Borough Council,809109,Riverview Ventures Limited,H205,Housing (People) Services,Supplies and Services,"1,755.00",Oct-23
Slough Borough Council,1553,Robyn Baker,C322,Community,Supplies and Services,"1,137.50",Oct-23
Slough Borough Council,1553,Robyn Baker,C322,Community,Supplies and Services,"1,120.00",Oct-23
Slough Borough Council,696,Royal Borough Of Windsor And Maidenhead,F553,Children & Families,Supplies and Services,"3,749.00",Oct-23
Slough Borough Council,842,Ryvers Primary School,E620,Children & Families,Supplies and Services,"16,027.11",Oct-23
Slough Borough Council,808515,S R Estate Holding Limited,H205,Housing (People) Services,Supplies and Services,"1,650.00",Oct-23
Slough Borough Council,806398,Saba Park UK Services Limited,D122,Place Strategy & Infrastructure,Premises,"16,631.61",Oct-23
Slough Borough Council,806398,Saba Park UK Services Limited,D123,Place Strategy & Infrastructure,Supplies and Services,612.18,Oct-23
Slough Borough Council,806398,Saba Park UK Services Limited,D123,Place Strategy & Infrastructure,Supplies and Services,"115,582.90",Oct-23
Slough Borough Council,806398,Saba Park UK Services Limited,D122,Place Strategy & Infrastructure,Supplies and Services,"12,842.54",Oct-23
Slough Borough Council,806398,Saba Park UK Services Limited,D123,Place Strategy & Infrastructure,Supplies and Services,"1,997.10",Oct-23
Slough Borough Council,806398,Saba Park UK Services Limited,D010,Place Strategy & Infrastructure,Supplies and Services,"21,563.58",Oct-23
Slough Borough Council,805875,Salutem Shared Services,M25D,Adult Social Care Operations,Supplies and Services,"6,859.18",Oct-23
Slough Borough Council,805875,Salutem Shared Services,M26E,Adult Social Care Operations,Supplies and Services,"4,486.13",Oct-23
Slough Borough Council,805875,Salutem Shared Services,M26E,Adult Social Care Operations,Supplies and Services,628.03,Oct-23
Slough Borough Council,805875,Salutem Shared Services,M26E,Adult Social Care Operations,Supplies and Services,"12,376.40",Oct-23
Slough Borough Council,805875,Salutem Shared Services,M26E,Adult Social Care Operations,External Receipts,-628.02,Oct-23
Slough Borough Council,803999,Sequence Care Group,M26E,Adult Social Care Operations,Supplies and Services,"12,717.93",Oct-23
Slough Borough Council,808065,Shehla Ahmed,F253,Children & Families,Agency Staff,"1,080.00",Oct-23
Slough Borough Council,808814,Shine Partnerships Ltd,M42F,Adult Social Care Operations,Supplies and Services,"1,802.34",Oct-23
Slough Borough Council,805203,Shorts Agricultural Services Ltd,D342,Place Operations,Supplies and Services,"6,201.28",Oct-23
Slough Borough Council,805203,Shorts Agricultural Services Ltd,D342,Place Operations,Supplies and Services,"12,754.96",Oct-23
Slough Borough Council,805303,Sign Health,M27C,Adult Social Care Operations,Supplies and Services,"5,485.49",Oct-23
Slough Borough Council,808698,SKB INVESTMENTS LTD,H205,Housing (People) Services,Supplies and Services,"1,705.00",Oct-23
Slough Borough Council,808698,SKB INVESTMENTS LTD,H205,Housing (People) Services,Supplies and Services,"1,650.00",Oct-23
Slough Borough Council,472,Slough & Eton C.E.School,B297,Finance & Commercial,Government Grants,"4,380.00",Oct-23
Slough Borough Council,1459,Slough And Eton C E School,E610,Children & Families,Supplies and Services,"31,000.00",Oct-23
Slough Borough Council,807834,Slough Children First,M99C,Children & Families,Supplies and Services,"3,005,484.32",Oct-23
Slough Borough Council,808680,SLOUGH CITY REAL ESTATE LTD,H205,Housing (People) Services,Supplies and Services,"184,950.00",Oct-23
Slough Borough Council,276,Slough Community Transport & Shopmobility,F123,Education & Inclusion,External Receipts,"42,380.00",Oct-23
Slough Borough Council,1913,Slough Crossroads Caring For Carers,M44C,Adult Social Care Operations,Supplies and Services,744.00,Oct-23
Slough Borough Council,1913,Slough Crossroads Caring For Carers,M44C,Adult Social Care Operations,Supplies and Services,"1,120.00",Oct-23
Slough Borough Council,1913,Slough Crossroads Caring For Carers,M44E,Adult Social Care Operations,Supplies and Services,528.00,Oct-23
Slough Borough Council,1119,Slough Cvs,A02C,People Strategy & Commissioning,Supplies and Services,"102,037.25",Oct-23
Slough Borough Council,3503,Slough Day Nursery,F909,Children & Families,Supplies and Services,"12,318.47",Oct-23
Slough Borough Council,806733,Smart Move (Estate Agents UK) LTD,H205,Housing (People) Services,Supplies and Services,"3,720.00",Oct-23
Slough Borough Council,1228,Solace Group,D003,Place Management,Agency Staff,"20,797.50",Oct-23
Slough Borough Council,114,Solutions 4 Health Ltd,A01P,Public Health,Supplies and Services,"229,057.81",Oct-23
Slough Borough Council,114,Solutions 4 Health Ltd,A01P,Public Health,Supplies and Services,"51,833.33",Oct-23
Slough Borough Council,808144,Sports Inc,F382,Children & Families,Supplies and Services,"15,776.00",Oct-23
Slough Borough Council,808401,SSE Energy Solution,B668,Business Services,Premises,"9,159.93",Oct-23
Slough Borough Council,808401,SSE Energy Solution,B668,Business Services,Premises,"5,178.96",Oct-23
Slough Borough Council,808401,SSE Energy Solution,B668,Business Services,Premises,"3,801.32",Oct-23
Slough Borough Council,808401,SSE Energy Solution,B668,Business Services,Premises,"5,495.74",Oct-23
Slough Borough Council,808401,SSE Energy Solution,J015,Place Management,Premises,"50,679.53",Oct-23
Slough Borough Council,808401,SSE Energy Solution,J015,Place Management,Premises,"23,847.00",Oct-23
Slough Borough Council,808401,SSE Energy Solution,J015,Place Management,Premises,"1,392.79",Oct-23
Slough Borough Council,808401,SSE Energy Solution,J015,Place Management,Premises,"1,658.82",Oct-23
Slough Borough Council,803165,St Anthony's Catholic Primary School & Nursery,E620,Children & Families,Supplies and Services,"12,138.00",Oct-23
Slough Borough Council,3383,St Bernards Catholic Grammar School,E550,Children & Families,Supplies and Services,"578,052.02",Oct-23
Slough Borough Council,2918,St Bernard'S Rc Preparatory School,F909,Children & Families,Supplies and Services,635.49,Oct-23
Slough Borough Council,2918,St Bernard'S Rc Preparatory School,F909,Children & Families,Supplies and Services,"16,225.88",Oct-23
Slough Borough Council,2918,St Bernard'S Rc Preparatory School,F909,Children & Families,Supplies and Services,635.49,Oct-23
Slough Borough Council,808813,St David's Home,M28C,Adult Social Care Operations,Supplies and Services,"6,428.57",Oct-23
Slough Borough Council,1116,St Edwards Royal Free Ecumenical Middle School,F552,Children & Families,Supplies and Services,"8,500.00",Oct-23
Slough Borough Council,3547,St Ethelberts School,E620,Children & Families,Supplies and Services,"20,093.67",Oct-23
Slough Borough Council,1378,St Josephs Catholic High School,E610,Children & Families,Supplies and Services,"17,727.08",Oct-23
Slough Borough Council,806013,ST MARY'S CHURCH OF ENGLAND PRIMARY SCHOOL,E420,Children & Families,Supplies and Services,"83,617.88",Oct-23
Slough Borough Council,806584,St Mattews Ltd,M15F,Adult Social Care Operations,Supplies and Services,"4,096.43",Oct-23
Slough Borough Council,807546,St Nicolas' CE Combined School,F552,Children & Families,Supplies and Services,"7,500.00",Oct-23
Slough Borough Council,468,Stannah Lift Services Ltd,P006,Capital,Capital Charges,"7,168.00",Oct-23
Slough Borough Council,809153,Stepping Stone Independent Living Ltd,M26E,Adult Social Care Operations,Supplies and Services,"9,910.72",Oct-23
Slough Borough Council,806115,Stepping Stones,F909,Children & Families,Supplies and Services,610.05,Oct-23
Slough Borough Council,805181,Street Furnishings Ltd,D880,Place Operations,Supplies and Services,"3,265.98",Oct-23
Slough Borough Council,807889,Sunrise Transport Ltd,F123,Education & Inclusion,External Receipts,925.00,Oct-23
Slough Borough Council,808664,Sunspeed Transport Services Ltd,B342,Digital and Strategic IT,Supplies and Services,"5,500.00",Oct-23
Slough Borough Council,293,Surecare Slough,A07R,Adult Social Care Operations,Supplies and Services,793.80,Oct-23
Slough Borough Council,293,Surecare Slough,M44C,Adult Social Care Operations,Supplies and Services,786.01,Oct-23
Slough Borough Council,293,Surecare Slough,M44C,Adult Social Care Operations,Supplies and Services,563.50,Oct-23
Slough Borough Council,293,Surecare Slough,M44C,Adult Social Care Operations,Supplies and Services,822.87,Oct-23
Slough Borough Council,293,Surecare Slough,M44C,Adult Social Care Operations,Supplies and Services,"2,543.08",Oct-23
Slough Borough Council,293,Surecare Slough,M44C,Adult Social Care Operations,Supplies and Services,958.76,Oct-23
Slough Borough Council,293,Surecare Slough,M44C,Adult Social Care Operations,Supplies and Services,548.80,Oct-23
Slough Borough Council,293,Surecare Slough,M44C,Adult Social Care Operations,Supplies and Services,"1,920.80",Oct-23
Slough Borough Council,293,Surecare Slough,M44C,Adult Social Care Operations,Supplies and Services,"2,195.20",Oct-23
Slough Borough Council,293,Surecare Slough,M44C,Adult Social Care Operations,Supplies and Services,"2,469.60",Oct-23
Slough Borough Council,293,Surecare Slough,M44C,Adult Social Care Operations,Supplies and Services,"2,170.04",Oct-23
Slough Borough Council,293,Surecare Slough,M44C,Adult Social Care Operations,Supplies and Services,"3,018.40",Oct-23
Slough Borough Council,293,Surecare Slough,M44C,Adult Social Care Operations,Supplies and Services,818.64,Oct-23
Slough Borough Council,293,Surecare Slough,M44C,Adult Social Care Operations,Supplies and Services,"2,462.74",Oct-23
Slough Borough Council,293,Surecare Slough,M44C,Adult Social Care Operations,Supplies and Services,"2,744.00",Oct-23
Slough Borough Council,293,Surecare Slough,M44C,Adult Social Care Operations,Supplies and Services,"2,469.60",Oct-23
Slough Borough Council,293,Surecare Slough,M44C,Adult Social Care Operations,Supplies and Services,"1,199.16",Oct-23
Slough Borough Council,293,Surecare Slough,M44D,Adult Social Care Operations,Supplies and Services,"2,469.60",Oct-23
Slough Borough Council,293,Surecare Slough,M44D,Adult Social Care Operations,Supplies and Services,"1,372.00",Oct-23
Slough Borough Council,293,Surecare Slough,M44D,Adult Social Care Operations,Supplies and Services,"1,372.00",Oct-23
Slough Borough Council,293,Surecare Slough,M44E,Adult Social Care Operations,Supplies and Services,823.20,Oct-23
Slough Borough Council,293,Surecare Slough,M45C,Adult Social Care Operations,Supplies and Services,"1,178.62",Oct-23
Slough Borough Council,293,Surecare Slough,M45C,Adult Social Care Operations,Supplies and Services,"1,185.80",Oct-23
Slough Borough Council,293,Surecare Slough,M45C,Adult Social Care Operations,Supplies and Services,"1,203.77",Oct-23
Slough Borough Council,293,Surecare Slough,M48C,Adult Social Care Operations,Supplies and Services,"1,194.61",Oct-23
Slough Borough Council,293,Surecare Slough,M48C,Adult Social Care Operations,Supplies and Services,"1,195.27",Oct-23
Slough Borough Council,293,Surecare Slough,M48C,Adult Social Care Operations,Supplies and Services,"1,195.60",Oct-23
Slough Borough Council,1724,Susan Nash,C322,Community,Supplies and Services,551.00,Oct-23
Slough Borough Council,808732,Swegon Limited,B186,Business Services,Premises,789.00,Oct-23
Slough Borough Council,805794,SYMBOL UK LIMITED,F417,Education & Inclusion,Supplies and Services,840.00,Oct-23
Slough Borough Council,807256,Targeted Provision,F449,Education & Inclusion,Supplies and Services,900.00,Oct-23
Slough Borough Council,3891,Teaching Personnel Ltd,F449,Education & Inclusion,Supplies and Services,846.00,Oct-23
Slough Borough Council,3891,Teaching Personnel Ltd,F449,Education & Inclusion,Supplies and Services,846.00,Oct-23
Slough Borough Council,3369,Teeny Boppers Montessori School,F909,Children & Families,Supplies and Services,"1,147.31",Oct-23
Slough Borough Council,3369,Teeny Boppers Montessori School,F909,Children & Families,Supplies and Services,"9,123.77",Oct-23
Slough Borough Council,3369,Teeny Boppers Montessori School,F909,Children & Families,Supplies and Services,"1,147.31",Oct-23
Slough Borough Council,1596,Teleshore (Uk) Limited,D320,Place Operations,Supplies and Services,"1,706.00",Oct-23
Slough Borough Council,1596,Teleshore (Uk) Limited,D750,Place Operations,Supplies and Services,506.00,Oct-23
Slough Borough Council,3174,Texthelp Ltd,F388,Children & Families,Government Grants,"7,452.00",Oct-23
Slough Borough Council,807878,Thames Valley Buses,D512,Place Strategy & Infrastructure,Supplies and Services,"12,571.20",Oct-23
Slough Borough Council,807878,Thames Valley Buses,D512,Place Strategy & Infrastructure,Supplies and Services,"12,901.70",Oct-23
Slough Borough Council,803712,Thames Valley Transport Services LTD,F123,Education & Inclusion,External Receipts,830.00,Oct-23
Slough Borough Council,803712,Thames Valley Transport Services LTD,F123,Education & Inclusion,External Receipts,"76,125.50",Oct-23
Slough Borough Council,803774,The Abbeyfield Maidenhead Society Ltd,M25D,Adult Social Care Operations,Supplies and Services,"5,960.00",Oct-23
Slough Borough Council,803774,The Abbeyfield Maidenhead Society Ltd,M25D,Adult Social Care Operations,Supplies and Services,"5,960.00",Oct-23
Slough Borough Council,803774,The Abbeyfield Maidenhead Society Ltd,M25D,Adult Social Care Operations,Supplies and Services,"5,960.00",Oct-23
Slough Borough Council,803774,The Abbeyfield Maidenhead Society Ltd,M25D,Adult Social Care Operations,Supplies and Services,"5,960.00",Oct-23
Slough Borough Council,803774,The Abbeyfield Maidenhead Society Ltd,M25D,Adult Social Care Operations,Supplies and Services,"1,490.00",Oct-23
Slough Borough Council,803774,The Abbeyfield Maidenhead Society Ltd,M27C,Adult Social Care Operations,Supplies and Services,"4,335.65",Oct-23
Slough Borough Council,808451,The Address Management,H205,Housing (People) Services,Supplies and Services,"34,590.00",Oct-23
Slough Borough Council,2213,The Dash Charity,H254,Place Regulation,Supplies and Services,"95,000.00",Oct-23
Slough Borough Council,805247,The Eden Academy T/A Pentland Field School,F551,Children & Families,Supplies and Services,"19,479.45",Oct-23
Slough Borough Council,809020,The Gerrards Cross CE School,F552,Children & Families,Supplies and Services,"3,000.00",Oct-23
Slough Borough Council,653,The Godolphin Junior Academy,E620,Children & Families,Supplies and Services,"9,000.00",Oct-23
Slough Borough Council,1385,The Langley Academy,E610,Children & Families,Supplies and Services,"19,250.00",Oct-23
Slough Borough Council,803300,The Langley Academy Primary,E610,Children & Families,Supplies and Services,"23,603.95",Oct-23
Slough Borough Council,806847,The Langley Heritage Primary Academy,E620,Children & Families,Supplies and Services,"19,931.00",Oct-23
Slough Borough Council,805400,The Leading Care Company,M44C,Adult Social Care Operations,Supplies and Services,727.16,Oct-23
Slough Borough Council,805400,The Leading Care Company,M44C,Adult Social Care Operations,Supplies and Services,656.46,Oct-23
Slough Borough Council,805400,The Leading Care Company,M44D,Adult Social Care Operations,Supplies and Services,"3,800.16",Oct-23
Slough Borough Council,3116,The Oratory Montessori Day Nursery,F909,Children & Families,Supplies and Services,929.15,Oct-23
Slough Borough Council,3116,The Oratory Montessori Day Nursery,F909,Children & Families,Supplies and Services,"16,628.29",Oct-23
Slough Borough Council,3116,The Oratory Montessori Day Nursery,F909,Children & Families,Supplies and Services,929.15,Oct-23
Slough Borough Council,807439,The Pines,M27F,Adult Social Care Operations,Supplies and Services,"8,268.14",Oct-23
Slough Borough Council,807439,The Pines,M27F,Adult Social Care Operations,Supplies and Services,"8,268.14",Oct-23
Slough Borough Council,807439,The Pines,M27F,Adult Social Care Operations,Supplies and Services,"8,001.04",Oct-23
Slough Borough Council,821,The Westgate School,E610,Children & Families,Supplies and Services,"23,507.99",Oct-23
Slough Borough Council,807128,The Willows School Academy Trust,F551,Children & Families,Supplies and Services,"5,000.00",Oct-23
Slough Borough Council,808805,Thrift Farm,M44E,Adult Social Care Operations,Supplies and Services,595.92,Oct-23
Slough Borough Council,805915,Time 4 U Limited,M44F,Adult Social Care Operations,Supplies and Services,"3,037.80",Oct-23
Slough Borough Council,806360,Tiny Turtles Daycare Nursery Ltd,F909,Children & Families,Supplies and Services,"2,454.24",Oct-23
Slough Borough Council,806360,Tiny Turtles Daycare Nursery Ltd,F909,Children & Families,Supplies and Services,"18,084.36",Oct-23
Slough Borough Council,806360,Tiny Turtles Daycare Nursery Ltd,F909,Children & Families,Supplies and Services,"2,454.24",Oct-23
Slough Borough Council,803194,TMP Worldwide,B348,People,Indirect Employee Expenses,929.15,Oct-23
Slough Borough Council,803194,TMP Worldwide,B348,People,Indirect Employee Expenses,969.60,Oct-23
Slough Borough Council,171,Toad Hall Nursery,F909,Children & Families,Supplies and Services,"1,743.16",Oct-23
Slough Borough Council,171,Toad Hall Nursery,F909,Children & Families,Supplies and Services,"20,467.04",Oct-23
Slough Borough Council,171,Toad Hall Nursery,F909,Children & Families,Supplies and Services,"1,743.16",Oct-23
Slough Borough Council,2203,Toby Miller,C322,Community,Supplies and Services,"2,991.30",Oct-23
Slough Borough Council,807871,Total Pest Control (UK) Limited,B195,Business Services,Premises,780.00,Oct-23
Slough Borough Council,806463,TPAS Ltd,J028,Place Management,Supplies and Services,"1,414.00",Oct-23
Slough Borough Council,808105,Transoft Solutions (UK) Ltd,D220,Place Regulation,Supplies and Services,"5,220.00",Oct-23
Slough Borough Council,803458,Treloars,F558,Children & Families,Supplies and Services,"20,638.21",Oct-23
Slough Borough Council,2889,Tudor (UK) Ltd t/a Tudor Environmental,D750,Place Operations,Supplies and Services,761.53,Oct-23
Slough Borough Council,2889,Tudor (UK) Ltd t/a Tudor Environmental,D750,Place Operations,Supplies and Services,568.20,Oct-23
Slough Borough Council,2889,Tudor (UK) Ltd t/a Tudor Environmental,D750,Place Operations,Supplies and Services,982.20,Oct-23
Slough Borough Council,2889,Tudor (UK) Ltd t/a Tudor Environmental,D750,Place Operations,Supplies and Services,897.65,Oct-23
Slough Borough Council,2889,Tudor (UK) Ltd t/a Tudor Environmental,D750,Place Operations,Supplies and Services,583.46,Oct-23
Slough Borough Council,942,Turning Point,H216,Community,External Receipts,"1,900.42",Oct-23
Slough Borough Council,942,Turning Point,A04C,Adult Social Care Operations,Supplies and Services,"277,475.00",Oct-23
Slough Borough Council,809154,UK STAR CARE LTD,A07R,Adult Social Care Operations,Supplies and Services,553.60,Oct-23
Slough Borough Council,809154,UK STAR CARE LTD,M44C,Adult Social Care Operations,Supplies and Services,"1,191.60",Oct-23
Slough Borough Council,809154,UK STAR CARE LTD,M44C,Adult Social Care Operations,Supplies and Services,662.00,Oct-23
Slough Borough Council,809154,UK STAR CARE LTD,M45C,Adult Social Care Operations,Supplies and Services,795.23,Oct-23
Slough Borough Council,809154,UK STAR CARE LTD,M45C,Adult Social Care Operations,Supplies and Services,650.42,Oct-23
Slough Borough Council,803603,Unique Training Solutions,A07R,Adult Social Care Operations,Indirect Employee Expenses,730.00,Oct-23
Slough Borough Council,803603,Unique Training Solutions,A07R,Adult Social Care Operations,Indirect Employee Expenses,730.00,Oct-23
Slough Borough Council,3953,Upton Court Grammar School,E610,Children & Families,Supplies and Services,"2,500.00",Oct-23
Slough Borough Council,577,Upton Park Hotel,H205,Housing (People) Services,Supplies and Services,"105,650.00",Oct-23
Slough Borough Council,808521,VAROSI ESTATES LIMITED,H205,Housing (People) Services,Supplies and Services,"1,500.00",Oct-23
Slough Borough Council,808521,VAROSI ESTATES LIMITED,H205,Housing (People) Services,Supplies and Services,"1,550.00",Oct-23
Slough Borough Council,808521,VAROSI ESTATES LIMITED,H205,Housing (People) Services,Supplies and Services,"1,550.00",Oct-23
Slough Borough Council,808898,Vine Real Estate LTD,H205,Housing (People) Services,Supplies and Services,"8,525.00",Oct-23
Slough Borough Council,1212,Virgin Media Ltd,B282,Digital and Strategic IT,Supplies and Services,"-15,063.95",Oct-23
Slough Borough Council,1212,Virgin Media Ltd,B282,Digital and Strategic IT,Supplies and Services,"16,583.60",Oct-23
Slough Borough Council,1212,Virgin Media Ltd,B282,Digital and Strategic IT,Supplies and Services,"16,583.60",Oct-23
Slough Borough Council,807617,Vivedia Ltd t/a Obitus,D320,Place Operations,External Receipts,"1,447.00",Oct-23
Slough Borough Council,809023,VKL Healthcare Ltd.,A05L,Adult Social Care Operations,Supplies and Services,"1,493.93",Oct-23
Slough Borough Council,809023,VKL Healthcare Ltd.,A02L,Adult Social Care Operations,Supplies and Services,"-1,493.93",Oct-23
Slough Borough Council,752,Vodafone Limited,B282,Digital and Strategic IT,Supplies and Services,"1,611.36",Oct-23
Slough Borough Council,803163,Volker Highways,P209,Capital,Capital Charges,"3,178.60",Oct-23
Slough Borough Council,803163,Volker Highways,P192,Capital,Capital Charges,"5,238.00",Oct-23
Slough Borough Council,808988,Voucherline Limited,F909,Children & Families,Supplies and Services,"1,305.00",Oct-23
Slough Borough Council,2682,Voyage 1 Limited,M26E,Adult Social Care Operations,Supplies and Services,631.38,Oct-23
Slough Borough Council,2682,Voyage 1 Limited,M26E,Adult Social Care Operations,Supplies and Services,"6,789.92",Oct-23
Slough Borough Council,2682,Voyage 1 Limited,M26E,Adult Social Care Operations,Supplies and Services,"7,432.19",Oct-23
Slough Borough Council,2682,Voyage 1 Limited,M26E,Adult Social Care Operations,Supplies and Services,"5,697.05",Oct-23
Slough Borough Council,2682,Voyage 1 Limited,M26E,Adult Social Care Operations,Supplies and Services,"5,380.63",Oct-23
Slough Borough Council,2682,Voyage 1 Limited,M26E,Adult Social Care Operations,Supplies and Services,"8,007.74",Oct-23
Slough Borough Council,2682,Voyage 1 Limited,M26E,Adult Social Care Operations,External Receipts,-800.60,Oct-23
Slough Borough Council,2682,Voyage 1 Limited,M26E,Adult Social Care Operations,External Receipts,-534.97,Oct-23
Slough Borough Council,2682,Voyage 1 Limited,M26E,Adult Social Care Operations,External Receipts,-517.26,Oct-23
Slough Borough Council,3436,Voyage Ltd,M26E,Adult Social Care Operations,Supplies and Services,"5,952.57",Oct-23
Slough Borough Council,3436,Voyage Ltd,M26E,Adult Social Care Operations,Supplies and Services,"3,719.02",Oct-23
Slough Borough Council,3436,Voyage Ltd,M42E,Adult Social Care Operations,Supplies and Services,"5,710.50",Oct-23
Slough Borough Council,3436,Voyage Ltd,M42E,Adult Social Care Operations,Supplies and Services,"4,994.94",Oct-23
Slough Borough Council,3436,Voyage Ltd,M42E,Adult Social Care Operations,Supplies and Services,"4,801.98",Oct-23
Slough Borough Council,3436,Voyage Ltd,M42E,Adult Social Care Operations,Supplies and Services,"4,753.74",Oct-23
Slough Borough Council,3436,Voyage Ltd,M42E,Adult Social Care Operations,Supplies and Services,"5,483.46",Oct-23
Slough Borough Council,3436,Voyage Ltd,M42E,Adult Social Care Operations,Supplies and Services,"5,909.58",Oct-23
Slough Borough Council,3436,Voyage Ltd,M42E,Adult Social Care Operations,Supplies and Services,"5,884.52",Oct-23
Slough Borough Council,1762,Wellingtons For Langley Hall,F909,Children & Families,Supplies and Services,"5,235.32",Oct-23
Slough Borough Council,1762,Wellingtons For Langley Hall,F909,Children & Families,Supplies and Services,"45,916.73",Oct-23
Slough Borough Council,1762,Wellingtons For Langley Hall,F909,Children & Families,Supplies and Services,"5,235.32",Oct-23
Slough Borough Council,774,West Berkshire County Council,A08R,Adult Social Care Operations,Supplies and Services,"82,260.00",Oct-23
Slough Borough Council,774,West Berkshire County Council,M36E,Adult Social Care Operations,Supplies and Services,"1,476.00",Oct-23
Slough Borough Council,774,West Berkshire County Council,M36E,Adult Social Care Operations,Supplies and Services,"1,269.36",Oct-23
Slough Borough Council,1749,West London Ymca,H205,Housing (People) Services,Supplies and Services,"1,500.00",Oct-23
Slough Borough Council,1649,Western House Primary School,F200,Education & Inclusion,Salaries and Wages-Employees Expenses,"1,940.00",Oct-23
Slough Borough Council,1649,Western House Primary School,E610,Children & Families,Supplies and Services,"24,384.33",Oct-23
Slough Borough Council,808062,Whitefriars Nursing & Residential Home,M26E,Adult Social Care Operations,Supplies and Services,"3,726.20",Oct-23
Slough Borough Council,172,Wilks Head & Eve Chartered Surveyors,P242,Capital,Capital Charges,"2,500.00",Oct-23
Slough Borough Council,1753,Willow Primary School,E620,Children & Families,Supplies and Services,"19,546.33",Oct-23
Slough Borough Council,807549,Windsar Care (UK) LLP,M15F,Adult Social Care Operations,Supplies and Services,"4,417.50",Oct-23
Slough Borough Council,807549,Windsar Care (UK) LLP,M15F,Adult Social Care Operations,Supplies and Services,"4,417.50",Oct-23
Slough Borough Council,807549,Windsar Care (UK) LLP,M17C,Adult Social Care Operations,Supplies and Services,"4,533.75",Oct-23
Slough Borough Council,807549,Windsar Care (UK) LLP,M18C,Adult Social Care Operations,Supplies and Services,"4,533.75",Oct-23
Slough Borough Council,807549,Windsar Care (UK) LLP,M18C,Adult Social Care Operations,Supplies and Services,"4,417.50",Oct-23
Slough Borough Council,807549,Windsar Care (UK) LLP,M18C,Adult Social Care Operations,Supplies and Services,"4,533.75",Oct-23
Slough Borough Council,804807,Windsar Care Centre Ltd,M15D,Adult Social Care Operations,Supplies and Services,"6,975.00",Oct-23
Slough Borough Council,804807,Windsar Care Centre Ltd,M15F,Adult Social Care Operations,Supplies and Services,"3,441.00",Oct-23
Slough Borough Council,804807,Windsar Care Centre Ltd,M17C,Adult Social Care Operations,Supplies and Services,"4,533.75",Oct-23
Slough Borough Council,804807,Windsar Care Centre Ltd,M17C,Adult Social Care Operations,Supplies and Services,"4,417.50",Oct-23
Slough Borough Council,804807,Windsar Care Centre Ltd,M18C,Adult Social Care Operations,Supplies and Services,"5,580.00",Oct-23
Slough Borough Council,804807,Windsar Care Centre Ltd,M18C,Adult Social Care Operations,Supplies and Services,"4,533.75",Oct-23
Slough Borough Council,804807,Windsar Care Centre Ltd,M18C,Adult Social Care Operations,Supplies and Services,"4,533.75",Oct-23
Slough Borough Council,804807,Windsar Care Centre Ltd,M18C,Adult Social Care Operations,Supplies and Services,"4,185.00",Oct-23
Slough Borough Council,804807,Windsar Care Centre Ltd,M18C,Adult Social Care Operations,Supplies and Services,"3,487.50",Oct-23
Slough Borough Council,804807,Windsar Care Centre Ltd,M18C,Adult Social Care Operations,Supplies and Services,"4,533.75",Oct-23
Slough Borough Council,804807,Windsar Care Centre Ltd,M18C,Adult Social Care Operations,Supplies and Services,"4,185.00",Oct-23
Slough Borough Council,3604,Windsar Care Ltd,M15F,Adult Social Care Operations,Supplies and Services,"4,650.00",Oct-23
Slough Borough Council,3604,Windsar Care Ltd,M15F,Adult Social Care Operations,Supplies and Services,"2,208.75",Oct-23
Slough Borough Council,3604,Windsar Care Ltd,M15F,Adult Social Care Operations,Supplies and Services,"1,801.90",Oct-23
Slough Borough Council,3604,Windsar Care Ltd,M15F,Adult Social Care Operations,Supplies and Services,"2,790.00",Oct-23
Slough Borough Council,3604,Windsar Care Ltd,M17C,Adult Social Care Operations,Supplies and Services,"3,487.50",Oct-23
Slough Borough Council,3604,Windsar Care Ltd,M18C,Adult Social Care Operations,Supplies and Services,"3,720.00",Oct-23
Slough Borough Council,3604,Windsar Care Ltd,M18C,Adult Social Care Operations,Supplies and Services,"4,068.75",Oct-23
Slough Borough Council,3604,Windsar Care Ltd,M25D,Adult Social Care Operations,Supplies and Services,"4,533.75",Oct-23
Slough Borough Council,3604,Windsar Care Ltd,M26E,Adult Social Care Operations,Supplies and Services,"3,487.50",Oct-23
Slough Borough Council,3604,Windsar Care Ltd,M27F,Adult Social Care Operations,Supplies and Services,"5,580.00",Oct-23
Slough Borough Council,804667,Windsor Clinical & Home Care Services Grp Ltd,M15F,Adult Social Care Operations,Supplies and Services,"4,714.29",Oct-23
Slough Borough Council,804667,Windsor Clinical & Home Care Services Grp Ltd,M15F,Adult Social Care Operations,Supplies and Services,942.86,Oct-23
Slough Borough Council,804667,Windsor Clinical & Home Care Services Grp Ltd,M15F,Adult Social Care Operations,Supplies and Services,942.86,Oct-23
Slough Borough Council,804667,Windsor Clinical & Home Care Services Grp Ltd,M15F,Adult Social Care Operations,Supplies and Services,"4,400.00",Oct-23
Slough Borough Council,804667,Windsor Clinical & Home Care Services Grp Ltd,M15F,Adult Social Care Operations,Supplies and Services,"4,871.43",Oct-23
Slough Borough Council,804667,Windsor Clinical & Home Care Services Grp Ltd,M15F,Adult Social Care Operations,Supplies and Services,"4,714.29",Oct-23
Slough Borough Council,804667,Windsor Clinical & Home Care Services Grp Ltd,M15F,Adult Social Care Operations,Supplies and Services,"4,871.43",Oct-23
Slough Borough Council,804667,Windsor Clinical & Home Care Services Grp Ltd,M15F,Adult Social Care Operations,Supplies and Services,"4,714.29",Oct-23
Slough Borough Council,807103,Witherslack Group,F462,Children & Families,Supplies and Services,"26,459.82",Oct-23
Slough Borough Council,748,YMCA St Paul's Group,H207,Community,Supplies and Services,"2,800.00",Oct-23
Slough Borough Council,748,YMCA St Paul's Group,H207,Community,Supplies and Services,"2,800.00",Oct-23
Slough Borough Council,748,YMCA St Paul's Group,H211,People Adults,Supplies and Services,"8,531.29",Oct-23
Slough Borough Council,748,YMCA St Paul's Group,H211,People Adults,Supplies and Services,"8,531.29",Oct-23
